Workbook

Sheet Fixed-Pinned Deflection
A1: Beam Parameters
A3: L | B3: 1 | E3: To use: The value of k (cell F11) needs to be optimized using the solver so that a (cell I11) is equal to apred (cell M11). The Solver is already set up to do this.
A4: w | B4: 0.05
A5: t | B5: 0.05
A6: E | B6: 70000000
A8: I | B8: =B4*B5^3/12 -> 5.208333333e-07
A10: R | B10: Direction (deg) | C10: a | D10: b | E10: q2 (deg) | F10: k | G10: Difference^2 | H10: q2 (rad) | I10: a | J10: y (rad) | K10: f1 | L10: f2 | M10: apred | N10: kmin
A11: 5 | B11: 90 | C11: =-B3/SQRT(I11)*(2*F11*SIN(J11)*(COS(L11)-COS(K11)) + COS(J11)*(2*Ellip_E(L11,F11) - 2*Ellip_E(K11,F11) - Ellip_F(L11,F11) + Ellip_F(K11,F11))) -> 0.9987446048 | D11: =-B3/SQRT(I11)*(2*F11*COS(J11)*(COS(K11)-COS(L11)) + SIN(J11)*(2*Ellip_E(L11,F11) - 2*Ellip_E(K11,F11) - Ellip_F(L11,F11) + Ellip_F(K11,F11))) -> 0.04561559321 | E11: =H11*180/PI() -> 3.922057388 | F11: 0.7308896525 | G11: =(M11-I11)^2 -> 2.732198469e-12 | H11: =J11-2*ACOS(F11) -> 0.06845281487 | I11: =A11*L^2/(E*I) -> 0.1371428571 | J11: =B11*PI()/180 -> 1.570796327 | K11: =ASIN(COS(J11/2)/F11) -> 1.314993128 | L11: =PI()/2 -> 1.570796327 | M11: =(Ellip_F(L11,F11)-Ellip_F(K11,F11))^2 -> 0.1371412042 | N11: =ABS(COS(J11/2)) -> 0.7071067812

Sheet Work
B1: df | C1: =('Fixed-Pinned Deflection'!L11-'Fixed-Pinned Deflection'!K11)/100 -> 0.002558031988
B2: f1 | CX2: f2
B3: ='Fixed-Pinned Deflection'!K11 -> 1.314993128 | C3: =B3+$C1 -> 1.31755116 | D3: =C3+$C1 -> 1.320109192 | E3: 1.322667224 | F3: 1.325225256 | G3: 1.327783288 | H3: 1.33034132 | I3: 1.332899352 | J3: 1.335457384 | K3: 1.338015416 | L3: 1.340573448 | M3: 1.34313148 | N3: 1.345689512 | O3: 1.348247544 | P3: 1.350805576 | Q3: 1.353363608 | R3: 1.35592164 | S3: 1.358479672 | T3: 1.361037704 | U3: 1.363595736 | V3: 1.366153768 | W3: 1.3687118 | X3: 1.371269832 | Y3: 1.373827864 | Z3: 1.376385896 | AA3: 1.378943928 | AB3: 1.38150196 | AC3: 1.384059992 | AD3: 1.386618024 | AE3: 1.389176056 | AF3: 1.391734088 | AG3: 1.39429212 | AH3: 1.396850152 | AI3: 1.399408184 | AJ3: 1.401966216 | AK3: 1.404524248 | AL3: 1.40708228 | AM3: 1.409640312 | AN3: 1.412198344 | AO3: 1.414756376 | AP3: 1.417314408 | AQ3: 1.41987244 | AR3: 1.422430472 | AS3: 1.424988503 | AT3: 1.427546535 | AU3: 1.430104567 | AV3: 1.432662599 | AW3: 1.435220631 | AX3: 1.437778663 | AY3: 1.440336695 | AZ3: 1.442894727 | BA3: 1.445452759 | BB3: 1.448010791 | BC3: 1.450568823 | BD3: 1.453126855 | BE3: 1.455684887 | BF3: 1.458242919 | BG3: 1.460800951 | BH3: 1.463358983 | BI3: 1.465917015 | BJ3: 1.468475047 | BK3: 1.471033079 | BL3: 1.473591111 | BM3: =BL3+$C1 -> 1.476149143 | BN3: 1.478707175 | BO3: 1.481265207 | BP3: =BO3+$C1 -> 1.483823239 | BQ3: 1.486381271 | BR3: 1.488939303 | BS3: 1.491497335 | BT3: 1.494055367 | BU3: 1.496613399 | BV3: =BU3+$C1 -> 1.499171431 | BW3: 1.501729463 | BX3: 1.504287495 | BY3: 1.506845527 | BZ3: 1.509403559 | CA3: 1.511961591 | CB3: =CA3+$C1 -> 1.514519623 | CC3: 1.517077655 | CD3: 1.519635687 | CE3: 1.522193719 | CF3: 1.524751751 | CG3: 1.527309783 | CH3: 1.529867815 | CI3: 1.532425847 | CJ3: 1.534983879 | CK3: 1.537541911 | CL3: 1.540099943 | CM3: 1.542657975 | CN3: 1.545216007 | CO3: 1.547774039 | CP3: 1.550332071 | CQ3: 1.552890103 | CR3: 1.555448135 | CS3: 1.558006167 | CT3: 1.560564199 | CU3: 1.563122231 | CV3: 1.565680263 | CW3: 1.568238295 | CX3: 1.570796327
A4: x | B4: =-L/SQRT('Fixed-Pinned Deflection'!$I$11)*(COS('Fixed-Pinned Deflection'!$J$11)*(2*Ellip_E(B$3,'Fixed-Pinned Deflection'!$F$11) - 2*Ellip_E('Fixed-Pinned Deflection'!$K$11,'Fixed-Pinned Deflection'!$F$11) - Ellip_F(B$3,'Fixed-Pinned Deflection'!$F$11) + Ellip_F('Fixed-Pinned Deflection'!$K$11,'Fixed-Pinned Deflection'!$F$11)) +2*'Fixed-Pinned Deflection'!$F$11*SIN('Fixed-Pinned Deflection'!$J$11)*(COS(B$3) - COS('Fixed-Pinned Deflection'!$K$11))) -> 0 | C4: =-L/SQRT('Fixed-Pinned Deflection'!$I11)*(COS('Fixed-Pinned Deflection'!$J11)*(2*Ellip_E(C3,'Fixed-Pinned Deflection'!$F11) - 2*Ellip_E('Fixed-Pinned Deflection'!$K11,'Fixed-Pinned Deflection'!$F11) - Ellip_F(C3,'Fixed-Pinned Deflection'!$F11) + Ellip_F('Fixed-Pinned Deflection'!$K11,'Fixed-Pinned Deflection'!$F11)) +2*'Fixed-Pinned Deflection'!$F11*SIN('Fixed-Pinned Deflection'!$J11)*(COS(C3) - COS('Fixed-Pinned Deflection'!$K11))) -> 0.009771903013 | D4: =-L/SQRT('Fixed-Pinned Deflection'!$I11)*(COS('Fixed-Pinned Deflection'!$J11)*(2*Ellip_E(D3,'Fixed-Pinned Deflection'!$F11) - 2*Ellip_E('Fixed-Pinned Deflection'!$K11,'Fixed-Pinned Deflection'!$F11) - Ellip_F(D3,'Fixed-Pinned Deflection'!$F11) + Ellip_F('Fixed-Pinned Deflection'!$K11,'Fixed-Pinned Deflection'!$F11)) +2*'Fixed-Pinned Deflection'!$F11*SIN('Fixed-Pinned Deflection'!$J11)*(COS(D3) - COS('Fixed-Pinned Deflection'!$K11))) -> 0.01955027739 | E4: =-L/SQRT('Fixed-Pinned Deflection'!$I11)*(COS('Fixed-Pinned Deflection'!$J11)*(2*Ellip_E(E3,'Fixed-Pinned Deflection'!$F11) - 2*Ellip_E('Fixed-Pinned Deflection'!$K11,'Fixed-Pinned Deflection'!$F11) - Ellip_F(E3,'Fixed-Pinned Deflection'!$F11) + Ellip_F('Fixed-Pinned Deflection'!$K11,'Fixed-Pinned Deflection'!$F11)) +2*'Fixed-Pinned Deflection'!$F11*SIN('Fixed-Pinned Deflection'!$J11)*(COS(E3) - COS('Fixed-Pinned Deflection'!$K11))) -> 0.02933505915 | F4: =-L/SQRT('Fixed-Pinned Deflection'!$I11)*(COS('Fixed-Pinned Deflection'!$J11)*(2*Ellip_E(F3,'Fixed-Pinned Deflection'!$F11) - 2*Ellip_E('Fixed-Pinned Deflection'!$K11,'Fixed-Pinned Deflection'!$F11) - Ellip_F(F3,'Fixed-Pinned Deflection'!$F11) + Ellip_F('Fixed-Pinned Deflection'!$K11,'Fixed-Pinned Deflection'!$F11)) +2*'Fixed-Pinned Deflection'!$F11*SIN('Fixed-Pinned Deflection'!$J11)*(COS(F3) - COS('Fixed-Pinned Deflection'!$K11))) -> 0.03912618427 | G4: =-L/SQRT('Fixed-Pinned Deflection'!$I11)*(COS('Fixed-Pinned Deflection'!$J11)*(2*Ellip_E(G3,'Fixed-Pinned Deflection'!$F11) - 2*Ellip_E('Fixed-Pinned Deflection'!$K11,'Fixed-Pinned Deflection'!$F11) - Ellip_F(G3,'Fixed-Pinned Deflection'!$F11) + Ellip_F('Fixed-Pinned Deflection'!$K11,'Fixed-Pinned Deflection'!$F11)) +2*'Fixed-Pinned Deflection'!$F11*SIN('Fixed-Pinned Deflection'!$J11)*(COS(G3) - COS('Fixed-Pinned Deflection'!$K11))) -> 0.04892358867 | H4: =-L/SQRT('Fixed-Pinned Deflection'!$I11)*(COS('Fixed-Pinned Deflection'!$J11)*(2*Ellip_E(H3,'Fixed-Pinned Deflection'!$F11) - 2*Ellip_E('Fixed-Pinned Deflection'!$K11,'Fixed-Pinned Deflection'!$F11) - Ellip_F(H3,'Fixed-Pinned Deflection'!$F11) + Ellip_F('Fixed-Pinned Deflection'!$K11,'Fixed-Pinned Deflection'!$F11)) +2*'Fixed-Pinned Deflection'!$F11*SIN('Fixed-Pinned Deflection'!$J11)*(COS(H3) - COS('Fixed-Pinned Deflection'!$K11))) -> 0.05872720825 | I4: =-L/SQRT('Fixed-Pinned Deflection'!$I11)*(COS('Fixed-Pinned Deflection'!$J11)*(2*Ellip_E(I3,'Fixed-Pinned Deflection'!$F11) - 2*Ellip_E('Fixed-Pinned Deflection'!$K11,'Fixed-Pinned Deflection'!$F11) - Ellip_F(I3,'Fixed-Pinned Deflection'!$F11) + Ellip_F('Fixed-Pinned Deflection'!$K11,'Fixed-Pinned Deflection'!$F11)) +2*'Fixed-Pinned Deflection'!$F11*SIN('Fixed-Pinned Deflection'!$J11)*(COS(I3) - COS('Fixed-Pinned Deflection'!$K11))) -> 0.06853697885 | J4: =-L/SQRT('Fixed-Pinned Deflection'!$I11)*(COS('Fixed-Pinned Deflection'!$J11)*(2*Ellip_E(J3,'Fixed-Pinned Deflection'!$F11) - 2*Ellip_E('Fixed-Pinned Deflection'!$K11,'Fixed-Pinned Deflection'!$F11) - Ellip_F(J3,'Fixed-Pinned Deflection'!$F11) + Ellip_F('Fixed-Pinned Deflection'!$K11,'Fixed-Pinned Deflection'!$F11)) +2*'Fixed-Pinned Deflection'!$F11*SIN('Fixed-Pinned Deflection'!$J11)*(COS(J3) - COS('Fixed-Pinned Deflection'!$K11))) -> 0.07835283629 | K4: =-L/SQRT('Fixed-Pinned Deflection'!$I11)*(COS('Fixed-Pinned Deflection'!$J11)*(2*Ellip_E(K3,'Fixed-Pinned Deflection'!$F11) - 2*Ellip_E('Fixed-Pinned Deflection'!$K11,'Fixed-Pinned Deflection'!$F11) - Ellip_F(K3,'Fixed-Pinned Deflection'!$F11) + Ellip_F('Fixed-Pinned Deflection'!$K11,'Fixed-Pinned Deflection'!$F11)) +2*'Fixed-Pinned Deflection'!$F11*SIN('Fixed-Pinned Deflection'!$J11)*(COS(K3) - COS('Fixed-Pinned Deflection'!$K11))) -> 0.08817471634 | L4: =-L/SQRT('Fixed-Pinned Deflection'!$I11)*(COS('Fixed-Pinned Deflection'!$J11)*(2*Ellip_E(L3,'Fixed-Pinned Deflection'!$F11) - 2*Ellip_E('Fixed-Pinned Deflection'!$K11,'Fixed-Pinned Deflection'!$F11) - Ellip_F(L3,'Fixed-Pinned Deflection'!$F11) + Ellip_F('Fixed-Pinned Deflection'!$K11,'Fixed-Pinned Deflection'!$F11)) +2*'Fixed-Pinned Deflection'!$F11*SIN('Fixed-Pinned Deflection'!$J11)*(COS(L3) - COS('Fixed-Pinned Deflection'!$K11))) -> 0.09800255472 | M4: =-L/SQRT('Fixed-Pinned Deflection'!$I11)*(COS('Fixed-Pinned Deflection'!$J11)*(2*Ellip_E(M3,'Fixed-Pinned Deflection'!$F11) - 2*Ellip_E('Fixed-Pinned Deflection'!$K11,'Fixed-Pinned Deflection'!$F11) - Ellip_F(M3,'Fixed-Pinned Deflection'!$F11) + Ellip_F('Fixed-Pinned Deflection'!$K11,'Fixed-Pinned Deflection'!$F11)) +2*'Fixed-Pinned Deflection'!$F11*SIN('Fixed-Pinned Deflection'!$J11)*(COS(M3) - COS('Fixed-Pinned Deflection'!$K11))) -> 0.1078362871 | N4: =-L/SQRT('Fixed-Pinned Deflection'!$I11)*(COS('Fixed-Pinned Deflection'!$J11)*(2*Ellip_E(N3,'Fixed-Pinned Deflection'!$F11) - 2*Ellip_E('Fixed-Pinned Deflection'!$K11,'Fixed-Pinned Deflection'!$F11) - Ellip_F(N3,'Fixed-Pinned Deflection'!$F11) + Ellip_F('Fixed-Pinned Deflection'!$K11,'Fixed-Pinned Deflection'!$F11)) +2*'Fixed-Pinned Deflection'!$F11*SIN('Fixed-Pinned Deflection'!$J11)*(COS(N3) - COS('Fixed-Pinned Deflection'!$K11))) -> 0.1176758492 | O4: =-L/SQRT('Fixed-Pinned Deflection'!$I11)*(COS('Fixed-Pinned Deflection'!$J11)*(2*Ellip_E(O3,'Fixed-Pinned Deflection'!$F11) - 2*Ellip_E('Fixed-Pinned Deflection'!$K11,'Fixed-Pinned Deflection'!$F11) - Ellip_F(O3,'Fixed-Pinned Deflection'!$F11) + Ellip_F('Fixed-Pinned Deflection'!$K11,'Fixed-Pinned Deflection'!$F11)) +2*'Fixed-Pinned Deflection'!$F11*SIN('Fixed-Pinned Deflection'!$J11)*(COS(O3) - COS('Fixed-Pinned Deflection'!$K11))) -> 0.1275211766 | P4: =-L/SQRT('Fixed-Pinned Deflection'!$I11)*(COS('Fixed-Pinned Deflection'!$J11)*(2*Ellip_E(P3,'Fixed-Pinned Deflection'!$F11) - 2*Ellip_E('Fixed-Pinned Deflection'!$K11,'Fixed-Pinned Deflection'!$F11) - Ellip_F(P3,'Fixed-Pinned Deflection'!$F11) + Ellip_F('Fixed-Pinned Deflection'!$K11,'Fixed-Pinned Deflection'!$F11)) +2*'Fixed-Pinned Deflection'!$F11*SIN('Fixed-Pinned Deflection'!$J11)*(COS(P3) - COS('Fixed-Pinned Deflection'!$K11))) -> 0.1373722049 | Q4: =-L/SQRT('Fixed-Pinned Deflection'!$I11)*(COS('Fixed-Pinned Deflection'!$J11)*(2*Ellip_E(Q3,'Fixed-Pinned Deflection'!$F11) - 2*Ellip_E('Fixed-Pinned Deflection'!$K11,'Fixed-Pinned Deflection'!$F11) - Ellip_F(Q3,'Fixed-Pinned Deflection'!$F11) + Ellip_F('Fixed-Pinned Deflection'!$K11,'Fixed-Pinned Deflection'!$F11)) +2*'Fixed-Pinned Deflection'!$F11*SIN('Fixed-Pinned Deflection'!$J11)*(COS(Q3) - COS('Fixed-Pinned Deflection'!$K11))) -> 0.1472288695 | R4: =-L/SQRT('Fixed-Pinned Deflection'!$I11)*(COS('Fixed-Pinned Deflection'!$J11)*(2*Ellip_E(R3,'Fixed-Pinned Deflection'!$F11) - 2*Ellip_E('Fixed-Pinned Deflection'!$K11,'Fixed-Pinned Deflection'!$F11) - Ellip_F(R3,'Fixed-Pinned Deflection'!$F11) + Ellip_F('Fixed-Pinned Deflection'!$K11,'Fixed-Pinned Deflection'!$F11)) +2*'Fixed-Pinned Deflection'!$F11*SIN('Fixed-Pinned Deflection'!$J11)*(COS(R3) - COS('Fixed-Pinned Deflection'!$K11))) -> 0.1570911061 | S4: =-L/SQRT('Fixed-Pinned Deflection'!$I11)*(COS('Fixed-Pinned Deflection'!$J11)*(2*Ellip_E(S3,'Fixed-Pinned Deflection'!$F11) - 2*Ellip_E('Fixed-Pinned Deflection'!$K11,'Fixed-Pinned Deflection'!$F11) - Ellip_F(S3,'Fixed-Pinned Deflection'!$F11) + Ellip_F('Fixed-Pinned Deflection'!$K11,'Fixed-Pinned Deflection'!$F11)) +2*'Fixed-Pinned Deflection'!$F11*SIN('Fixed-Pinned Deflection'!$J11)*(COS(S3) - COS('Fixed-Pinned Deflection'!$K11))) -> 0.1669588501 | T4: =-L/SQRT('Fixed-Pinned Deflection'!$I11)*(COS('Fixed-Pinned Deflection'!$J11)*(2*Ellip_E(T3,'Fixed-Pinned Deflection'!$F11) - 2*Ellip_E('Fixed-Pinned Deflection'!$K11,'Fixed-Pinned Deflection'!$F11) - Ellip_F(T3,'Fixed-Pinned Deflection'!$F11) + Ellip_F('Fixed-Pinned Deflection'!$K11,'Fixed-Pinned Deflection'!$F11)) +2*'Fixed-Pinned Deflection'!$F11*SIN('Fixed-Pinned Deflection'!$J11)*(COS(T3) - COS('Fixed-Pinned Deflection'!$K11))) -> 0.1768320368 | U4: =-L/SQRT('Fixed-Pinned Deflection'!$I11)*(COS('Fixed-Pinned Deflection'!$J11)*(2*Ellip_E(U3,'Fixed-Pinned Deflection'!$F11) - 2*Ellip_E('Fixed-Pinned Deflection'!$K11,'Fixed-Pinned Deflection'!$F11) - Ellip_F(U3,'Fixed-Pinned Deflection'!$F11) + Ellip_F('Fixed-Pinned Deflection'!$K11,'Fixed-Pinned Deflection'!$F11)) +2*'Fixed-Pinned Deflection'!$F11*SIN('Fixed-Pinned Deflection'!$J11)*(COS(U3) - COS('Fixed-Pinned Deflection'!$K11))) -> 0.1867106018 | V4: =-L/SQRT('Fixed-Pinned Deflection'!$I11)*(COS('Fixed-Pinned Deflection'!$J11)*(2*Ellip_E(V3,'Fixed-Pinned Deflection'!$F11) - 2*Ellip_E('Fixed-Pinned Deflection'!$K11,'Fixed-Pinned Deflection'!$F11) - Ellip_F(V3,'Fixed-Pinned Deflection'!$F11) + Ellip_F('Fixed-Pinned Deflection'!$K11,'Fixed-Pinned Deflection'!$F11)) +2*'Fixed-Pinned Deflection'!$F11*SIN('Fixed-Pinned Deflection'!$J11)*(COS(V3) - COS('Fixed-Pinned Deflection'!$K11))) -> 0.1965944804 | W4: =-L/SQRT('Fixed-Pinned Deflection'!$I11)*(COS('Fixed-Pinned Deflection'!$J11)*(2*Ellip_E(W3,'Fixed-Pinned Deflection'!$F11) - 2*Ellip_E('Fixed-Pinned Deflection'!$K11,'Fixed-Pinned Deflection'!$F11) - Ellip_F(W3,'Fixed-Pinned Deflection'!$F11) + Ellip_F('Fixed-Pinned Deflection'!$K11,'Fixed-Pinned Deflection'!$F11)) +2*'Fixed-Pinned Deflection'!$F11*SIN('Fixed-Pinned Deflection'!$J11)*(COS(W3) - COS('Fixed-Pinned Deflection'!$K11))) -> 0.2064836078 | X4: =-L/SQRT('Fixed-Pinned Deflection'!$I11)*(COS('Fixed-Pinned Deflection'!$J11)*(2*Ellip_E(X3,'Fixed-Pinned Deflection'!$F11) - 2*Ellip_E('Fixed-Pinned Deflection'!$K11,'Fixed-Pinned Deflection'!$F11) - Ellip_F(X3,'Fixed-Pinned Deflection'!$F11) + Ellip_F('Fixed-Pinned Deflection'!$K11,'Fixed-Pinned Deflection'!$F11)) +2*'Fixed-Pinned Deflection'!$F11*SIN('Fixed-Pinned Deflection'!$J11)*(COS(X3) - COS('Fixed-Pinned Deflection'!$K11))) -> 0.2163779194 | Y4: =-L/SQRT('Fixed-Pinned Deflection'!$I11)*(COS('Fixed-Pinned Deflection'!$J11)*(2*Ellip_E(Y3,'Fixed-Pinned Deflection'!$F11) - 2*Ellip_E('Fixed-Pinned Deflection'!$K11,'Fixed-Pinned Deflection'!$F11) - Ellip_F(Y3,'Fixed-Pinned Deflection'!$F11) + Ellip_F('Fixed-Pinned Deflection'!$K11,'Fixed-Pinned Deflection'!$F11)) +2*'Fixed-Pinned Deflection'!$F11*SIN('Fixed-Pinned Deflection'!$J11)*(COS(Y3) - COS('Fixed-Pinned Deflection'!$K11))) -> 0.2262773504 | Z4: =-L/SQRT('Fixed-Pinned Deflection'!$I11)*(COS('Fixed-Pinned Deflection'!$J11)*(2*Ellip_E(Z3,'Fixed-Pinned Deflection'!$F11) - 2*Ellip_E('Fixed-Pinned Deflection'!$K11,'Fixed-Pinned Deflection'!$F11) - Ellip_F(Z3,'Fixed-Pinned Deflection'!$F11) + Ellip_F('Fixed-Pinned Deflection'!$K11,'Fixed-Pinned Deflection'!$F11)) +2*'Fixed-Pinned Deflection'!$F11*SIN('Fixed-Pinned Deflection'!$J11)*(COS(Z3) - COS('Fixed-Pinned Deflection'!$K11))) -> 0.2361818361 | AA4: =-L/SQRT('Fixed-Pinned Deflection'!$I11)*(COS('Fixed-Pinned Deflection'!$J11)*(2*Ellip_E(AA3,'Fixed-Pinned Deflection'!$F11) - 2*Ellip_E('Fixed-Pinned Deflection'!$K11,'Fixed-Pinned Deflection'!$F11) - Ellip_F(AA3,'Fixed-Pinned Deflection'!$F11) + Ellip_F('Fixed-Pinned Deflection'!$K11,'Fixed-Pinned Deflection'!$F11)) +2*'Fixed-Pinned Deflection'!$F11*SIN('Fixed-Pinned Deflection'!$J11)*(COS(AA3) - COS('Fixed-Pinned Deflection'!$K11))) -> 0.2460913117 | AB4: =-L/SQRT('Fixed-Pinned Deflection'!$I11)*(COS('Fixed-Pinned Deflection'!$J11)*(2*Ellip_E(AB3,'Fixed-Pinned Deflection'!$F11) - 2*Ellip_E('Fixed-Pinned Deflection'!$K11,'Fixed-Pinned Deflection'!$F11) - Ellip_F(AB3,'Fixed-Pinned Deflection'!$F11) + Ellip_F('Fixed-Pinned Deflection'!$K11,'Fixed-Pinned Deflection'!$F11)) +2*'Fixed-Pinned Deflection'!$F11*SIN('Fixed-Pinned Deflection'!$J11)*(COS(AB3) - COS('Fixed-Pinned Deflection'!$K11))) -> 0.2560057122 | AC4: =-L/SQRT('Fixed-Pinned Deflection'!$I11)*(COS('Fixed-Pinned Deflection'!$J11)*(2*Ellip_E(AC3,'Fixed-Pinned Deflection'!$F11) - 2*Ellip_E('Fixed-Pinned Deflection'!$K11,'Fixed-Pinned Deflection'!$F11) - Ellip_F(AC3,'Fixed-Pinned Deflection'!$F11) + Ellip_F('Fixed-Pinned Deflection'!$K11,'Fixed-Pinned Deflection'!$F11)) +2*'Fixed-Pinned Deflection'!$F11*SIN('Fixed-Pinned Deflection'!$J11)*(COS(AC3) - COS('Fixed-Pinned Deflection'!$K11))) -> 0.2659249729 | AD4: =-L/SQRT('Fixed-Pinned Deflection'!$I11)*(COS('Fixed-Pinned Deflection'!$J11)*(2*Ellip_E(AD3,'Fixed-Pinned Deflection'!$F11) - 2*Ellip_E('Fixed-Pinned Deflection'!$K11,'Fixed-Pinned Deflection'!$F11) - Ellip_F(AD3,'Fixed-Pinned Deflection'!$F11) + Ellip_F('Fixed-Pinned Deflection'!$K11,'Fixed-Pinned Deflection'!$F11)) +2*'Fixed-Pinned Deflection'!$F11*SIN('Fixed-Pinned Deflection'!$J11)*(COS(AD3) - COS('Fixed-Pinned Deflection'!$K11))) -> 0.2758490288 | AE4: =-L/SQRT('Fixed-Pinned Deflection'!$I11)*(COS('Fixed-Pinned Deflection'!$J11)*(2*Ellip_E(AE3,'Fixed-Pinned Deflection'!$F11) - 2*Ellip_E('Fixed-Pinned Deflection'!$K11,'Fixed-Pinned Deflection'!$F11) - Ellip_F(AE3,'Fixed-Pinned Deflection'!$F11) + Ellip_F('Fixed-Pinned Deflection'!$K11,'Fixed-Pinned Deflection'!$F11)) +2*'Fixed-Pinned Deflection'!$F11*SIN('Fixed-Pinned Deflection'!$J11)*(COS(AE3) - COS('Fixed-Pinned Deflection'!$K11))) -> 0.285777815 | AF4: =-L/SQRT('Fixed-Pinned Deflection'!$I11)*(COS('Fixed-Pinned Deflection'!$J11)*(2*Ellip_E(AF3,'Fixed-Pinned Deflection'!$F11) - 2*Ellip_E('Fixed-Pinned Deflection'!$K11,'Fixed-Pinned Deflection'!$F11) - Ellip_F(AF3,'Fixed-Pinned Deflection'!$F11) + Ellip_F('Fixed-Pinned Deflection'!$K11,'Fixed-Pinned Deflection'!$F11)) +2*'Fixed-Pinned Deflection'!$F11*SIN('Fixed-Pinned Deflection'!$J11)*(COS(AF3) - COS('Fixed-Pinned Deflection'!$K11))) -> 0.2957112665 | AG4: =-L/SQRT('Fixed-Pinned Deflection'!$I11)*(COS('Fixed-Pinned Deflection'!$J11)*(2*Ellip_E(AG3,'Fixed-Pinned Deflection'!$F11) - 2*Ellip_E('Fixed-Pinned Deflection'!$K11,'Fixed-Pinned Deflection'!$F11) - Ellip_F(AG3,'Fixed-Pinned Deflection'!$F11) + Ellip_F('Fixed-Pinned Deflection'!$K11,'Fixed-Pinned Deflection'!$F11)) +2*'Fixed-Pinned Deflection'!$F11*SIN('Fixed-Pinned Deflection'!$J11)*(COS(AG3) - COS('Fixed-Pinned Deflection'!$K11))) -> 0.3056493183 | AH4: =-L/SQRT('Fixed-Pinned Deflection'!$I11)*(COS('Fixed-Pinned Deflection'!$J11)*(2*Ellip_E(AH3,'Fixed-Pinned Deflection'!$F11) - 2*Ellip_E('Fixed-Pinned Deflection'!$K11,'Fixed-Pinned Deflection'!$F11) - Ellip_F(AH3,'Fixed-Pinned Deflection'!$F11) + Ellip_F('Fixed-Pinned Deflection'!$K11,'Fixed-Pinned Deflection'!$F11)) +2*'Fixed-Pinned Deflection'!$F11*SIN('Fixed-Pinned Deflection'!$J11)*(COS(AH3) - COS('Fixed-Pinned Deflection'!$K11))) -> 0.3155919055 | AI4: =-L/SQRT('Fixed-Pinned Deflection'!$I11)*(COS('Fixed-Pinned Deflection'!$J11)*(2*Ellip_E(AI3,'Fixed-Pinned Deflection'!$F11) - 2*Ellip_E('Fixed-Pinned Deflection'!$K11,'Fixed-Pinned Deflection'!$F11) - Ellip_F(AI3,'Fixed-Pinned Deflection'!$F11) + Ellip_F('Fixed-Pinned Deflection'!$K11,'Fixed-Pinned Deflection'!$F11)) +2*'Fixed-Pinned Deflection'!$F11*SIN('Fixed-Pinned Deflection'!$J11)*(COS(AI3) - COS('Fixed-Pinned Deflection'!$K11))) -> 0.3255389628 | AJ4: =-L/SQRT('Fixed-Pinned Deflection'!$I11)*(COS('Fixed-Pinned Deflection'!$J11)*(2*Ellip_E(AJ3,'Fixed-Pinned Deflection'!$F11) - 2*Ellip_E('Fixed-Pinned Deflection'!$K11,'Fixed-Pinned Deflection'!$F11) - Ellip_F(AJ3,'Fixed-Pinned Deflection'!$F11) + Ellip_F('Fixed-Pinned Deflection'!$K11,'Fixed-Pinned Deflection'!$F11)) +2*'Fixed-Pinned Deflection'!$F11*SIN('Fixed-Pinned Deflection'!$J11)*(COS(AJ3) - COS('Fixed-Pinned Deflection'!$K11))) -> 0.3354904253 | AK4: =-L/SQRT('Fixed-Pinned Deflection'!$I11)*(COS('Fixed-Pinned Deflection'!$J11)*(2*Ellip_E(AK3,'Fixed-Pinned Deflection'!$F11) - 2*Ellip_E('Fixed-Pinned Deflection'!$K11,'Fixed-Pinned Deflection'!$F11) - Ellip_F(AK3,'Fixed-Pinned Deflection'!$F11) + Ellip_F('Fixed-Pinned Deflection'!$K11,'Fixed-Pinned Deflection'!$F11)) +2*'Fixed-Pinned Deflection'!$F11*SIN('Fixed-Pinned Deflection'!$J11)*(COS(AK3) - COS('Fixed-Pinned Deflection'!$K11))) -> 0.3454462278 | AL4: =-L/SQRT('Fixed-Pinned Deflection'!$I11)*(COS('Fixed-Pinned Deflection'!$J11)*(2*Ellip_E(AL3,'Fixed-Pinned Deflection'!$F11) - 2*Ellip_E('Fixed-Pinned Deflection'!$K11,'Fixed-Pinned Deflection'!$F11) - Ellip_F(AL3,'Fixed-Pinned Deflection'!$F11) + Ellip_F('Fixed-Pinned Deflection'!$K11,'Fixed-Pinned Deflection'!$F11)) +2*'Fixed-Pinned Deflection'!$F11*SIN('Fixed-Pinned Deflection'!$J11)*(COS(AL3) - COS('Fixed-Pinned Deflection'!$K11))) -> 0.3554063051 | AM4: =-L/SQRT('Fixed-Pinned Deflection'!$I11)*(COS('Fixed-Pinned Deflection'!$J11)*(2*Ellip_E(AM3,'Fixed-Pinned Deflection'!$F11) - 2*Ellip_E('Fixed-Pinned Deflection'!$K11,'Fixed-Pinned Deflection'!$F11) - Ellip_F(AM3,'Fixed-Pinned Deflection'!$F11) + Ellip_F('Fixed-Pinned Deflection'!$K11,'Fixed-Pinned Deflection'!$F11)) +2*'Fixed-Pinned Deflection'!$F11*SIN('Fixed-Pinned Deflection'!$J11)*(COS(AM3) - COS('Fixed-Pinned Deflection'!$K11))) -> 0.3653705922 | AN4: =-L/SQRT('Fixed-Pinned Deflection'!$I11)*(COS('Fixed-Pinned Deflection'!$J11)*(2*Ellip_E(AN3,'Fixed-Pinned Deflection'!$F11) - 2*Ellip_E('Fixed-Pinned Deflection'!$K11,'Fixed-Pinned Deflection'!$F11) - Ellip_F(AN3,'Fixed-Pinned Deflection'!$F11) + Ellip_F('Fixed-Pinned Deflection'!$K11,'Fixed-Pinned Deflection'!$F11)) +2*'Fixed-Pinned Deflection'!$F11*SIN('Fixed-Pinned Deflection'!$J11)*(COS(AN3) - COS('Fixed-Pinned Deflection'!$K11))) -> 0.3753390237 | AO4: =-L/SQRT('Fixed-Pinned Deflection'!$I11)*(COS('Fixed-Pinned Deflection'!$J11)*(2*Ellip_E(AO3,'Fixed-Pinned Deflection'!$F11) - 2*Ellip_E('Fixed-Pinned Deflection'!$K11,'Fixed-Pinned Deflection'!$F11) - Ellip_F(AO3,'Fixed-Pinned Deflection'!$F11) + Ellip_F('Fixed-Pinned Deflection'!$K11,'Fixed-Pinned Deflection'!$F11)) +2*'Fixed-Pinned Deflection'!$F11*SIN('Fixed-Pinned Deflection'!$J11)*(COS(AO3) - COS('Fixed-Pinned Deflection'!$K11))) -> 0.3853115346 | AP4: =-L/SQRT('Fixed-Pinned Deflection'!$I11)*(COS('Fixed-Pinned Deflection'!$J11)*(2*Ellip_E(AP3,'Fixed-Pinned Deflection'!$F11) - 2*Ellip_E('Fixed-Pinned Deflection'!$K11,'Fixed-Pinned Deflection'!$F11) - Ellip_F(AP3,'Fixed-Pinned Deflection'!$F11) + Ellip_F('Fixed-Pinned Deflection'!$K11,'Fixed-Pinned Deflection'!$F11)) +2*'Fixed-Pinned Deflection'!$F11*SIN('Fixed-Pinned Deflection'!$J11)*(COS(AP3) - COS('Fixed-Pinned Deflection'!$K11))) -> 0.3952880594 | AQ4: =-L/SQRT('Fixed-Pinned Deflection'!$I11)*(COS('Fixed-Pinned Deflection'!$J11)*(2*Ellip_E(AQ3,'Fixed-Pinned Deflection'!$F11) - 2*Ellip_E('Fixed-Pinned Deflection'!$K11,'Fixed-Pinned Deflection'!$F11) - Ellip_F(AQ3,'Fixed-Pinned Deflection'!$F11) + Ellip_F('Fixed-Pinned Deflection'!$K11,'Fixed-Pinned Deflection'!$F11)) +2*'Fixed-Pinned Deflection'!$F11*SIN('Fixed-Pinned Deflection'!$J11)*(COS(AQ3) - COS('Fixed-Pinned Deflection'!$K11))) -> 0.405268533 | AR4: =-L/SQRT('Fixed-Pinned Deflection'!$I11)*(COS('Fixed-Pinned Deflection'!$J11)*(2*Ellip_E(AR3,'Fixed-Pinned Deflection'!$F11) - 2*Ellip_E('Fixed-Pinned Deflection'!$K11,'Fixed-Pinned Deflection'!$F11) - Ellip_F(AR3,'Fixed-Pinned Deflection'!$F11) + Ellip_F('Fixed-Pinned Deflection'!$K11,'Fixed-Pinned Deflection'!$F11)) +2*'Fixed-Pinned Deflection'!$F11*SIN('Fixed-Pinned Deflection'!$J11)*(COS(AR3) - COS('Fixed-Pinned Deflection'!$K11))) -> 0.41525289 | AS4: =-L/SQRT('Fixed-Pinned Deflection'!$I11)*(COS('Fixed-Pinned Deflection'!$J11)*(2*Ellip_E(AS3,'Fixed-Pinned Deflection'!$F11) - 2*Ellip_E('Fixed-Pinned Deflection'!$K11,'Fixed-Pinned Deflection'!$F11) - Ellip_F(AS3,'Fixed-Pinned Deflection'!$F11) + Ellip_F('Fixed-Pinned Deflection'!$K11,'Fixed-Pinned Deflection'!$F11)) +2*'Fixed-Pinned Deflection'!$F11*SIN('Fixed-Pinned Deflection'!$J11)*(COS(AS3) - COS('Fixed-Pinned Deflection'!$K11))) -> 0.4252410651 | AT4: =-L/SQRT('Fixed-Pinned Deflection'!$I11)*(COS('Fixed-Pinned Deflection'!$J11)*(2*Ellip_E(AT3,'Fixed-Pinned Deflection'!$F11) - 2*Ellip_E('Fixed-Pinned Deflection'!$K11,'Fixed-Pinned Deflection'!$F11) - Ellip_F(AT3,'Fixed-Pinned Deflection'!$F11) + Ellip_F('Fixed-Pinned Deflection'!$K11,'Fixed-Pinned Deflection'!$F11)) +2*'Fixed-Pinned Deflection'!$F11*SIN('Fixed-Pinned Deflection'!$J11)*(COS(AT3) - COS('Fixed-Pinned Deflection'!$K11))) -> 0.4352329929 | AU4: =-L/SQRT('Fixed-Pinned Deflection'!$I11)*(COS('Fixed-Pinned Deflection'!$J11)*(2*Ellip_E(AU3,'Fixed-Pinned Deflection'!$F11) - 2*Ellip_E('Fixed-Pinned Deflection'!$K11,'Fixed-Pinned Deflection'!$F11) - Ellip_F(AU3,'Fixed-Pinned Deflection'!$F11) + Ellip_F('Fixed-Pinned Deflection'!$K11,'Fixed-Pinned Deflection'!$F11)) +2*'Fixed-Pinned Deflection'!$F11*SIN('Fixed-Pinned Deflection'!$J11)*(COS(AU3) - COS('Fixed-Pinned Deflection'!$K11))) -> 0.4452286081 | AV4: =-L/SQRT('Fixed-Pinned Deflection'!$I11)*(COS('Fixed-Pinned Deflection'!$J11)*(2*Ellip_E(AV3,'Fixed-Pinned Deflection'!$F11) - 2*Ellip_E('Fixed-Pinned Deflection'!$K11,'Fixed-Pinned Deflection'!$F11) - Ellip_F(AV3,'Fixed-Pinned Deflection'!$F11) + Ellip_F('Fixed-Pinned Deflection'!$K11,'Fixed-Pinned Deflection'!$F11)) +2*'Fixed-Pinned Deflection'!$F11*SIN('Fixed-Pinned Deflection'!$J11)*(COS(AV3) - COS('Fixed-Pinned Deflection'!$K11))) -> 0.4552278452 | AW4: =-L/SQRT('Fixed-Pinned Deflection'!$I11)*(COS('Fixed-Pinned Deflection'!$J11)*(2*Ellip_E(AW3,'Fixed-Pinned Deflection'!$F11) - 2*Ellip_E('Fixed-Pinned Deflection'!$K11,'Fixed-Pinned Deflection'!$F11) - Ellip_F(AW3,'Fixed-Pinned Deflection'!$F11) + Ellip_F('Fixed-Pinned Deflection'!$K11,'Fixed-Pinned Deflection'!$F11)) +2*'Fixed-Pinned Deflection'!$F11*SIN('Fixed-Pinned Deflection'!$J11)*(COS(AW3) - COS('Fixed-Pinned Deflection'!$K11))) -> 0.4652306389 | AX4: =-L/SQRT('Fixed-Pinned Deflection'!$I11)*(COS('Fixed-Pinned Deflection'!$J11)*(2*Ellip_E(AX3,'Fixed-Pinned Deflection'!$F11) - 2*Ellip_E('Fixed-Pinned Deflection'!$K11,'Fixed-Pinned Deflection'!$F11) - Ellip_F(AX3,'Fixed-Pinned Deflection'!$F11) + Ellip_F('Fixed-Pinned Deflection'!$K11,'Fixed-Pinned Deflection'!$F11)) +2*'Fixed-Pinned Deflection'!$F11*SIN('Fixed-Pinned Deflection'!$J11)*(COS(AX3) - COS('Fixed-Pinned Deflection'!$K11))) -> 0.4752369236 | AY4: =-L/SQRT('Fixed-Pinned Deflection'!$I11)*(COS('Fixed-Pinned Deflection'!$J11)*(2*Ellip_E(AY3,'Fixed-Pinned Deflection'!$F11) - 2*Ellip_E('Fixed-Pinned Deflection'!$K11,'Fixed-Pinned Deflection'!$F11) - Ellip_F(AY3,'Fixed-Pinned Deflection'!$F11) + Ellip_F('Fixed-Pinned Deflection'!$K11,'Fixed-Pinned Deflection'!$F11)) +2*'Fixed-Pinned Deflection'!$F11*SIN('Fixed-Pinned Deflection'!$J11)*(COS(AY3) - COS('Fixed-Pinned Deflection'!$K11))) -> 0.4852466339 | AZ4: =-L/SQRT('Fixed-Pinned Deflection'!$I11)*(COS('Fixed-Pinned Deflection'!$J11)*(2*Ellip_E(AZ3,'Fixed-Pinned Deflection'!$F11) - 2*Ellip_E('Fixed-Pinned Deflection'!$K11,'Fixed-Pinned Deflection'!$F11) - Ellip_F(AZ3,'Fixed-Pinned Deflection'!$F11) + Ellip_F('Fixed-Pinned Deflection'!$K11,'Fixed-Pinned Deflection'!$F11)) +2*'Fixed-Pinned Deflection'!$F11*SIN('Fixed-Pinned Deflection'!$J11)*(COS(AZ3) - COS('Fixed-Pinned Deflection'!$K11))) -> 0.4952597042 | BA4: =-L/SQRT('Fixed-Pinned Deflection'!$I11)*(COS('Fixed-Pinned Deflection'!$J11)*(2*Ellip_E(BA3,'Fixed-Pinned Deflection'!$F11) - 2*Ellip_E('Fixed-Pinned Deflection'!$K11,'Fixed-Pinned Deflection'!$F11) - Ellip_F(BA3,'Fixed-Pinned Deflection'!$F11) + Ellip_F('Fixed-Pinned Deflection'!$K11,'Fixed-Pinned Deflection'!$F11)) +2*'Fixed-Pinned Deflection'!$F11*SIN('Fixed-Pinned Deflection'!$J11)*(COS(BA3) - COS('Fixed-Pinned Deflection'!$K11))) -> 0.5052760692 | BB4: =-L/SQRT('Fixed-Pinned Deflection'!$I11)*(COS('Fixed-Pinned Deflection'!$J11)*(2*Ellip_E(BB3,'Fixed-Pinned Deflection'!$F11) - 2*Ellip_E('Fixed-Pinned Deflection'!$K11,'Fixed-Pinned Deflection'!$F11) - Ellip_F(BB3,'Fixed-Pinned Deflection'!$F11) + Ellip_F('Fixed-Pinned Deflection'!$K11,'Fixed-Pinned Deflection'!$F11)) +2*'Fixed-Pinned Deflection'!$F11*SIN('Fixed-Pinned Deflection'!$J11)*(COS(BB3) - COS('Fixed-Pinned Deflection'!$K11))) -> 0.5152956631 | BC4: =-L/SQRT('Fixed-Pinned Deflection'!$I11)*(COS('Fixed-Pinned Deflection'!$J11)*(2*Ellip_E(BC3,'Fixed-Pinned Deflection'!$F11) - 2*Ellip_E('Fixed-Pinned Deflection'!$K11,'Fixed-Pinned Deflection'!$F11) - Ellip_F(BC3,'Fixed-Pinned Deflection'!$F11) + Ellip_F('Fixed-Pinned Deflection'!$K11,'Fixed-Pinned Deflection'!$F11)) +2*'Fixed-Pinned Deflection'!$F11*SIN('Fixed-Pinned Deflection'!$J11)*(COS(BC3) - COS('Fixed-Pinned Deflection'!$K11))) -> 0.5253184206 | BD4: =-L/SQRT('Fixed-Pinned Deflection'!$I11)*(COS('Fixed-Pinned Deflection'!$J11)*(2*Ellip_E(BD3,'Fixed-Pinned Deflection'!$F11) - 2*Ellip_E('Fixed-Pinned Deflection'!$K11,'Fixed-Pinned Deflection'!$F11) - Ellip_F(BD3,'Fixed-Pinned Deflection'!$F11) + Ellip_F('Fixed-Pinned Deflection'!$K11,'Fixed-Pinned Deflection'!$F11)) +2*'Fixed-Pinned Deflection'!$F11*SIN('Fixed-Pinned Deflection'!$J11)*(COS(BD3) - COS('Fixed-Pinned Deflection'!$K11))) -> 0.5353442759 | BE4: =-L/SQRT('Fixed-Pinned Deflection'!$I11)*(COS('Fixed-Pinned Deflection'!$J11)*(2*Ellip_E(BE3,'Fixed-Pinned Deflection'!$F11) - 2*Ellip_E('Fixed-Pinned Deflection'!$K11,'Fixed-Pinned Deflection'!$F11) - Ellip_F(BE3,'Fixed-Pinned Deflection'!$F11) + Ellip_F('Fixed-Pinned Deflection'!$K11,'Fixed-Pinned Deflection'!$F11)) +2*'Fixed-Pinned Deflection'!$F11*SIN('Fixed-Pinned Deflection'!$J11)*(COS(BE3) - COS('Fixed-Pinned Deflection'!$K11))) -> 0.5453731634 | BF4: =-L/SQRT('Fixed-Pinned Deflection'!$I11)*(COS('Fixed-Pinned Deflection'!$J11)*(2*Ellip_E(BF3,'Fixed-Pinned Deflection'!$F11) - 2*Ellip_E('Fixed-Pinned Deflection'!$K11,'Fixed-Pinned Deflection'!$F11) - Ellip_F(BF3,'Fixed-Pinned Deflection'!$F11) + Ellip_F('Fixed-Pinned Deflection'!$K11,'Fixed-Pinned Deflection'!$F11)) +2*'Fixed-Pinned Deflection'!$F11*SIN('Fixed-Pinned Deflection'!$J11)*(COS(BF3) - COS('Fixed-Pinned Deflection'!$K11))) -> 0.5554050176 | BG4: =-L/SQRT('Fixed-Pinned Deflection'!$I11)*(COS('Fixed-Pinned Deflection'!$J11)*(2*Ellip_E(BG3,'Fixed-Pinned Deflection'!$F11) - 2*Ellip_E('Fixed-Pinned Deflection'!$K11,'Fixed-Pinned Deflection'!$F11) - Ellip_F(BG3,'Fixed-Pinned Deflection'!$F11) + Ellip_F('Fixed-Pinned Deflection'!$K11,'Fixed-Pinned Deflection'!$F11)) +2*'Fixed-Pinned Deflection'!$F11*SIN('Fixed-Pinned Deflection'!$J11)*(COS(BG3) - COS('Fixed-Pinned Deflection'!$K11))) -> 0.5654397729 | BH4: =-L/SQRT('Fixed-Pinned Deflection'!$I11)*(COS('Fixed-Pinned Deflection'!$J11)*(2*Ellip_E(BH3,'Fixed-Pinned Deflection'!$F11) - 2*Ellip_E('Fixed-Pinned Deflection'!$K11,'Fixed-Pinned Deflection'!$F11) - Ellip_F(BH3,'Fixed-Pinned Deflection'!$F11) + Ellip_F('Fixed-Pinned Deflection'!$K11,'Fixed-Pinned Deflection'!$F11)) +2*'Fixed-Pinned Deflection'!$F11*SIN('Fixed-Pinned Deflection'!$J11)*(COS(BH3) - COS('Fixed-Pinned Deflection'!$K11))) -> 0.5754773634 | BI4: =-L/SQRT('Fixed-Pinned Deflection'!$I11)*(COS('Fixed-Pinned Deflection'!$J11)*(2*Ellip_E(BI3,'Fixed-Pinned Deflection'!$F11) - 2*Ellip_E('Fixed-Pinned Deflection'!$K11,'Fixed-Pinned Deflection'!$F11) - Ellip_F(BI3,'Fixed-Pinned Deflection'!$F11) + Ellip_F('Fixed-Pinned Deflection'!$K11,'Fixed-Pinned Deflection'!$F11)) +2*'Fixed-Pinned Deflection'!$F11*SIN('Fixed-Pinned Deflection'!$J11)*(COS(BI3) - COS('Fixed-Pinned Deflection'!$K11))) -> 0.5855177236 | BJ4: =-L/SQRT('Fixed-Pinned Deflection'!$I11)*(COS('Fixed-Pinned Deflection'!$J11)*(2*Ellip_E(BJ3,'Fixed-Pinned Deflection'!$F11) - 2*Ellip_E('Fixed-Pinned Deflection'!$K11,'Fixed-Pinned Deflection'!$F11) - Ellip_F(BJ3,'Fixed-Pinned Deflection'!$F11) + Ellip_F('Fixed-Pinned Deflection'!$K11,'Fixed-Pinned Deflection'!$F11)) +2*'Fixed-Pinned Deflection'!$F11*SIN('Fixed-Pinned Deflection'!$J11)*(COS(BJ3) - COS('Fixed-Pinned Deflection'!$K11))) -> 0.5955607878 | BK4: =-L/SQRT('Fixed-Pinned Deflection'!$I11)*(COS('Fixed-Pinned Deflection'!$J11)*(2*Ellip_E(BK3,'Fixed-Pinned Deflection'!$F11) - 2*Ellip_E('Fixed-Pinned Deflection'!$K11,'Fixed-Pinned Deflection'!$F11) - Ellip_F(BK3,'Fixed-Pinned Deflection'!$F11) + Ellip_F('Fixed-Pinned Deflection'!$K11,'Fixed-Pinned Deflection'!$F11)) +2*'Fixed-Pinned Deflection'!$F11*SIN('Fixed-Pinned Deflection'!$J11)*(COS(BK3) - COS('Fixed-Pinned Deflection'!$K11))) -> 0.6056064902 | BL4: =-L/SQRT('Fixed-Pinned Deflection'!$I11)*(COS('Fixed-Pinned Deflection'!$J11)*(2*Ellip_E(BL3,'Fixed-Pinned Deflection'!$F11) - 2*Ellip_E('Fixed-Pinned Deflection'!$K11,'Fixed-Pinned Deflection'!$F11) - Ellip_F(BL3,'Fixed-Pinned Deflection'!$F11) + Ellip_F('Fixed-Pinned Deflection'!$K11,'Fixed-Pinned Deflection'!$F11)) +2*'Fixed-Pinned Deflection'!$F11*SIN('Fixed-Pinned Deflection'!$J11)*(COS(BL3) - COS('Fixed-Pinned Deflection'!$K11))) -> 0.6156547652 | BM4: =-L/SQRT('Fixed-Pinned Deflection'!$I11)*(COS('Fixed-Pinned Deflection'!$J11)*(2*Ellip_E(BM3,'Fixed-Pinned Deflection'!$F11) - 2*Ellip_E('Fixed-Pinned Deflection'!$K11,'Fixed-Pinned Deflection'!$F11) - Ellip_F(BM3,'Fixed-Pinned Deflection'!$F11) + Ellip_F('Fixed-Pinned Deflection'!$K11,'Fixed-Pinned Deflection'!$F11)) +2*'Fixed-Pinned Deflection'!$F11*SIN('Fixed-Pinned Deflection'!$J11)*(COS(BM3) - COS('Fixed-Pinned Deflection'!$K11))) -> 0.6257055469 | BN4: =-L/SQRT('Fixed-Pinned Deflection'!$I11)*(COS('Fixed-Pinned Deflection'!$J11)*(2*Ellip_E(BN3,'Fixed-Pinned Deflection'!$F11) - 2*Ellip_E('Fixed-Pinned Deflection'!$K11,'Fixed-Pinned Deflection'!$F11) - Ellip_F(BN3,'Fixed-Pinned Deflection'!$F11) + Ellip_F('Fixed-Pinned Deflection'!$K11,'Fixed-Pinned Deflection'!$F11)) +2*'Fixed-Pinned Deflection'!$F11*SIN('Fixed-Pinned Deflection'!$J11)*(COS(BN3) - COS('Fixed-Pinned Deflection'!$K11))) -> 0.6357587695 | BO4: =-L/SQRT('Fixed-Pinned Deflection'!$I11)*(COS('Fixed-Pinned Deflection'!$J11)*(2*Ellip_E(BO3,'Fixed-Pinned Deflection'!$F11) - 2*Ellip_E('Fixed-Pinned Deflection'!$K11,'Fixed-Pinned Deflection'!$F11) - Ellip_F(BO3,'Fixed-Pinned Deflection'!$F11) + Ellip_F('Fixed-Pinned Deflection'!$K11,'Fixed-Pinned Deflection'!$F11)) +2*'Fixed-Pinned Deflection'!$F11*SIN('Fixed-Pinned Deflection'!$J11)*(COS(BO3) - COS('Fixed-Pinned Deflection'!$K11))) -> 0.6458143674 | BP4: =-L/SQRT('Fixed-Pinned Deflection'!$I11)*(COS('Fixed-Pinned Deflection'!$J11)*(2*Ellip_E(BP3,'Fixed-Pinned Deflection'!$F11) - 2*Ellip_E('Fixed-Pinned Deflection'!$K11,'Fixed-Pinned Deflection'!$F11) - Ellip_F(BP3,'Fixed-Pinned Deflection'!$F11) + Ellip_F('Fixed-Pinned Deflection'!$K11,'Fixed-Pinned Deflection'!$F11)) +2*'Fixed-Pinned Deflection'!$F11*SIN('Fixed-Pinned Deflection'!$J11)*(COS(BP3) - COS('Fixed-Pinned Deflection'!$K11))) -> 0.6558722747 | BQ4: =-L/SQRT('Fixed-Pinned Deflection'!$I11)*(COS('Fixed-Pinned Deflection'!$J11)*(2*Ellip_E(BQ3,'Fixed-Pinned Deflection'!$F11) - 2*Ellip_E('Fixed-Pinned Deflection'!$K11,'Fixed-Pinned Deflection'!$F11) - Ellip_F(BQ3,'Fixed-Pinned Deflection'!$F11) + Ellip_F('Fixed-Pinned Deflection'!$K11,'Fixed-Pinned Deflection'!$F11)) +2*'Fixed-Pinned Deflection'!$F11*SIN('Fixed-Pinned Deflection'!$J11)*(COS(BQ3) - COS('Fixed-Pinned Deflection'!$K11))) -> 0.6659324256 | BR4: =-L/SQRT('Fixed-Pinned Deflection'!$I11)*(COS('Fixed-Pinned Deflection'!$J11)*(2*Ellip_E(BR3,'Fixed-Pinned Deflection'!$F11) - 2*Ellip_E('Fixed-Pinned Deflection'!$K11,'Fixed-Pinned Deflection'!$F11) - Ellip_F(BR3,'Fixed-Pinned Deflection'!$F11) + Ellip_F('Fixed-Pinned Deflection'!$K11,'Fixed-Pinned Deflection'!$F11)) +2*'Fixed-Pinned Deflection'!$F11*SIN('Fixed-Pinned Deflection'!$J11)*(COS(BR3) - COS('Fixed-Pinned Deflection'!$K11))) -> 0.6759947543 | BS4: =-L/SQRT('Fixed-Pinned Deflection'!$I11)*(COS('Fixed-Pinned Deflection'!$J11)*(2*Ellip_E(BS3,'Fixed-Pinned Deflection'!$F11) - 2*Ellip_E('Fixed-Pinned Deflection'!$K11,'Fixed-Pinned Deflection'!$F11) - Ellip_F(BS3,'Fixed-Pinned Deflection'!$F11) + Ellip_F('Fixed-Pinned Deflection'!$K11,'Fixed-Pinned Deflection'!$F11)) +2*'Fixed-Pinned Deflection'!$F11*SIN('Fixed-Pinned Deflection'!$J11)*(COS(BS3) - COS('Fixed-Pinned Deflection'!$K11))) -> 0.6860591948 | BT4: =-L/SQRT('Fixed-Pinned Deflection'!$I11)*(COS('Fixed-Pinned Deflection'!$J11)*(2*Ellip_E(BT3,'Fixed-Pinned Deflection'!$F11) - 2*Ellip_E('Fixed-Pinned Deflection'!$K11,'Fixed-Pinned Deflection'!$F11) - Ellip_F(BT3,'Fixed-Pinned Deflection'!$F11) + Ellip_F('Fixed-Pinned Deflection'!$K11,'Fixed-Pinned Deflection'!$F11)) +2*'Fixed-Pinned Deflection'!$F11*SIN('Fixed-Pinned Deflection'!$J11)*(COS(BT3) - COS('Fixed-Pinned Deflection'!$K11))) -> 0.6961256815 | BU4: =-L/SQRT('Fixed-Pinned Deflection'!$I11)*(COS('Fixed-Pinned Deflection'!$J11)*(2*Ellip_E(BU3,'Fixed-Pinned Deflection'!$F11) - 2*Ellip_E('Fixed-Pinned Deflection'!$K11,'Fixed-Pinned Deflection'!$F11) - Ellip_F(BU3,'Fixed-Pinned Deflection'!$F11) + Ellip_F('Fixed-Pinned Deflection'!$K11,'Fixed-Pinned Deflection'!$F11)) +2*'Fixed-Pinned Deflection'!$F11*SIN('Fixed-Pinned Deflection'!$J11)*(COS(BU3) - COS('Fixed-Pinned Deflection'!$K11))) -> 0.7061941483 | BV4: =-L/SQRT('Fixed-Pinned Deflection'!$I11)*(COS('Fixed-Pinned Deflection'!$J11)*(2*Ellip_E(BV3,'Fixed-Pinned Deflection'!$F11) - 2*Ellip_E('Fixed-Pinned Deflection'!$K11,'Fixed-Pinned Deflection'!$F11) - Ellip_F(BV3,'Fixed-Pinned Deflection'!$F11) + Ellip_F('Fixed-Pinned Deflection'!$K11,'Fixed-Pinned Deflection'!$F11)) +2*'Fixed-Pinned Deflection'!$F11*SIN('Fixed-Pinned Deflection'!$J11)*(COS(BV3) - COS('Fixed-Pinned Deflection'!$K11))) -> 0.7162645294 | BW4: =-L/SQRT('Fixed-Pinned Deflection'!$I11)*(COS('Fixed-Pinned Deflection'!$J11)*(2*Ellip_E(BW3,'Fixed-Pinned Deflection'!$F11) - 2*Ellip_E('Fixed-Pinned Deflection'!$K11,'Fixed-Pinned Deflection'!$F11) - Ellip_F(BW3,'Fixed-Pinned Deflection'!$F11) + Ellip_F('Fixed-Pinned Deflection'!$K11,'Fixed-Pinned Deflection'!$F11)) +2*'Fixed-Pinned Deflection'!$F11*SIN('Fixed-Pinned Deflection'!$J11)*(COS(BW3) - COS('Fixed-Pinned Deflection'!$K11))) -> 0.726336759 | BX4: =-L/SQRT('Fixed-Pinned Deflection'!$I11)*(COS('Fixed-Pinned Deflection'!$J11)*(2*Ellip_E(BX3,'Fixed-Pinned Deflection'!$F11) - 2*Ellip_E('Fixed-Pinned Deflection'!$K11,'Fixed-Pinned Deflection'!$F11) - Ellip_F(BX3,'Fixed-Pinned Deflection'!$F11) + Ellip_F('Fixed-Pinned Deflection'!$K11,'Fixed-Pinned Deflection'!$F11)) +2*'Fixed-Pinned Deflection'!$F11*SIN('Fixed-Pinned Deflection'!$J11)*(COS(BX3) - COS('Fixed-Pinned Deflection'!$K11))) -> 0.7364107711 | BY4: =-L/SQRT('Fixed-Pinned Deflection'!$I11)*(COS('Fixed-Pinned Deflection'!$J11)*(2*Ellip_E(BY3,'Fixed-Pinned Deflection'!$F11) - 2*Ellip_E('Fixed-Pinned Deflection'!$K11,'Fixed-Pinned Deflection'!$F11) - Ellip_F(BY3,'Fixed-Pinned Deflection'!$F11) + Ellip_F('Fixed-Pinned Deflection'!$K11,'Fixed-Pinned Deflection'!$F11)) +2*'Fixed-Pinned Deflection'!$F11*SIN('Fixed-Pinned Deflection'!$J11)*(COS(BY3) - COS('Fixed-Pinned Deflection'!$K11))) -> 0.7464864997 | BZ4: =-L/SQRT('Fixed-Pinned Deflection'!$I11)*(COS('Fixed-Pinned Deflection'!$J11)*(2*Ellip_E(BZ3,'Fixed-Pinned Deflection'!$F11) - 2*Ellip_E('Fixed-Pinned Deflection'!$K11,'Fixed-Pinned Deflection'!$F11) - Ellip_F(BZ3,'Fixed-Pinned Deflection'!$F11) + Ellip_F('Fixed-Pinned Deflection'!$K11,'Fixed-Pinned Deflection'!$F11)) +2*'Fixed-Pinned Deflection'!$F11*SIN('Fixed-Pinned Deflection'!$J11)*(COS(BZ3) - COS('Fixed-Pinned Deflection'!$K11))) -> 0.756563879 | CA4: =-L/SQRT('Fixed-Pinned Deflection'!$I11)*(COS('Fixed-Pinned Deflection'!$J11)*(2*Ellip_E(CA3,'Fixed-Pinned Deflection'!$F11) - 2*Ellip_E('Fixed-Pinned Deflection'!$K11,'Fixed-Pinned Deflection'!$F11) - Ellip_F(CA3,'Fixed-Pinned Deflection'!$F11) + Ellip_F('Fixed-Pinned Deflection'!$K11,'Fixed-Pinned Deflection'!$F11)) +2*'Fixed-Pinned Deflection'!$F11*SIN('Fixed-Pinned Deflection'!$J11)*(COS(CA3) - COS('Fixed-Pinned Deflection'!$K11))) -> 0.7666428431 | CB4: =-L/SQRT('Fixed-Pinned Deflection'!$I11)*(COS('Fixed-Pinned Deflection'!$J11)*(2*Ellip_E(CB3,'Fixed-Pinned Deflection'!$F11) - 2*Ellip_E('Fixed-Pinned Deflection'!$K11,'Fixed-Pinned Deflection'!$F11) - Ellip_F(CB3,'Fixed-Pinned Deflection'!$F11) + Ellip_F('Fixed-Pinned Deflection'!$K11,'Fixed-Pinned Deflection'!$F11)) +2*'Fixed-Pinned Deflection'!$F11*SIN('Fixed-Pinned Deflection'!$J11)*(COS(CB3) - COS('Fixed-Pinned Deflection'!$K11))) -> 0.7767233258 | CC4: =-L/SQRT('Fixed-Pinned Deflection'!$I11)*(COS('Fixed-Pinned Deflection'!$J11)*(2*Ellip_E(CC3,'Fixed-Pinned Deflection'!$F11) - 2*Ellip_E('Fixed-Pinned Deflection'!$K11,'Fixed-Pinned Deflection'!$F11) - Ellip_F(CC3,'Fixed-Pinned Deflection'!$F11) + Ellip_F('Fixed-Pinned Deflection'!$K11,'Fixed-Pinned Deflection'!$F11)) +2*'Fixed-Pinned Deflection'!$F11*SIN('Fixed-Pinned Deflection'!$J11)*(COS(CC3) - COS('Fixed-Pinned Deflection'!$K11))) -> 0.7868052614 | CD4: =-L/SQRT('Fixed-Pinned Deflection'!$I11)*(COS('Fixed-Pinned Deflection'!$J11)*(2*Ellip_E(CD3,'Fixed-Pinned Deflection'!$F11) - 2*Ellip_E('Fixed-Pinned Deflection'!$K11,'Fixed-Pinned Deflection'!$F11) - Ellip_F(CD3,'Fixed-Pinned Deflection'!$F11) + Ellip_F('Fixed-Pinned Deflection'!$K11,'Fixed-Pinned Deflection'!$F11)) +2*'Fixed-Pinned Deflection'!$F11*SIN('Fixed-Pinned Deflection'!$J11)*(COS(CD3) - COS('Fixed-Pinned Deflection'!$K11))) -> 0.7968885839 | CE4: =-L/SQRT('Fixed-Pinned Deflection'!$I11)*(COS('Fixed-Pinned Deflection'!$J11)*(2*Ellip_E(CE3,'Fixed-Pinned Deflection'!$F11) - 2*Ellip_E('Fixed-Pinned Deflection'!$K11,'Fixed-Pinned Deflection'!$F11) - Ellip_F(CE3,'Fixed-Pinned Deflection'!$F11) + Ellip_F('Fixed-Pinned Deflection'!$K11,'Fixed-Pinned Deflection'!$F11)) +2*'Fixed-Pinned Deflection'!$F11*SIN('Fixed-Pinned Deflection'!$J11)*(COS(CE3) - COS('Fixed-Pinned Deflection'!$K11))) -> 0.8069732271 | CF4: =-L/SQRT('Fixed-Pinned Deflection'!$I11)*(COS('Fixed-Pinned Deflection'!$J11)*(2*Ellip_E(CF3,'Fixed-Pinned Deflection'!$F11) - 2*Ellip_E('Fixed-Pinned Deflection'!$K11,'Fixed-Pinned Deflection'!$F11) - Ellip_F(CF3,'Fixed-Pinned Deflection'!$F11) + Ellip_F('Fixed-Pinned Deflection'!$K11,'Fixed-Pinned Deflection'!$F11)) +2*'Fixed-Pinned Deflection'!$F11*SIN('Fixed-Pinned Deflection'!$J11)*(COS(CF3) - COS('Fixed-Pinned Deflection'!$K11))) -> 0.8170591253 | CG4: =-L/SQRT('Fixed-Pinned Deflection'!$I11)*(COS('Fixed-Pinned Deflection'!$J11)*(2*Ellip_E(CG3,'Fixed-Pinned Deflection'!$F11) - 2*Ellip_E('Fixed-Pinned Deflection'!$K11,'Fixed-Pinned Deflection'!$F11) - Ellip_F(CG3,'Fixed-Pinned Deflection'!$F11) + Ellip_F('Fixed-Pinned Deflection'!$K11,'Fixed-Pinned Deflection'!$F11)) +2*'Fixed-Pinned Deflection'!$F11*SIN('Fixed-Pinned Deflection'!$J11)*(COS(CG3) - COS('Fixed-Pinned Deflection'!$K11))) -> 0.8271462123 | CH4: =-L/SQRT('Fixed-Pinned Deflection'!$I11)*(COS('Fixed-Pinned Deflection'!$J11)*(2*Ellip_E(CH3,'Fixed-Pinned Deflection'!$F11) - 2*Ellip_E('Fixed-Pinned Deflection'!$K11,'Fixed-Pinned Deflection'!$F11) - Ellip_F(CH3,'Fixed-Pinned Deflection'!$F11) + Ellip_F('Fixed-Pinned Deflection'!$K11,'Fixed-Pinned Deflection'!$F11)) +2*'Fixed-Pinned Deflection'!$F11*SIN('Fixed-Pinned Deflection'!$J11)*(COS(CH3) - COS('Fixed-Pinned Deflection'!$K11))) -> 0.8372344221 | CI4: =-L/SQRT('Fixed-Pinned Deflection'!$I11)*(COS('Fixed-Pinned Deflection'!$J11)*(2*Ellip_E(CI3,'Fixed-Pinned Deflection'!$F11) - 2*Ellip_E('Fixed-Pinned Deflection'!$K11,'Fixed-Pinned Deflection'!$F11) - Ellip_F(CI3,'Fixed-Pinned Deflection'!$F11) + Ellip_F('Fixed-Pinned Deflection'!$K11,'Fixed-Pinned Deflection'!$F11)) +2*'Fixed-Pinned Deflection'!$F11*SIN('Fixed-Pinned Deflection'!$J11)*(COS(CI3) - COS('Fixed-Pinned Deflection'!$K11))) -> 0.8473236888 | CJ4: =-L/SQRT('Fixed-Pinned Deflection'!$I11)*(COS('Fixed-Pinned Deflection'!$J11)*(2*Ellip_E(CJ3,'Fixed-Pinned Deflection'!$F11) - 2*Ellip_E('Fixed-Pinned Deflection'!$K11,'Fixed-Pinned Deflection'!$F11) - Ellip_F(CJ3,'Fixed-Pinned Deflection'!$F11) + Ellip_F('Fixed-Pinned Deflection'!$K11,'Fixed-Pinned Deflection'!$F11)) +2*'Fixed-Pinned Deflection'!$F11*SIN('Fixed-Pinned Deflection'!$J11)*(COS(CJ3) - COS('Fixed-Pinned Deflection'!$K11))) -> 0.8574139463 | CK4: =-L/SQRT('Fixed-Pinned Deflection'!$I11)*(COS('Fixed-Pinned Deflection'!$J11)*(2*Ellip_E(CK3,'Fixed-Pinned Deflection'!$F11) - 2*Ellip_E('Fixed-Pinned Deflection'!$K11,'Fixed-Pinned Deflection'!$F11) - Ellip_F(CK3,'Fixed-Pinned Deflection'!$F11) + Ellip_F('Fixed-Pinned Deflection'!$K11,'Fixed-Pinned Deflection'!$F11)) +2*'Fixed-Pinned Deflection'!$F11*SIN('Fixed-Pinned Deflection'!$J11)*(COS(CK3) - COS('Fixed-Pinned Deflection'!$K11))) -> 0.8675051287 | CL4: =-L/SQRT('Fixed-Pinned Deflection'!$I11)*(COS('Fixed-Pinned Deflection'!$J11)*(2*Ellip_E(CL3,'Fixed-Pinned Deflection'!$F11) - 2*Ellip_E('Fixed-Pinned Deflection'!$K11,'Fixed-Pinned Deflection'!$F11) - Ellip_F(CL3,'Fixed-Pinned Deflection'!$F11) + Ellip_F('Fixed-Pinned Deflection'!$K11,'Fixed-Pinned Deflection'!$F11)) +2*'Fixed-Pinned Deflection'!$F11*SIN('Fixed-Pinned Deflection'!$J11)*(COS(CL3) - COS('Fixed-Pinned Deflection'!$K11))) -> 0.8775971697 | CM4: =-L/SQRT('Fixed-Pinned Deflection'!$I11)*(COS('Fixed-Pinned Deflection'!$J11)*(2*Ellip_E(CM3,'Fixed-Pinned Deflection'!$F11) - 2*Ellip_E('Fixed-Pinned Deflection'!$K11,'Fixed-Pinned Deflection'!$F11) - Ellip_F(CM3,'Fixed-Pinned Deflection'!$F11) + Ellip_F('Fixed-Pinned Deflection'!$K11,'Fixed-Pinned Deflection'!$F11)) +2*'Fixed-Pinned Deflection'!$F11*SIN('Fixed-Pinned Deflection'!$J11)*(COS(CM3) - COS('Fixed-Pinned Deflection'!$K11))) -> 0.8876900036 | CN4: =-L/SQRT('Fixed-Pinned Deflection'!$I11)*(COS('Fixed-Pinned Deflection'!$J11)*(2*Ellip_E(CN3,'Fixed-Pinned Deflection'!$F11) - 2*Ellip_E('Fixed-Pinned Deflection'!$K11,'Fixed-Pinned Deflection'!$F11) - Ellip_F(CN3,'Fixed-Pinned Deflection'!$F11) + Ellip_F('Fixed-Pinned Deflection'!$K11,'Fixed-Pinned Deflection'!$F11)) +2*'Fixed-Pinned Deflection'!$F11*SIN('Fixed-Pinned Deflection'!$J11)*(COS(CN3) - COS('Fixed-Pinned Deflection'!$K11))) -> 0.8977835641 | CO4: =-L/SQRT('Fixed-Pinned Deflection'!$I11)*(COS('Fixed-Pinned Deflection'!$J11)*(2*Ellip_E(CO3,'Fixed-Pinned Deflection'!$F11) - 2*Ellip_E('Fixed-Pinned Deflection'!$K11,'Fixed-Pinned Deflection'!$F11) - Ellip_F(CO3,'Fixed-Pinned Deflection'!$F11) + Ellip_F('Fixed-Pinned Deflection'!$K11,'Fixed-Pinned Deflection'!$F11)) +2*'Fixed-Pinned Deflection'!$F11*SIN('Fixed-Pinned Deflection'!$J11)*(COS(CO3) - COS('Fixed-Pinned Deflection'!$K11))) -> 0.9078777852 | CP4: =-L/SQRT('Fixed-Pinned Deflection'!$I11)*(COS('Fixed-Pinned Deflection'!$J11)*(2*Ellip_E(CP3,'Fixed-Pinned Deflection'!$F11) - 2*Ellip_E('Fixed-Pinned Deflection'!$K11,'Fixed-Pinned Deflection'!$F11) - Ellip_F(CP3,'Fixed-Pinned Deflection'!$F11) + Ellip_F('Fixed-Pinned Deflection'!$K11,'Fixed-Pinned Deflection'!$F11)) +2*'Fixed-Pinned Deflection'!$F11*SIN('Fixed-Pinned Deflection'!$J11)*(COS(CP3) - COS('Fixed-Pinned Deflection'!$K11))) -> 0.917972601 | CQ4: =-L/SQRT('Fixed-Pinned Deflection'!$I11)*(COS('Fixed-Pinned Deflection'!$J11)*(2*Ellip_E(CQ3,'Fixed-Pinned Deflection'!$F11) - 2*Ellip_E('Fixed-Pinned Deflection'!$K11,'Fixed-Pinned Deflection'!$F11) - Ellip_F(CQ3,'Fixed-Pinned Deflection'!$F11) + Ellip_F('Fixed-Pinned Deflection'!$K11,'Fixed-Pinned Deflection'!$F11)) +2*'Fixed-Pinned Deflection'!$F11*SIN('Fixed-Pinned Deflection'!$J11)*(COS(CQ3) - COS('Fixed-Pinned Deflection'!$K11))) -> 0.9280679453 | CR4: =-L/SQRT('Fixed-Pinned Deflection'!$I11)*(COS('Fixed-Pinned Deflection'!$J11)*(2*Ellip_E(CR3,'Fixed-Pinned Deflection'!$F11) - 2*Ellip_E('Fixed-Pinned Deflection'!$K11,'Fixed-Pinned Deflection'!$F11) - Ellip_F(CR3,'Fixed-Pinned Deflection'!$F11) + Ellip_F('Fixed-Pinned Deflection'!$K11,'Fixed-Pinned Deflection'!$F11)) +2*'Fixed-Pinned Deflection'!$F11*SIN('Fixed-Pinned Deflection'!$J11)*(COS(CR3) - COS('Fixed-Pinned Deflection'!$K11))) -> 0.938163752 | CS4: =-L/SQRT('Fixed-Pinned Deflection'!$I11)*(COS('Fixed-Pinned Deflection'!$J11)*(2*Ellip_E(CS3,'Fixed-Pinned Deflection'!$F11) - 2*Ellip_E('Fixed-Pinned Deflection'!$K11,'Fixed-Pinned Deflection'!$F11) - Ellip_F(CS3,'Fixed-Pinned Deflection'!$F11) + Ellip_F('Fixed-Pinned Deflection'!$K11,'Fixed-Pinned Deflection'!$F11)) +2*'Fixed-Pinned Deflection'!$F11*SIN('Fixed-Pinned Deflection'!$J11)*(COS(CS3) - COS('Fixed-Pinned Deflection'!$K11))) -> 0.9482599552 | CT4: =-L/SQRT('Fixed-Pinned Deflection'!$I11)*(COS('Fixed-Pinned Deflection'!$J11)*(2*Ellip_E(CT3,'Fixed-Pinned Deflection'!$F11) - 2*Ellip_E('Fixed-Pinned Deflection'!$K11,'Fixed-Pinned Deflection'!$F11) - Ellip_F(CT3,'Fixed-Pinned Deflection'!$F11) + Ellip_F('Fixed-Pinned Deflection'!$K11,'Fixed-Pinned Deflection'!$F11)) +2*'Fixed-Pinned Deflection'!$F11*SIN('Fixed-Pinned Deflection'!$J11)*(COS(CT3) - COS('Fixed-Pinned Deflection'!$K11))) -> 0.9583564887 | CU4: =-L/SQRT('Fixed-Pinned Deflection'!$I11)*(COS('Fixed-Pinned Deflection'!$J11)*(2*Ellip_E(CU3,'Fixed-Pinned Deflection'!$F11) - 2*Ellip_E('Fixed-Pinned Deflection'!$K11,'Fixed-Pinned Deflection'!$F11) - Ellip_F(CU3,'Fixed-Pinned Deflection'!$F11) + Ellip_F('Fixed-Pinned Deflection'!$K11,'Fixed-Pinned Deflection'!$F11)) +2*'Fixed-Pinned Deflection'!$F11*SIN('Fixed-Pinned Deflection'!$J11)*(COS(CU3) - COS('Fixed-Pinned Deflection'!$K11))) -> 0.9684532865 | CV4: =-L/SQRT('Fixed-Pinned Deflection'!$I11)*(COS('Fixed-Pinned Deflection'!$J11)*(2*Ellip_E(CV3,'Fixed-Pinned Deflection'!$F11) - 2*Ellip_E('Fixed-Pinned Deflection'!$K11,'Fixed-Pinned Deflection'!$F11) - Ellip_F(CV3,'Fixed-Pinned Deflection'!$F11) + Ellip_F('Fixed-Pinned Deflection'!$K11,'Fixed-Pinned Deflection'!$F11)) +2*'Fixed-Pinned Deflection'!$F11*SIN('Fixed-Pinned Deflection'!$J11)*(COS(CV3) - COS('Fixed-Pinned Deflection'!$K11))) -> 0.9785502825 | CW4: =-L/SQRT('Fixed-Pinned Deflection'!$I11)*(COS('Fixed-Pinned Deflection'!$J11)*(2*Ellip_E(CW3,'Fixed-Pinned Deflection'!$F11) - 2*Ellip_E('Fixed-Pinned Deflection'!$K11,'Fixed-Pinned Deflection'!$F11) - Ellip_F(CW3,'Fixed-Pinned Deflection'!$F11) + Ellip_F('Fixed-Pinned Deflection'!$K11,'Fixed-Pinned Deflection'!$F11)) +2*'Fixed-Pinned Deflection'!$F11*SIN('Fixed-Pinned Deflection'!$J11)*(COS(CW3) - COS('Fixed-Pinned Deflection'!$K11))) -> 0.9886474106 | CX4: =-L/SQRT('Fixed-Pinned Deflection'!$I11)*(COS('Fixed-Pinned Deflection'!$J11)*(2*Ellip_E(CX3,'Fixed-Pinned Deflection'!$F11) - 2*Ellip_E('Fixed-Pinned Deflection'!$K11,'Fixed-Pinned Deflection'!$F11) - Ellip_F(CX3,'Fixed-Pinned Deflection'!$F11) + Ellip_F('Fixed-Pinned Deflection'!$K11,'Fixed-Pinned Deflection'!$F11)) +2*'Fixed-Pinned Deflection'!$F11*SIN('Fixed-Pinned Deflection'!$J11)*(COS(CX3) - COS('Fixed-Pinned Deflection'!$K11))) -> 0.9987446048
A5: y | B5: =-L/SQRT('Fixed-Pinned Deflection'!$I$11)*(SIN('Fixed-Pinned Deflection'!$J$11)*(2*Ellip_E(B$3,'Fixed-Pinned Deflection'!$F$11) - 2*Ellip_E('Fixed-Pinned Deflection'!$K$11,'Fixed-Pinned Deflection'!$F$11) - Ellip_F(B$3,'Fixed-Pinned Deflection'!$F$11) + Ellip_F('Fixed-Pinned Deflection'!$K$11,'Fixed-Pinned Deflection'!$F$11)) +2*'Fixed-Pinned Deflection'!$F$11*COS('Fixed-Pinned Deflection'!$J$11)*(-COS(B$3) + COS('Fixed-Pinned Deflection'!$K$11))) -> 0 | C5: =-L/SQRT('Fixed-Pinned Deflection'!$I$11)*(SIN('Fixed-Pinned Deflection'!$J$11)*(2*Ellip_E(C$3,'Fixed-Pinned Deflection'!$F$11) - 2*Ellip_E('Fixed-Pinned Deflection'!$K$11,'Fixed-Pinned Deflection'!$F$11) - Ellip_F(C$3,'Fixed-Pinned Deflection'!$F$11) + Ellip_F('Fixed-Pinned Deflection'!$K$11,'Fixed-Pinned Deflection'!$F$11)) +2*'Fixed-Pinned Deflection'!$F$11*COS('Fixed-Pinned Deflection'!$J$11)*(-COS(C$3) + COS('Fixed-Pinned Deflection'!$K$11))) -> 6.518346031e-06 | D5: =-L/SQRT('Fixed-Pinned Deflection'!$I$11)*(SIN('Fixed-Pinned Deflection'!$J$11)*(2*Ellip_E(D$3,'Fixed-Pinned Deflection'!$F$11) - 2*Ellip_E('Fixed-Pinned Deflection'!$K$11,'Fixed-Pinned Deflection'!$F$11) - Ellip_F(D$3,'Fixed-Pinned Deflection'!$F$11) + Ellip_F('Fixed-Pinned Deflection'!$K$11,'Fixed-Pinned Deflection'!$F$11)) +2*'Fixed-Pinned Deflection'!$F$11*COS('Fixed-Pinned Deflection'!$J$11)*(-COS(D$3) + COS('Fixed-Pinned Deflection'!$K$11))) -> 2.600526126e-05 | E5: =-L/SQRT('Fixed-Pinned Deflection'!$I$11)*(SIN('Fixed-Pinned Deflection'!$J$11)*(2*Ellip_E(E$3,'Fixed-Pinned Deflection'!$F$11) - 2*Ellip_E('Fixed-Pinned Deflection'!$K$11,'Fixed-Pinned Deflection'!$F$11) - Ellip_F(E$3,'Fixed-Pinned Deflection'!$F$11) + Ellip_F('Fixed-Pinned Deflection'!$K$11,'Fixed-Pinned Deflection'!$F$11)) +2*'Fixed-Pinned Deflection'!$F$11*COS('Fixed-Pinned Deflection'!$J$11)*(-COS(E$3) + COS('Fixed-Pinned Deflection'!$K$11))) -> 5.835798851e-05 | F5: =-L/SQRT('Fixed-Pinned Deflection'!$I$11)*(SIN('Fixed-Pinned Deflection'!$J$11)*(2*Ellip_E(F$3,'Fixed-Pinned Deflection'!$F$11) - 2*Ellip_E('Fixed-Pinned Deflection'!$K$11,'Fixed-Pinned Deflection'!$F$11) - Ellip_F(F$3,'Fixed-Pinned Deflection'!$F$11) + Ellip_F('Fixed-Pinned Deflection'!$K$11,'Fixed-Pinned Deflection'!$F$11)) +2*'Fixed-Pinned Deflection'!$F$11*COS('Fixed-Pinned Deflection'!$J$11)*(-COS(F$3) + COS('Fixed-Pinned Deflection'!$K$11))) -> 0.0001034730093 | G5: =-L/SQRT('Fixed-Pinned Deflection'!$I$11)*(SIN('Fixed-Pinned Deflection'!$J$11)*(2*Ellip_E(G$3,'Fixed-Pinned Deflection'!$F$11) - 2*Ellip_E('Fixed-Pinned Deflection'!$K$11,'Fixed-Pinned Deflection'!$F$11) - Ellip_F(G$3,'Fixed-Pinned Deflection'!$F$11) + Ellip_F('Fixed-Pinned Deflection'!$K$11,'Fixed-Pinned Deflection'!$F$11)) +2*'Fixed-Pinned Deflection'!$F$11*COS('Fixed-Pinned Deflection'!$J$11)*(-COS(G$3) + COS('Fixed-Pinned Deflection'!$K$11))) -> 0.0001612460471 | H5: =-L/SQRT('Fixed-Pinned Deflection'!$I$11)*(SIN('Fixed-Pinned Deflection'!$J$11)*(2*Ellip_E(H$3,'Fixed-Pinned Deflection'!$F$11) - 2*Ellip_E('Fixed-Pinned Deflection'!$K$11,'Fixed-Pinned Deflection'!$F$11) - Ellip_F(H$3,'Fixed-Pinned Deflection'!$F$11) + Ellip_F('Fixed-Pinned Deflection'!$K$11,'Fixed-Pinned Deflection'!$F$11)) +2*'Fixed-Pinned Deflection'!$F$11*COS('Fixed-Pinned Deflection'!$J$11)*(-COS(H$3) + COS('Fixed-Pinned Deflection'!$K$11))) -> 0.0002315720707 | I5: =-L/SQRT('Fixed-Pinned Deflection'!$I$11)*(SIN('Fixed-Pinned Deflection'!$J$11)*(2*Ellip_E(I$3,'Fixed-Pinned Deflection'!$F$11) - 2*Ellip_E('Fixed-Pinned Deflection'!$K$11,'Fixed-Pinned Deflection'!$F$11) - Ellip_F(I$3,'Fixed-Pinned Deflection'!$F$11) + Ellip_F('Fixed-Pinned Deflection'!$K$11,'Fixed-Pinned Deflection'!$F$11)) +2*'Fixed-Pinned Deflection'!$F$11*COS('Fixed-Pinned Deflection'!$J$11)*(-COS(I$3) + COS('Fixed-Pinned Deflection'!$K$11))) -> 0.0003143452977 | J5: =-L/SQRT('Fixed-Pinned Deflection'!$I$11)*(SIN('Fixed-Pinned Deflection'!$J$11)*(2*Ellip_E(J$3,'Fixed-Pinned Deflection'!$F$11) - 2*Ellip_E('Fixed-Pinned Deflection'!$K$11,'Fixed-Pinned Deflection'!$F$11) - Ellip_F(J$3,'Fixed-Pinned Deflection'!$F$11) + Ellip_F('Fixed-Pinned Deflection'!$K$11,'Fixed-Pinned Deflection'!$F$11)) +2*'Fixed-Pinned Deflection'!$F$11*COS('Fixed-Pinned Deflection'!$J$11)*(-COS(J$3) + COS('Fixed-Pinned Deflection'!$K$11))) -> 0.0004094591979 | K5: =-L/SQRT('Fixed-Pinned Deflection'!$I$11)*(SIN('Fixed-Pinned Deflection'!$J$11)*(2*Ellip_E(K$3,'Fixed-Pinned Deflection'!$F$11) - 2*Ellip_E('Fixed-Pinned Deflection'!$K$11,'Fixed-Pinned Deflection'!$F$11) - Ellip_F(K$3,'Fixed-Pinned Deflection'!$F$11) + Ellip_F('Fixed-Pinned Deflection'!$K$11,'Fixed-Pinned Deflection'!$F$11)) +2*'Fixed-Pinned Deflection'!$F$11*COS('Fixed-Pinned Deflection'!$J$11)*(-COS(K$3) + COS('Fixed-Pinned Deflection'!$K$11))) -> 0.0005168064974 | L5: =-L/SQRT('Fixed-Pinned Deflection'!$I$11)*(SIN('Fixed-Pinned Deflection'!$J$11)*(2*Ellip_E(L$3,'Fixed-Pinned Deflection'!$F$11) - 2*Ellip_E('Fixed-Pinned Deflection'!$K$11,'Fixed-Pinned Deflection'!$F$11) - Ellip_F(L$3,'Fixed-Pinned Deflection'!$F$11) + Ellip_F('Fixed-Pinned Deflection'!$K$11,'Fixed-Pinned Deflection'!$F$11)) +2*'Fixed-Pinned Deflection'!$F$11*COS('Fixed-Pinned Deflection'!$J$11)*(-COS(L$3) + COS('Fixed-Pinned Deflection'!$K$11))) -> 0.0006362791818 | M5: =-L/SQRT('Fixed-Pinned Deflection'!$I$11)*(SIN('Fixed-Pinned Deflection'!$J$11)*(2*Ellip_E(M$3,'Fixed-Pinned Deflection'!$F$11) - 2*Ellip_E('Fixed-Pinned Deflection'!$K$11,'Fixed-Pinned Deflection'!$F$11) - Ellip_F(M$3,'Fixed-Pinned Deflection'!$F$11) + Ellip_F('Fixed-Pinned Deflection'!$K$11,'Fixed-Pinned Deflection'!$F$11)) +2*'Fixed-Pinned Deflection'!$F$11*COS('Fixed-Pinned Deflection'!$J$11)*(-COS(M$3) + COS('Fixed-Pinned Deflection'!$K$11))) -> 0.0007677685008 | N5: =-L/SQRT('Fixed-Pinned Deflection'!$I$11)*(SIN('Fixed-Pinned Deflection'!$J$11)*(2*Ellip_E(N$3,'Fixed-Pinned Deflection'!$F$11) - 2*Ellip_E('Fixed-Pinned Deflection'!$K$11,'Fixed-Pinned Deflection'!$F$11) - Ellip_F(N$3,'Fixed-Pinned Deflection'!$F$11) + Ellip_F('Fixed-Pinned Deflection'!$K$11,'Fixed-Pinned Deflection'!$F$11)) +2*'Fixed-Pinned Deflection'!$F$11*COS('Fixed-Pinned Deflection'!$J$11)*(-COS(N$3) + COS('Fixed-Pinned Deflection'!$K$11))) -> 0.0009111649714 | O5: =-L/SQRT('Fixed-Pinned Deflection'!$I$11)*(SIN('Fixed-Pinned Deflection'!$J$11)*(2*Ellip_E(O$3,'Fixed-Pinned Deflection'!$F$11) - 2*Ellip_E('Fixed-Pinned Deflection'!$K$11,'Fixed-Pinned Deflection'!$F$11) - Ellip_F(O$3,'Fixed-Pinned Deflection'!$F$11) + Ellip_F('Fixed-Pinned Deflection'!$K$11,'Fixed-Pinned Deflection'!$F$11)) +2*'Fixed-Pinned Deflection'!$F$11*COS('Fixed-Pinned Deflection'!$J$11)*(-COS(O$3) + COS('Fixed-Pinned Deflection'!$K$11))) -> 0.001066358383 | P5: =-L/SQRT('Fixed-Pinned Deflection'!$I$11)*(SIN('Fixed-Pinned Deflection'!$J$11)*(2*Ellip_E(P$3,'Fixed-Pinned Deflection'!$F$11) - 2*Ellip_E('Fixed-Pinned Deflection'!$K$11,'Fixed-Pinned Deflection'!$F$11) - Ellip_F(P$3,'Fixed-Pinned Deflection'!$F$11) + Ellip_F('Fixed-Pinned Deflection'!$K$11,'Fixed-Pinned Deflection'!$F$11)) +2*'Fixed-Pinned Deflection'!$F$11*COS('Fixed-Pinned Deflection'!$J$11)*(-COS(P$3) + COS('Fixed-Pinned Deflection'!$K$11))) -> 0.0012332378 | Q5: =-L/SQRT('Fixed-Pinned Deflection'!$I$11)*(SIN('Fixed-Pinned Deflection'!$J$11)*(2*Ellip_E(Q$3,'Fixed-Pinned Deflection'!$F$11) - 2*Ellip_E('Fixed-Pinned Deflection'!$K$11,'Fixed-Pinned Deflection'!$F$11) - Ellip_F(Q$3,'Fixed-Pinned Deflection'!$F$11) + Ellip_F('Fixed-Pinned Deflection'!$K$11,'Fixed-Pinned Deflection'!$F$11)) +2*'Fixed-Pinned Deflection'!$F$11*COS('Fixed-Pinned Deflection'!$J$11)*(-COS(Q$3) + COS('Fixed-Pinned Deflection'!$K$11))) -> 0.001411691568 | R5: =-L/SQRT('Fixed-Pinned Deflection'!$I$11)*(SIN('Fixed-Pinned Deflection'!$J$11)*(2*Ellip_E(R$3,'Fixed-Pinned Deflection'!$F$11) - 2*Ellip_E('Fixed-Pinned Deflection'!$K$11,'Fixed-Pinned Deflection'!$F$11) - Ellip_F(R$3,'Fixed-Pinned Deflection'!$F$11) + Ellip_F('Fixed-Pinned Deflection'!$K$11,'Fixed-Pinned Deflection'!$F$11)) +2*'Fixed-Pinned Deflection'!$F$11*COS('Fixed-Pinned Deflection'!$J$11)*(-COS(R$3) + COS('Fixed-Pinned Deflection'!$K$11))) -> 0.001601607317 | S5: =-L/SQRT('Fixed-Pinned Deflection'!$I$11)*(SIN('Fixed-Pinned Deflection'!$J$11)*(2*Ellip_E(S$3,'Fixed-Pinned Deflection'!$F$11) - 2*Ellip_E('Fixed-Pinned Deflection'!$K$11,'Fixed-Pinned Deflection'!$F$11) - Ellip_F(S$3,'Fixed-Pinned Deflection'!$F$11) + Ellip_F('Fixed-Pinned Deflection'!$K$11,'Fixed-Pinned Deflection'!$F$11)) +2*'Fixed-Pinned Deflection'!$F$11*COS('Fixed-Pinned Deflection'!$J$11)*(-COS(S$3) + COS('Fixed-Pinned Deflection'!$K$11))) -> 0.001802871967 | T5: =-L/SQRT('Fixed-Pinned Deflection'!$I$11)*(SIN('Fixed-Pinned Deflection'!$J$11)*(2*Ellip_E(T$3,'Fixed-Pinned Deflection'!$F$11) - 2*Ellip_E('Fixed-Pinned Deflection'!$K$11,'Fixed-Pinned Deflection'!$F$11) - Ellip_F(T$3,'Fixed-Pinned Deflection'!$F$11) + Ellip_F('Fixed-Pinned Deflection'!$K$11,'Fixed-Pinned Deflection'!$F$11)) +2*'Fixed-Pinned Deflection'!$F$11*COS('Fixed-Pinned Deflection'!$J$11)*(-COS(T$3) + COS('Fixed-Pinned Deflection'!$K$11))) -> 0.002015371731 | U5: =-L/SQRT('Fixed-Pinned Deflection'!$I$11)*(SIN('Fixed-Pinned Deflection'!$J$11)*(2*Ellip_E(U$3,'Fixed-Pinned Deflection'!$F$11) - 2*Ellip_E('Fixed-Pinned Deflection'!$K$11,'Fixed-Pinned Deflection'!$F$11) - Ellip_F(U$3,'Fixed-Pinned Deflection'!$F$11) + Ellip_F('Fixed-Pinned Deflection'!$K$11,'Fixed-Pinned Deflection'!$F$11)) +2*'Fixed-Pinned Deflection'!$F$11*COS('Fixed-Pinned Deflection'!$J$11)*(-COS(U$3) + COS('Fixed-Pinned Deflection'!$K$11))) -> 0.002238992121 | V5: =-L/SQRT('Fixed-Pinned Deflection'!$I$11)*(SIN('Fixed-Pinned Deflection'!$J$11)*(2*Ellip_E(V$3,'Fixed-Pinned Deflection'!$F$11) - 2*Ellip_E('Fixed-Pinned Deflection'!$K$11,'Fixed-Pinned Deflection'!$F$11) - Ellip_F(V$3,'Fixed-Pinned Deflection'!$F$11) + Ellip_F('Fixed-Pinned Deflection'!$K$11,'Fixed-Pinned Deflection'!$F$11)) +2*'Fixed-Pinned Deflection'!$F$11*COS('Fixed-Pinned Deflection'!$J$11)*(-COS(V$3) + COS('Fixed-Pinned Deflection'!$K$11))) -> 0.002473617952 | W5: =-L/SQRT('Fixed-Pinned Deflection'!$I$11)*(SIN('Fixed-Pinned Deflection'!$J$11)*(2*Ellip_E(W$3,'Fixed-Pinned Deflection'!$F$11) - 2*Ellip_E('Fixed-Pinned Deflection'!$K$11,'Fixed-Pinned Deflection'!$F$11) - Ellip_F(W$3,'Fixed-Pinned Deflection'!$F$11) + Ellip_F('Fixed-Pinned Deflection'!$K$11,'Fixed-Pinned Deflection'!$F$11)) +2*'Fixed-Pinned Deflection'!$F$11*COS('Fixed-Pinned Deflection'!$J$11)*(-COS(W$3) + COS('Fixed-Pinned Deflection'!$K$11))) -> 0.002719133349 | X5: =-L/SQRT('Fixed-Pinned Deflection'!$I$11)*(SIN('Fixed-Pinned Deflection'!$J$11)*(2*Ellip_E(X$3,'Fixed-Pinned Deflection'!$F$11) - 2*Ellip_E('Fixed-Pinned Deflection'!$K$11,'Fixed-Pinned Deflection'!$F$11) - Ellip_F(X$3,'Fixed-Pinned Deflection'!$F$11) + Ellip_F('Fixed-Pinned Deflection'!$K$11,'Fixed-Pinned Deflection'!$F$11)) +2*'Fixed-Pinned Deflection'!$F$11*COS('Fixed-Pinned Deflection'!$J$11)*(-COS(X$3) + COS('Fixed-Pinned Deflection'!$K$11))) -> 0.002975421749 | Y5: =-L/SQRT('Fixed-Pinned Deflection'!$I$11)*(SIN('Fixed-Pinned Deflection'!$J$11)*(2*Ellip_E(Y$3,'Fixed-Pinned Deflection'!$F$11) - 2*Ellip_E('Fixed-Pinned Deflection'!$K$11,'Fixed-Pinned Deflection'!$F$11) - Ellip_F(Y$3,'Fixed-Pinned Deflection'!$F$11) + Ellip_F('Fixed-Pinned Deflection'!$K$11,'Fixed-Pinned Deflection'!$F$11)) +2*'Fixed-Pinned Deflection'!$F$11*COS('Fixed-Pinned Deflection'!$J$11)*(-COS(Y$3) + COS('Fixed-Pinned Deflection'!$K$11))) -> 0.003242365909 | Z5: =-L/SQRT('Fixed-Pinned Deflection'!$I$11)*(SIN('Fixed-Pinned Deflection'!$J$11)*(2*Ellip_E(Z$3,'Fixed-Pinned Deflection'!$F$11) - 2*Ellip_E('Fixed-Pinned Deflection'!$K$11,'Fixed-Pinned Deflection'!$F$11) - Ellip_F(Z$3,'Fixed-Pinned Deflection'!$F$11) + Ellip_F('Fixed-Pinned Deflection'!$K$11,'Fixed-Pinned Deflection'!$F$11)) +2*'Fixed-Pinned Deflection'!$F$11*COS('Fixed-Pinned Deflection'!$J$11)*(-COS(Z$3) + COS('Fixed-Pinned Deflection'!$K$11))) -> 0.003519847909 | AA5: =-L/SQRT('Fixed-Pinned Deflection'!$I$11)*(SIN('Fixed-Pinned Deflection'!$J$11)*(2*Ellip_E(AA$3,'Fixed-Pinned Deflection'!$F$11) - 2*Ellip_E('Fixed-Pinned Deflection'!$K$11,'Fixed-Pinned Deflection'!$F$11) - Ellip_F(AA$3,'Fixed-Pinned Deflection'!$F$11) + Ellip_F('Fixed-Pinned Deflection'!$K$11,'Fixed-Pinned Deflection'!$F$11)) +2*'Fixed-Pinned Deflection'!$F$11*COS('Fixed-Pinned Deflection'!$J$11)*(-COS(AA$3) + COS('Fixed-Pinned Deflection'!$K$11))) -> 0.003807749159 | AB5: =-L/SQRT('Fixed-Pinned Deflection'!$I$11)*(SIN('Fixed-Pinned Deflection'!$J$11)*(2*Ellip_E(AB$3,'Fixed-Pinned Deflection'!$F$11) - 2*Ellip_E('Fixed-Pinned Deflection'!$K$11,'Fixed-Pinned Deflection'!$F$11) - Ellip_F(AB$3,'Fixed-Pinned Deflection'!$F$11) + Ellip_F('Fixed-Pinned Deflection'!$K$11,'Fixed-Pinned Deflection'!$F$11)) +2*'Fixed-Pinned Deflection'!$F$11*COS('Fixed-Pinned Deflection'!$J$11)*(-COS(AB$3) + COS('Fixed-Pinned Deflection'!$K$11))) -> 0.004105950403 | AC5: =-L/SQRT('Fixed-Pinned Deflection'!$I$11)*(SIN('Fixed-Pinned Deflection'!$J$11)*(2*Ellip_E(AC$3,'Fixed-Pinned Deflection'!$F$11) - 2*Ellip_E('Fixed-Pinned Deflection'!$K$11,'Fixed-Pinned Deflection'!$F$11) - Ellip_F(AC$3,'Fixed-Pinned Deflection'!$F$11) + Ellip_F('Fixed-Pinned Deflection'!$K$11,'Fixed-Pinned Deflection'!$F$11)) +2*'Fixed-Pinned Deflection'!$F$11*COS('Fixed-Pinned Deflection'!$J$11)*(-COS(AC$3) + COS('Fixed-Pinned Deflection'!$K$11))) -> 0.004414331727 | AD5: =-L/SQRT('Fixed-Pinned Deflection'!$I$11)*(SIN('Fixed-Pinned Deflection'!$J$11)*(2*Ellip_E(AD$3,'Fixed-Pinned Deflection'!$F$11) - 2*Ellip_E('Fixed-Pinned Deflection'!$K$11,'Fixed-Pinned Deflection'!$F$11) - Ellip_F(AD$3,'Fixed-Pinned Deflection'!$F$11) + Ellip_F('Fixed-Pinned Deflection'!$K$11,'Fixed-Pinned Deflection'!$F$11)) +2*'Fixed-Pinned Deflection'!$F$11*COS('Fixed-Pinned Deflection'!$J$11)*(-COS(AD$3) + COS('Fixed-Pinned Deflection'!$K$11))) -> 0.004732772562 | AE5: =-L/SQRT('Fixed-Pinned Deflection'!$I$11)*(SIN('Fixed-Pinned Deflection'!$J$11)*(2*Ellip_E(AE$3,'Fixed-Pinned Deflection'!$F$11) - 2*Ellip_E('Fixed-Pinned Deflection'!$K$11,'Fixed-Pinned Deflection'!$F$11) - Ellip_F(AE$3,'Fixed-Pinned Deflection'!$F$11) + Ellip_F('Fixed-Pinned Deflection'!$K$11,'Fixed-Pinned Deflection'!$F$11)) +2*'Fixed-Pinned Deflection'!$F$11*COS('Fixed-Pinned Deflection'!$J$11)*(-COS(AE$3) + COS('Fixed-Pinned Deflection'!$K$11))) -> 0.005061151692 | AF5: =-L/SQRT('Fixed-Pinned Deflection'!$I$11)*(SIN('Fixed-Pinned Deflection'!$J$11)*(2*Ellip_E(AF$3,'Fixed-Pinned Deflection'!$F$11) - 2*Ellip_E('Fixed-Pinned Deflection'!$K$11,'Fixed-Pinned Deflection'!$F$11) - Ellip_F(AF$3,'Fixed-Pinned Deflection'!$F$11) + Ellip_F('Fixed-Pinned Deflection'!$K$11,'Fixed-Pinned Deflection'!$F$11)) +2*'Fixed-Pinned Deflection'!$F$11*COS('Fixed-Pinned Deflection'!$J$11)*(-COS(AF$3) + COS('Fixed-Pinned Deflection'!$K$11))) -> 0.005399347258 | AG5: =-L/SQRT('Fixed-Pinned Deflection'!$I$11)*(SIN('Fixed-Pinned Deflection'!$J$11)*(2*Ellip_E(AG$3,'Fixed-Pinned Deflection'!$F$11) - 2*Ellip_E('Fixed-Pinned Deflection'!$K$11,'Fixed-Pinned Deflection'!$F$11) - Ellip_F(AG$3,'Fixed-Pinned Deflection'!$F$11) + Ellip_F('Fixed-Pinned Deflection'!$K$11,'Fixed-Pinned Deflection'!$F$11)) +2*'Fixed-Pinned Deflection'!$F$11*COS('Fixed-Pinned Deflection'!$J$11)*(-COS(AG$3) + COS('Fixed-Pinned Deflection'!$K$11))) -> 0.005747236765 | AH5: =-L/SQRT('Fixed-Pinned Deflection'!$I$11)*(SIN('Fixed-Pinned Deflection'!$J$11)*(2*Ellip_E(AH$3,'Fixed-Pinned Deflection'!$F$11) - 2*Ellip_E('Fixed-Pinned Deflection'!$K$11,'Fixed-Pinned Deflection'!$F$11) - Ellip_F(AH$3,'Fixed-Pinned Deflection'!$F$11) + Ellip_F('Fixed-Pinned Deflection'!$K$11,'Fixed-Pinned Deflection'!$F$11)) +2*'Fixed-Pinned Deflection'!$F$11*COS('Fixed-Pinned Deflection'!$J$11)*(-COS(AH$3) + COS('Fixed-Pinned Deflection'!$K$11))) -> 0.006104697089 | AI5: =-L/SQRT('Fixed-Pinned Deflection'!$I$11)*(SIN('Fixed-Pinned Deflection'!$J$11)*(2*Ellip_E(AI$3,'Fixed-Pinned Deflection'!$F$11) - 2*Ellip_E('Fixed-Pinned Deflection'!$K$11,'Fixed-Pinned Deflection'!$F$11) - Ellip_F(AI$3,'Fixed-Pinned Deflection'!$F$11) + Ellip_F('Fixed-Pinned Deflection'!$K$11,'Fixed-Pinned Deflection'!$F$11)) +2*'Fixed-Pinned Deflection'!$F$11*COS('Fixed-Pinned Deflection'!$J$11)*(-COS(AI$3) + COS('Fixed-Pinned Deflection'!$K$11))) -> 0.006471604482 | AJ5: =-L/SQRT('Fixed-Pinned Deflection'!$I$11)*(SIN('Fixed-Pinned Deflection'!$J$11)*(2*Ellip_E(AJ$3,'Fixed-Pinned Deflection'!$F$11) - 2*Ellip_E('Fixed-Pinned Deflection'!$K$11,'Fixed-Pinned Deflection'!$F$11) - Ellip_F(AJ$3,'Fixed-Pinned Deflection'!$F$11) + Ellip_F('Fixed-Pinned Deflection'!$K$11,'Fixed-Pinned Deflection'!$F$11)) +2*'Fixed-Pinned Deflection'!$F$11*COS('Fixed-Pinned Deflection'!$J$11)*(-COS(AJ$3) + COS('Fixed-Pinned Deflection'!$K$11))) -> 0.006847834578 | AK5: =-L/SQRT('Fixed-Pinned Deflection'!$I$11)*(SIN('Fixed-Pinned Deflection'!$J$11)*(2*Ellip_E(AK$3,'Fixed-Pinned Deflection'!$F$11) - 2*Ellip_E('Fixed-Pinned Deflection'!$K$11,'Fixed-Pinned Deflection'!$F$11) - Ellip_F(AK$3,'Fixed-Pinned Deflection'!$F$11) + Ellip_F('Fixed-Pinned Deflection'!$K$11,'Fixed-Pinned Deflection'!$F$11)) +2*'Fixed-Pinned Deflection'!$F$11*COS('Fixed-Pinned Deflection'!$J$11)*(-COS(AK$3) + COS('Fixed-Pinned Deflection'!$K$11))) -> 0.007233262401 | AL5: =-L/SQRT('Fixed-Pinned Deflection'!$I$11)*(SIN('Fixed-Pinned Deflection'!$J$11)*(2*Ellip_E(AL$3,'Fixed-Pinned Deflection'!$F$11) - 2*Ellip_E('Fixed-Pinned Deflection'!$K$11,'Fixed-Pinned Deflection'!$F$11) - Ellip_F(AL$3,'Fixed-Pinned Deflection'!$F$11) + Ellip_F('Fixed-Pinned Deflection'!$K$11,'Fixed-Pinned Deflection'!$F$11)) +2*'Fixed-Pinned Deflection'!$F$11*COS('Fixed-Pinned Deflection'!$J$11)*(-COS(AL$3) + COS('Fixed-Pinned Deflection'!$K$11))) -> 0.00762776237 | AM5: =-L/SQRT('Fixed-Pinned Deflection'!$I$11)*(SIN('Fixed-Pinned Deflection'!$J$11)*(2*Ellip_E(AM$3,'Fixed-Pinned Deflection'!$F$11) - 2*Ellip_E('Fixed-Pinned Deflection'!$K$11,'Fixed-Pinned Deflection'!$F$11) - Ellip_F(AM$3,'Fixed-Pinned Deflection'!$F$11) + Ellip_F('Fixed-Pinned Deflection'!$K$11,'Fixed-Pinned Deflection'!$F$11)) +2*'Fixed-Pinned Deflection'!$F$11*COS('Fixed-Pinned Deflection'!$J$11)*(-COS(AM$3) + COS('Fixed-Pinned Deflection'!$K$11))) -> 0.008031208307 | AN5: =-L/SQRT('Fixed-Pinned Deflection'!$I$11)*(SIN('Fixed-Pinned Deflection'!$J$11)*(2*Ellip_E(AN$3,'Fixed-Pinned Deflection'!$F$11) - 2*Ellip_E('Fixed-Pinned Deflection'!$K$11,'Fixed-Pinned Deflection'!$F$11) - Ellip_F(AN$3,'Fixed-Pinned Deflection'!$F$11) + Ellip_F('Fixed-Pinned Deflection'!$K$11,'Fixed-Pinned Deflection'!$F$11)) +2*'Fixed-Pinned Deflection'!$F$11*COS('Fixed-Pinned Deflection'!$J$11)*(-COS(AN$3) + COS('Fixed-Pinned Deflection'!$K$11))) -> 0.008443473442 | AO5: =-L/SQRT('Fixed-Pinned Deflection'!$I$11)*(SIN('Fixed-Pinned Deflection'!$J$11)*(2*Ellip_E(AO$3,'Fixed-Pinned Deflection'!$F$11) - 2*Ellip_E('Fixed-Pinned Deflection'!$K$11,'Fixed-Pinned Deflection'!$F$11) - Ellip_F(AO$3,'Fixed-Pinned Deflection'!$F$11) + Ellip_F('Fixed-Pinned Deflection'!$K$11,'Fixed-Pinned Deflection'!$F$11)) +2*'Fixed-Pinned Deflection'!$F$11*COS('Fixed-Pinned Deflection'!$J$11)*(-COS(AO$3) + COS('Fixed-Pinned Deflection'!$K$11))) -> 0.008864430422 | AP5: =-L/SQRT('Fixed-Pinned Deflection'!$I$11)*(SIN('Fixed-Pinned Deflection'!$J$11)*(2*Ellip_E(AP$3,'Fixed-Pinned Deflection'!$F$11) - 2*Ellip_E('Fixed-Pinned Deflection'!$K$11,'Fixed-Pinned Deflection'!$F$11) - Ellip_F(AP$3,'Fixed-Pinned Deflection'!$F$11) + Ellip_F('Fixed-Pinned Deflection'!$K$11,'Fixed-Pinned Deflection'!$F$11)) +2*'Fixed-Pinned Deflection'!$F$11*COS('Fixed-Pinned Deflection'!$J$11)*(-COS(AP$3) + COS('Fixed-Pinned Deflection'!$K$11))) -> 0.009293951317 | AQ5: =-L/SQRT('Fixed-Pinned Deflection'!$I$11)*(SIN('Fixed-Pinned Deflection'!$J$11)*(2*Ellip_E(AQ$3,'Fixed-Pinned Deflection'!$F$11) - 2*Ellip_E('Fixed-Pinned Deflection'!$K$11,'Fixed-Pinned Deflection'!$F$11) - Ellip_F(AQ$3,'Fixed-Pinned Deflection'!$F$11) + Ellip_F('Fixed-Pinned Deflection'!$K$11,'Fixed-Pinned Deflection'!$F$11)) +2*'Fixed-Pinned Deflection'!$F$11*COS('Fixed-Pinned Deflection'!$J$11)*(-COS(AQ$3) + COS('Fixed-Pinned Deflection'!$K$11))) -> 0.009731907625 | AR5: =-L/SQRT('Fixed-Pinned Deflection'!$I$11)*(SIN('Fixed-Pinned Deflection'!$J$11)*(2*Ellip_E(AR$3,'Fixed-Pinned Deflection'!$F$11) - 2*Ellip_E('Fixed-Pinned Deflection'!$K$11,'Fixed-Pinned Deflection'!$F$11) - Ellip_F(AR$3,'Fixed-Pinned Deflection'!$F$11) + Ellip_F('Fixed-Pinned Deflection'!$K$11,'Fixed-Pinned Deflection'!$F$11)) +2*'Fixed-Pinned Deflection'!$F$11*COS('Fixed-Pinned Deflection'!$J$11)*(-COS(AR$3) + COS('Fixed-Pinned Deflection'!$K$11))) -> 0.01017817028 | AS5: =-L/SQRT('Fixed-Pinned Deflection'!$I$11)*(SIN('Fixed-Pinned Deflection'!$J$11)*(2*Ellip_E(AS$3,'Fixed-Pinned Deflection'!$F$11) - 2*Ellip_E('Fixed-Pinned Deflection'!$K$11,'Fixed-Pinned Deflection'!$F$11) - Ellip_F(AS$3,'Fixed-Pinned Deflection'!$F$11) + Ellip_F('Fixed-Pinned Deflection'!$K$11,'Fixed-Pinned Deflection'!$F$11)) +2*'Fixed-Pinned Deflection'!$F$11*COS('Fixed-Pinned Deflection'!$J$11)*(-COS(AS$3) + COS('Fixed-Pinned Deflection'!$K$11))) -> 0.01063260967 | AT5: =-L/SQRT('Fixed-Pinned Deflection'!$I$11)*(SIN('Fixed-Pinned Deflection'!$J$11)*(2*Ellip_E(AT$3,'Fixed-Pinned Deflection'!$F$11) - 2*Ellip_E('Fixed-Pinned Deflection'!$K$11,'Fixed-Pinned Deflection'!$F$11) - Ellip_F(AT$3,'Fixed-Pinned Deflection'!$F$11) + Ellip_F('Fixed-Pinned Deflection'!$K$11,'Fixed-Pinned Deflection'!$F$11)) +2*'Fixed-Pinned Deflection'!$F$11*COS('Fixed-Pinned Deflection'!$J$11)*(-COS(AT$3) + COS('Fixed-Pinned Deflection'!$K$11))) -> 0.01109509562 | AU5: =-L/SQRT('Fixed-Pinned Deflection'!$I$11)*(SIN('Fixed-Pinned Deflection'!$J$11)*(2*Ellip_E(AU$3,'Fixed-Pinned Deflection'!$F$11) - 2*Ellip_E('Fixed-Pinned Deflection'!$K$11,'Fixed-Pinned Deflection'!$F$11) - Ellip_F(AU$3,'Fixed-Pinned Deflection'!$F$11) + Ellip_F('Fixed-Pinned Deflection'!$K$11,'Fixed-Pinned Deflection'!$F$11)) +2*'Fixed-Pinned Deflection'!$F$11*COS('Fixed-Pinned Deflection'!$J$11)*(-COS(AU$3) + COS('Fixed-Pinned Deflection'!$K$11))) -> 0.01156549743 | AV5: =-L/SQRT('Fixed-Pinned Deflection'!$I$11)*(SIN('Fixed-Pinned Deflection'!$J$11)*(2*Ellip_E(AV$3,'Fixed-Pinned Deflection'!$F$11) - 2*Ellip_E('Fixed-Pinned Deflection'!$K$11,'Fixed-Pinned Deflection'!$F$11) - Ellip_F(AV$3,'Fixed-Pinned Deflection'!$F$11) + Ellip_F('Fixed-Pinned Deflection'!$K$11,'Fixed-Pinned Deflection'!$F$11)) +2*'Fixed-Pinned Deflection'!$F$11*COS('Fixed-Pinned Deflection'!$J$11)*(-COS(AV$3) + COS('Fixed-Pinned Deflection'!$K$11))) -> 0.01204368385 | AW5: =-L/SQRT('Fixed-Pinned Deflection'!$I$11)*(SIN('Fixed-Pinned Deflection'!$J$11)*(2*Ellip_E(AW$3,'Fixed-Pinned Deflection'!$F$11) - 2*Ellip_E('Fixed-Pinned Deflection'!$K$11,'Fixed-Pinned Deflection'!$F$11) - Ellip_F(AW$3,'Fixed-Pinned Deflection'!$F$11) + Ellip_F('Fixed-Pinned Deflection'!$K$11,'Fixed-Pinned Deflection'!$F$11)) +2*'Fixed-Pinned Deflection'!$F$11*COS('Fixed-Pinned Deflection'!$J$11)*(-COS(AW$3) + COS('Fixed-Pinned Deflection'!$K$11))) -> 0.01252952311 | AX5: =-L/SQRT('Fixed-Pinned Deflection'!$I$11)*(SIN('Fixed-Pinned Deflection'!$J$11)*(2*Ellip_E(AX$3,'Fixed-Pinned Deflection'!$F$11) - 2*Ellip_E('Fixed-Pinned Deflection'!$K$11,'Fixed-Pinned Deflection'!$F$11) - Ellip_F(AX$3,'Fixed-Pinned Deflection'!$F$11) + Ellip_F('Fixed-Pinned Deflection'!$K$11,'Fixed-Pinned Deflection'!$F$11)) +2*'Fixed-Pinned Deflection'!$F$11*COS('Fixed-Pinned Deflection'!$J$11)*(-COS(AX$3) + COS('Fixed-Pinned Deflection'!$K$11))) -> 0.01302288293 | AY5: =-L/SQRT('Fixed-Pinned Deflection'!$I$11)*(SIN('Fixed-Pinned Deflection'!$J$11)*(2*Ellip_E(AY$3,'Fixed-Pinned Deflection'!$F$11) - 2*Ellip_E('Fixed-Pinned Deflection'!$K$11,'Fixed-Pinned Deflection'!$F$11) - Ellip_F(AY$3,'Fixed-Pinned Deflection'!$F$11) + Ellip_F('Fixed-Pinned Deflection'!$K$11,'Fixed-Pinned Deflection'!$F$11)) +2*'Fixed-Pinned Deflection'!$F$11*COS('Fixed-Pinned Deflection'!$J$11)*(-COS(AY$3) + COS('Fixed-Pinned Deflection'!$K$11))) -> 0.01352363052 | AZ5: =-L/SQRT('Fixed-Pinned Deflection'!$I$11)*(SIN('Fixed-Pinned Deflection'!$J$11)*(2*Ellip_E(AZ$3,'Fixed-Pinned Deflection'!$F$11) - 2*Ellip_E('Fixed-Pinned Deflection'!$K$11,'Fixed-Pinned Deflection'!$F$11) - Ellip_F(AZ$3,'Fixed-Pinned Deflection'!$F$11) + Ellip_F('Fixed-Pinned Deflection'!$K$11,'Fixed-Pinned Deflection'!$F$11)) +2*'Fixed-Pinned Deflection'!$F$11*COS('Fixed-Pinned Deflection'!$J$11)*(-COS(AZ$3) + COS('Fixed-Pinned Deflection'!$K$11))) -> 0.01403163257 | BA5: =-L/SQRT('Fixed-Pinned Deflection'!$I$11)*(SIN('Fixed-Pinned Deflection'!$J$11)*(2*Ellip_E(BA$3,'Fixed-Pinned Deflection'!$F$11) - 2*Ellip_E('Fixed-Pinned Deflection'!$K$11,'Fixed-Pinned Deflection'!$F$11) - Ellip_F(BA$3,'Fixed-Pinned Deflection'!$F$11) + Ellip_F('Fixed-Pinned Deflection'!$K$11,'Fixed-Pinned Deflection'!$F$11)) +2*'Fixed-Pinned Deflection'!$F$11*COS('Fixed-Pinned Deflection'!$J$11)*(-COS(BA$3) + COS('Fixed-Pinned Deflection'!$K$11))) -> 0.01454675529 | BB5: =-L/SQRT('Fixed-Pinned Deflection'!$I$11)*(SIN('Fixed-Pinned Deflection'!$J$11)*(2*Ellip_E(BB$3,'Fixed-Pinned Deflection'!$F$11) - 2*Ellip_E('Fixed-Pinned Deflection'!$K$11,'Fixed-Pinned Deflection'!$F$11) - Ellip_F(BB$3,'Fixed-Pinned Deflection'!$F$11) + Ellip_F('Fixed-Pinned Deflection'!$K$11,'Fixed-Pinned Deflection'!$F$11)) +2*'Fixed-Pinned Deflection'!$F$11*COS('Fixed-Pinned Deflection'!$J$11)*(-COS(BB$3) + COS('Fixed-Pinned Deflection'!$K$11))) -> 0.01506886441 | BC5: =-L/SQRT('Fixed-Pinned Deflection'!$I$11)*(SIN('Fixed-Pinned Deflection'!$J$11)*(2*Ellip_E(BC$3,'Fixed-Pinned Deflection'!$F$11) - 2*Ellip_E('Fixed-Pinned Deflection'!$K$11,'Fixed-Pinned Deflection'!$F$11) - Ellip_F(BC$3,'Fixed-Pinned Deflection'!$F$11) + Ellip_F('Fixed-Pinned Deflection'!$K$11,'Fixed-Pinned Deflection'!$F$11)) +2*'Fixed-Pinned Deflection'!$F$11*COS('Fixed-Pinned Deflection'!$J$11)*(-COS(BC$3) + COS('Fixed-Pinned Deflection'!$K$11))) -> 0.01559782516 | BD5: =-L/SQRT('Fixed-Pinned Deflection'!$I$11)*(SIN('Fixed-Pinned Deflection'!$J$11)*(2*Ellip_E(BD$3,'Fixed-Pinned Deflection'!$F$11) - 2*Ellip_E('Fixed-Pinned Deflection'!$K$11,'Fixed-Pinned Deflection'!$F$11) - Ellip_F(BD$3,'Fixed-Pinned Deflection'!$F$11) + Ellip_F('Fixed-Pinned Deflection'!$K$11,'Fixed-Pinned Deflection'!$F$11)) +2*'Fixed-Pinned Deflection'!$F$11*COS('Fixed-Pinned Deflection'!$J$11)*(-COS(BD$3) + COS('Fixed-Pinned Deflection'!$K$11))) -> 0.01613350232 | BE5: =-L/SQRT('Fixed-Pinned Deflection'!$I$11)*(SIN('Fixed-Pinned Deflection'!$J$11)*(2*Ellip_E(BE$3,'Fixed-Pinned Deflection'!$F$11) - 2*Ellip_E('Fixed-Pinned Deflection'!$K$11,'Fixed-Pinned Deflection'!$F$11) - Ellip_F(BE$3,'Fixed-Pinned Deflection'!$F$11) + Ellip_F('Fixed-Pinned Deflection'!$K$11,'Fixed-Pinned Deflection'!$F$11)) +2*'Fixed-Pinned Deflection'!$F$11*COS('Fixed-Pinned Deflection'!$J$11)*(-COS(BE$3) + COS('Fixed-Pinned Deflection'!$K$11))) -> 0.01667576021 | BF5: =-L/SQRT('Fixed-Pinned Deflection'!$I$11)*(SIN('Fixed-Pinned Deflection'!$J$11)*(2*Ellip_E(BF$3,'Fixed-Pinned Deflection'!$F$11) - 2*Ellip_E('Fixed-Pinned Deflection'!$K$11,'Fixed-Pinned Deflection'!$F$11) - Ellip_F(BF$3,'Fixed-Pinned Deflection'!$F$11) + Ellip_F('Fixed-Pinned Deflection'!$K$11,'Fixed-Pinned Deflection'!$F$11)) +2*'Fixed-Pinned Deflection'!$F$11*COS('Fixed-Pinned Deflection'!$J$11)*(-COS(BF$3) + COS('Fixed-Pinned Deflection'!$K$11))) -> 0.01722446268 | BG5: =-L/SQRT('Fixed-Pinned Deflection'!$I$11)*(SIN('Fixed-Pinned Deflection'!$J$11)*(2*Ellip_E(BG$3,'Fixed-Pinned Deflection'!$F$11) - 2*Ellip_E('Fixed-Pinned Deflection'!$K$11,'Fixed-Pinned Deflection'!$F$11) - Ellip_F(BG$3,'Fixed-Pinned Deflection'!$F$11) + Ellip_F('Fixed-Pinned Deflection'!$K$11,'Fixed-Pinned Deflection'!$F$11)) +2*'Fixed-Pinned Deflection'!$F$11*COS('Fixed-Pinned Deflection'!$J$11)*(-COS(BG$3) + COS('Fixed-Pinned Deflection'!$K$11))) -> 0.01777947314 | BH5: =-L/SQRT('Fixed-Pinned Deflection'!$I$11)*(SIN('Fixed-Pinned Deflection'!$J$11)*(2*Ellip_E(BH$3,'Fixed-Pinned Deflection'!$F$11) - 2*Ellip_E('Fixed-Pinned Deflection'!$K$11,'Fixed-Pinned Deflection'!$F$11) - Ellip_F(BH$3,'Fixed-Pinned Deflection'!$F$11) + Ellip_F('Fixed-Pinned Deflection'!$K$11,'Fixed-Pinned Deflection'!$F$11)) +2*'Fixed-Pinned Deflection'!$F$11*COS('Fixed-Pinned Deflection'!$J$11)*(-COS(BH$3) + COS('Fixed-Pinned Deflection'!$K$11))) -> 0.01834065458 | BI5: =-L/SQRT('Fixed-Pinned Deflection'!$I$11)*(SIN('Fixed-Pinned Deflection'!$J$11)*(2*Ellip_E(BI$3,'Fixed-Pinned Deflection'!$F$11) - 2*Ellip_E('Fixed-Pinned Deflection'!$K$11,'Fixed-Pinned Deflection'!$F$11) - Ellip_F(BI$3,'Fixed-Pinned Deflection'!$F$11) + Ellip_F('Fixed-Pinned Deflection'!$K$11,'Fixed-Pinned Deflection'!$F$11)) +2*'Fixed-Pinned Deflection'!$F$11*COS('Fixed-Pinned Deflection'!$J$11)*(-COS(BI$3) + COS('Fixed-Pinned Deflection'!$K$11))) -> 0.01890786955 | BJ5: =-L/SQRT('Fixed-Pinned Deflection'!$I$11)*(SIN('Fixed-Pinned Deflection'!$J$11)*(2*Ellip_E(BJ$3,'Fixed-Pinned Deflection'!$F$11) - 2*Ellip_E('Fixed-Pinned Deflection'!$K$11,'Fixed-Pinned Deflection'!$F$11) - Ellip_F(BJ$3,'Fixed-Pinned Deflection'!$F$11) + Ellip_F('Fixed-Pinned Deflection'!$K$11,'Fixed-Pinned Deflection'!$F$11)) +2*'Fixed-Pinned Deflection'!$F$11*COS('Fixed-Pinned Deflection'!$J$11)*(-COS(BJ$3) + COS('Fixed-Pinned Deflection'!$K$11))) -> 0.01948098017 | BK5: =-L/SQRT('Fixed-Pinned Deflection'!$I$11)*(SIN('Fixed-Pinned Deflection'!$J$11)*(2*Ellip_E(BK$3,'Fixed-Pinned Deflection'!$F$11) - 2*Ellip_E('Fixed-Pinned Deflection'!$K$11,'Fixed-Pinned Deflection'!$F$11) - Ellip_F(BK$3,'Fixed-Pinned Deflection'!$F$11) + Ellip_F('Fixed-Pinned Deflection'!$K$11,'Fixed-Pinned Deflection'!$F$11)) +2*'Fixed-Pinned Deflection'!$F$11*COS('Fixed-Pinned Deflection'!$J$11)*(-COS(BK$3) + COS('Fixed-Pinned Deflection'!$K$11))) -> 0.02005984819 | BL5: =-L/SQRT('Fixed-Pinned Deflection'!$I$11)*(SIN('Fixed-Pinned Deflection'!$J$11)*(2*Ellip_E(BL$3,'Fixed-Pinned Deflection'!$F$11) - 2*Ellip_E('Fixed-Pinned Deflection'!$K$11,'Fixed-Pinned Deflection'!$F$11) - Ellip_F(BL$3,'Fixed-Pinned Deflection'!$F$11) + Ellip_F('Fixed-Pinned Deflection'!$K$11,'Fixed-Pinned Deflection'!$F$11)) +2*'Fixed-Pinned Deflection'!$F$11*COS('Fixed-Pinned Deflection'!$J$11)*(-COS(BL$3) + COS('Fixed-Pinned Deflection'!$K$11))) -> 0.0206443349 | BM5: =-L/SQRT('Fixed-Pinned Deflection'!$I$11)*(SIN('Fixed-Pinned Deflection'!$J$11)*(2*Ellip_E(BM$3,'Fixed-Pinned Deflection'!$F$11) - 2*Ellip_E('Fixed-Pinned Deflection'!$K$11,'Fixed-Pinned Deflection'!$F$11) - Ellip_F(BM$3,'Fixed-Pinned Deflection'!$F$11) + Ellip_F('Fixed-Pinned Deflection'!$K$11,'Fixed-Pinned Deflection'!$F$11)) +2*'Fixed-Pinned Deflection'!$F$11*COS('Fixed-Pinned Deflection'!$J$11)*(-COS(BM$3) + COS('Fixed-Pinned Deflection'!$K$11))) -> 0.02123430126 | BN5: =-L/SQRT('Fixed-Pinned Deflection'!$I$11)*(SIN('Fixed-Pinned Deflection'!$J$11)*(2*Ellip_E(BN$3,'Fixed-Pinned Deflection'!$F$11) - 2*Ellip_E('Fixed-Pinned Deflection'!$K$11,'Fixed-Pinned Deflection'!$F$11) - Ellip_F(BN$3,'Fixed-Pinned Deflection'!$F$11) + Ellip_F('Fixed-Pinned Deflection'!$K$11,'Fixed-Pinned Deflection'!$F$11)) +2*'Fixed-Pinned Deflection'!$F$11*COS('Fixed-Pinned Deflection'!$J$11)*(-COS(BN$3) + COS('Fixed-Pinned Deflection'!$K$11))) -> 0.02182960781 | BO5: =-L/SQRT('Fixed-Pinned Deflection'!$I$11)*(SIN('Fixed-Pinned Deflection'!$J$11)*(2*Ellip_E(BO$3,'Fixed-Pinned Deflection'!$F$11) - 2*Ellip_E('Fixed-Pinned Deflection'!$K$11,'Fixed-Pinned Deflection'!$F$11) - Ellip_F(BO$3,'Fixed-Pinned Deflection'!$F$11) + Ellip_F('Fixed-Pinned Deflection'!$K$11,'Fixed-Pinned Deflection'!$F$11)) +2*'Fixed-Pinned Deflection'!$F$11*COS('Fixed-Pinned Deflection'!$J$11)*(-COS(BO$3) + COS('Fixed-Pinned Deflection'!$K$11))) -> 0.02243011472 | BP5: =-L/SQRT('Fixed-Pinned Deflection'!$I$11)*(SIN('Fixed-Pinned Deflection'!$J$11)*(2*Ellip_E(BP$3,'Fixed-Pinned Deflection'!$F$11) - 2*Ellip_E('Fixed-Pinned Deflection'!$K$11,'Fixed-Pinned Deflection'!$F$11) - Ellip_F(BP$3,'Fixed-Pinned Deflection'!$F$11) + Ellip_F('Fixed-Pinned Deflection'!$K$11,'Fixed-Pinned Deflection'!$F$11)) +2*'Fixed-Pinned Deflection'!$F$11*COS('Fixed-Pinned Deflection'!$J$11)*(-COS(BP$3) + COS('Fixed-Pinned Deflection'!$K$11))) -> 0.0230356818 | BQ5: =-L/SQRT('Fixed-Pinned Deflection'!$I$11)*(SIN('Fixed-Pinned Deflection'!$J$11)*(2*Ellip_E(BQ$3,'Fixed-Pinned Deflection'!$F$11) - 2*Ellip_E('Fixed-Pinned Deflection'!$K$11,'Fixed-Pinned Deflection'!$F$11) - Ellip_F(BQ$3,'Fixed-Pinned Deflection'!$F$11) + Ellip_F('Fixed-Pinned Deflection'!$K$11,'Fixed-Pinned Deflection'!$F$11)) +2*'Fixed-Pinned Deflection'!$F$11*COS('Fixed-Pinned Deflection'!$J$11)*(-COS(BQ$3) + COS('Fixed-Pinned Deflection'!$K$11))) -> 0.02364616852 | BR5: =-L/SQRT('Fixed-Pinned Deflection'!$I$11)*(SIN('Fixed-Pinned Deflection'!$J$11)*(2*Ellip_E(BR$3,'Fixed-Pinned Deflection'!$F$11) - 2*Ellip_E('Fixed-Pinned Deflection'!$K$11,'Fixed-Pinned Deflection'!$F$11) - Ellip_F(BR$3,'Fixed-Pinned Deflection'!$F$11) + Ellip_F('Fixed-Pinned Deflection'!$K$11,'Fixed-Pinned Deflection'!$F$11)) +2*'Fixed-Pinned Deflection'!$F$11*COS('Fixed-Pinned Deflection'!$J$11)*(-COS(BR$3) + COS('Fixed-Pinned Deflection'!$K$11))) -> 0.02426143397 | BS5: =-L/SQRT('Fixed-Pinned Deflection'!$I$11)*(SIN('Fixed-Pinned Deflection'!$J$11)*(2*Ellip_E(BS$3,'Fixed-Pinned Deflection'!$F$11) - 2*Ellip_E('Fixed-Pinned Deflection'!$K$11,'Fixed-Pinned Deflection'!$F$11) - Ellip_F(BS$3,'Fixed-Pinned Deflection'!$F$11) + Ellip_F('Fixed-Pinned Deflection'!$K$11,'Fixed-Pinned Deflection'!$F$11)) +2*'Fixed-Pinned Deflection'!$F$11*COS('Fixed-Pinned Deflection'!$J$11)*(-COS(BS$3) + COS('Fixed-Pinned Deflection'!$K$11))) -> 0.02488133695 | BT5: =-L/SQRT('Fixed-Pinned Deflection'!$I$11)*(SIN('Fixed-Pinned Deflection'!$J$11)*(2*Ellip_E(BT$3,'Fixed-Pinned Deflection'!$F$11) - 2*Ellip_E('Fixed-Pinned Deflection'!$K$11,'Fixed-Pinned Deflection'!$F$11) - Ellip_F(BT$3,'Fixed-Pinned Deflection'!$F$11) + Ellip_F('Fixed-Pinned Deflection'!$K$11,'Fixed-Pinned Deflection'!$F$11)) +2*'Fixed-Pinned Deflection'!$F$11*COS('Fixed-Pinned Deflection'!$J$11)*(-COS(BT$3) + COS('Fixed-Pinned Deflection'!$K$11))) -> 0.02550573589 | BU5: =-L/SQRT('Fixed-Pinned Deflection'!$I$11)*(SIN('Fixed-Pinned Deflection'!$J$11)*(2*Ellip_E(BU$3,'Fixed-Pinned Deflection'!$F$11) - 2*Ellip_E('Fixed-Pinned Deflection'!$K$11,'Fixed-Pinned Deflection'!$F$11) - Ellip_F(BU$3,'Fixed-Pinned Deflection'!$F$11) + Ellip_F('Fixed-Pinned Deflection'!$K$11,'Fixed-Pinned Deflection'!$F$11)) +2*'Fixed-Pinned Deflection'!$F$11*COS('Fixed-Pinned Deflection'!$J$11)*(-COS(BU$3) + COS('Fixed-Pinned Deflection'!$K$11))) -> 0.02613448892 | BV5: =-L/SQRT('Fixed-Pinned Deflection'!$I$11)*(SIN('Fixed-Pinned Deflection'!$J$11)*(2*Ellip_E(BV$3,'Fixed-Pinned Deflection'!$F$11) - 2*Ellip_E('Fixed-Pinned Deflection'!$K$11,'Fixed-Pinned Deflection'!$F$11) - Ellip_F(BV$3,'Fixed-Pinned Deflection'!$F$11) + Ellip_F('Fixed-Pinned Deflection'!$K$11,'Fixed-Pinned Deflection'!$F$11)) +2*'Fixed-Pinned Deflection'!$F$11*COS('Fixed-Pinned Deflection'!$J$11)*(-COS(BV$3) + COS('Fixed-Pinned Deflection'!$K$11))) -> 0.02676745388 | BW5: =-L/SQRT('Fixed-Pinned Deflection'!$I$11)*(SIN('Fixed-Pinned Deflection'!$J$11)*(2*Ellip_E(BW$3,'Fixed-Pinned Deflection'!$F$11) - 2*Ellip_E('Fixed-Pinned Deflection'!$K$11,'Fixed-Pinned Deflection'!$F$11) - Ellip_F(BW$3,'Fixed-Pinned Deflection'!$F$11) + Ellip_F('Fixed-Pinned Deflection'!$K$11,'Fixed-Pinned Deflection'!$F$11)) +2*'Fixed-Pinned Deflection'!$F$11*COS('Fixed-Pinned Deflection'!$J$11)*(-COS(BW$3) + COS('Fixed-Pinned Deflection'!$K$11))) -> 0.02740448828 | BX5: =-L/SQRT('Fixed-Pinned Deflection'!$I$11)*(SIN('Fixed-Pinned Deflection'!$J$11)*(2*Ellip_E(BX$3,'Fixed-Pinned Deflection'!$F$11) - 2*Ellip_E('Fixed-Pinned Deflection'!$K$11,'Fixed-Pinned Deflection'!$F$11) - Ellip_F(BX$3,'Fixed-Pinned Deflection'!$F$11) + Ellip_F('Fixed-Pinned Deflection'!$K$11,'Fixed-Pinned Deflection'!$F$11)) +2*'Fixed-Pinned Deflection'!$F$11*COS('Fixed-Pinned Deflection'!$J$11)*(-COS(BX$3) + COS('Fixed-Pinned Deflection'!$K$11))) -> 0.02804544937 | BY5: =-L/SQRT('Fixed-Pinned Deflection'!$I$11)*(SIN('Fixed-Pinned Deflection'!$J$11)*(2*Ellip_E(BY$3,'Fixed-Pinned Deflection'!$F$11) - 2*Ellip_E('Fixed-Pinned Deflection'!$K$11,'Fixed-Pinned Deflection'!$F$11) - Ellip_F(BY$3,'Fixed-Pinned Deflection'!$F$11) + Ellip_F('Fixed-Pinned Deflection'!$K$11,'Fixed-Pinned Deflection'!$F$11)) +2*'Fixed-Pinned Deflection'!$F$11*COS('Fixed-Pinned Deflection'!$J$11)*(-COS(BY$3) + COS('Fixed-Pinned Deflection'!$K$11))) -> 0.0286901941 | BZ5: =-L/SQRT('Fixed-Pinned Deflection'!$I$11)*(SIN('Fixed-Pinned Deflection'!$J$11)*(2*Ellip_E(BZ$3,'Fixed-Pinned Deflection'!$F$11) - 2*Ellip_E('Fixed-Pinned Deflection'!$K$11,'Fixed-Pinned Deflection'!$F$11) - Ellip_F(BZ$3,'Fixed-Pinned Deflection'!$F$11) + Ellip_F('Fixed-Pinned Deflection'!$K$11,'Fixed-Pinned Deflection'!$F$11)) +2*'Fixed-Pinned Deflection'!$F$11*COS('Fixed-Pinned Deflection'!$J$11)*(-COS(BZ$3) + COS('Fixed-Pinned Deflection'!$K$11))) -> 0.02933857916 | CA5: =-L/SQRT('Fixed-Pinned Deflection'!$I$11)*(SIN('Fixed-Pinned Deflection'!$J$11)*(2*Ellip_E(CA$3,'Fixed-Pinned Deflection'!$F$11) - 2*Ellip_E('Fixed-Pinned Deflection'!$K$11,'Fixed-Pinned Deflection'!$F$11) - Ellip_F(CA$3,'Fixed-Pinned Deflection'!$F$11) + Ellip_F('Fixed-Pinned Deflection'!$K$11,'Fixed-Pinned Deflection'!$F$11)) +2*'Fixed-Pinned Deflection'!$F$11*COS('Fixed-Pinned Deflection'!$J$11)*(-COS(CA$3) + COS('Fixed-Pinned Deflection'!$K$11))) -> 0.02999046099 | CB5: =-L/SQRT('Fixed-Pinned Deflection'!$I$11)*(SIN('Fixed-Pinned Deflection'!$J$11)*(2*Ellip_E(CB$3,'Fixed-Pinned Deflection'!$F$11) - 2*Ellip_E('Fixed-Pinned Deflection'!$K$11,'Fixed-Pinned Deflection'!$F$11) - Ellip_F(CB$3,'Fixed-Pinned Deflection'!$F$11) + Ellip_F('Fixed-Pinned Deflection'!$K$11,'Fixed-Pinned Deflection'!$F$11)) +2*'Fixed-Pinned Deflection'!$F$11*COS('Fixed-Pinned Deflection'!$J$11)*(-COS(CB$3) + COS('Fixed-Pinned Deflection'!$K$11))) -> 0.03064569576 | CC5: =-L/SQRT('Fixed-Pinned Deflection'!$I$11)*(SIN('Fixed-Pinned Deflection'!$J$11)*(2*Ellip_E(CC$3,'Fixed-Pinned Deflection'!$F$11) - 2*Ellip_E('Fixed-Pinned Deflection'!$K$11,'Fixed-Pinned Deflection'!$F$11) - Ellip_F(CC$3,'Fixed-Pinned Deflection'!$F$11) + Ellip_F('Fixed-Pinned Deflection'!$K$11,'Fixed-Pinned Deflection'!$F$11)) +2*'Fixed-Pinned Deflection'!$F$11*COS('Fixed-Pinned Deflection'!$J$11)*(-COS(CC$3) + COS('Fixed-Pinned Deflection'!$K$11))) -> 0.03130413943 | CD5: =-L/SQRT('Fixed-Pinned Deflection'!$I$11)*(SIN('Fixed-Pinned Deflection'!$J$11)*(2*Ellip_E(CD$3,'Fixed-Pinned Deflection'!$F$11) - 2*Ellip_E('Fixed-Pinned Deflection'!$K$11,'Fixed-Pinned Deflection'!$F$11) - Ellip_F(CD$3,'Fixed-Pinned Deflection'!$F$11) + Ellip_F('Fixed-Pinned Deflection'!$K$11,'Fixed-Pinned Deflection'!$F$11)) +2*'Fixed-Pinned Deflection'!$F$11*COS('Fixed-Pinned Deflection'!$J$11)*(-COS(CD$3) + COS('Fixed-Pinned Deflection'!$K$11))) -> 0.03196564771 | CE5: =-L/SQRT('Fixed-Pinned Deflection'!$I$11)*(SIN('Fixed-Pinned Deflection'!$J$11)*(2*Ellip_E(CE$3,'Fixed-Pinned Deflection'!$F$11) - 2*Ellip_E('Fixed-Pinned Deflection'!$K$11,'Fixed-Pinned Deflection'!$F$11) - Ellip_F(CE$3,'Fixed-Pinned Deflection'!$F$11) + Ellip_F('Fixed-Pinned Deflection'!$K$11,'Fixed-Pinned Deflection'!$F$11)) +2*'Fixed-Pinned Deflection'!$F$11*COS('Fixed-Pinned Deflection'!$J$11)*(-COS(CE$3) + COS('Fixed-Pinned Deflection'!$K$11))) -> 0.0326300761 | CF5: =-L/SQRT('Fixed-Pinned Deflection'!$I$11)*(SIN('Fixed-Pinned Deflection'!$J$11)*(2*Ellip_E(CF$3,'Fixed-Pinned Deflection'!$F$11) - 2*Ellip_E('Fixed-Pinned Deflection'!$K$11,'Fixed-Pinned Deflection'!$F$11) - Ellip_F(CF$3,'Fixed-Pinned Deflection'!$F$11) + Ellip_F('Fixed-Pinned Deflection'!$K$11,'Fixed-Pinned Deflection'!$F$11)) +2*'Fixed-Pinned Deflection'!$F$11*COS('Fixed-Pinned Deflection'!$J$11)*(-COS(CF$3) + COS('Fixed-Pinned Deflection'!$K$11))) -> 0.03329727988 | CG5: =-L/SQRT('Fixed-Pinned Deflection'!$I$11)*(SIN('Fixed-Pinned Deflection'!$J$11)*(2*Ellip_E(CG$3,'Fixed-Pinned Deflection'!$F$11) - 2*Ellip_E('Fixed-Pinned Deflection'!$K$11,'Fixed-Pinned Deflection'!$F$11) - Ellip_F(CG$3,'Fixed-Pinned Deflection'!$F$11) + Ellip_F('Fixed-Pinned Deflection'!$K$11,'Fixed-Pinned Deflection'!$F$11)) +2*'Fixed-Pinned Deflection'!$F$11*COS('Fixed-Pinned Deflection'!$J$11)*(-COS(CG$3) + COS('Fixed-Pinned Deflection'!$K$11))) -> 0.03396711415 | CH5: =-L/SQRT('Fixed-Pinned Deflection'!$I$11)*(SIN('Fixed-Pinned Deflection'!$J$11)*(2*Ellip_E(CH$3,'Fixed-Pinned Deflection'!$F$11) - 2*Ellip_E('Fixed-Pinned Deflection'!$K$11,'Fixed-Pinned Deflection'!$F$11) - Ellip_F(CH$3,'Fixed-Pinned Deflection'!$F$11) + Ellip_F('Fixed-Pinned Deflection'!$K$11,'Fixed-Pinned Deflection'!$F$11)) +2*'Fixed-Pinned Deflection'!$F$11*COS('Fixed-Pinned Deflection'!$J$11)*(-COS(CH$3) + COS('Fixed-Pinned Deflection'!$K$11))) -> 0.03463943381 | CI5: =-L/SQRT('Fixed-Pinned Deflection'!$I$11)*(SIN('Fixed-Pinned Deflection'!$J$11)*(2*Ellip_E(CI$3,'Fixed-Pinned Deflection'!$F$11) - 2*Ellip_E('Fixed-Pinned Deflection'!$K$11,'Fixed-Pinned Deflection'!$F$11) - Ellip_F(CI$3,'Fixed-Pinned Deflection'!$F$11) + Ellip_F('Fixed-Pinned Deflection'!$K$11,'Fixed-Pinned Deflection'!$F$11)) +2*'Fixed-Pinned Deflection'!$F$11*COS('Fixed-Pinned Deflection'!$J$11)*(-COS(CI$3) + COS('Fixed-Pinned Deflection'!$K$11))) -> 0.03531409359 | CJ5: =-L/SQRT('Fixed-Pinned Deflection'!$I$11)*(SIN('Fixed-Pinned Deflection'!$J$11)*(2*Ellip_E(CJ$3,'Fixed-Pinned Deflection'!$F$11) - 2*Ellip_E('Fixed-Pinned Deflection'!$K$11,'Fixed-Pinned Deflection'!$F$11) - Ellip_F(CJ$3,'Fixed-Pinned Deflection'!$F$11) + Ellip_F('Fixed-Pinned Deflection'!$K$11,'Fixed-Pinned Deflection'!$F$11)) +2*'Fixed-Pinned Deflection'!$F$11*COS('Fixed-Pinned Deflection'!$J$11)*(-COS(CJ$3) + COS('Fixed-Pinned Deflection'!$K$11))) -> 0.03599094804 | CK5: =-L/SQRT('Fixed-Pinned Deflection'!$I$11)*(SIN('Fixed-Pinned Deflection'!$J$11)*(2*Ellip_E(CK$3,'Fixed-Pinned Deflection'!$F$11) - 2*Ellip_E('Fixed-Pinned Deflection'!$K$11,'Fixed-Pinned Deflection'!$F$11) - Ellip_F(CK$3,'Fixed-Pinned Deflection'!$F$11) + Ellip_F('Fixed-Pinned Deflection'!$K$11,'Fixed-Pinned Deflection'!$F$11)) +2*'Fixed-Pinned Deflection'!$F$11*COS('Fixed-Pinned Deflection'!$J$11)*(-COS(CK$3) + COS('Fixed-Pinned Deflection'!$K$11))) -> 0.03666985156 | CL5: =-L/SQRT('Fixed-Pinned Deflection'!$I$11)*(SIN('Fixed-Pinned Deflection'!$J$11)*(2*Ellip_E(CL$3,'Fixed-Pinned Deflection'!$F$11) - 2*Ellip_E('Fixed-Pinned Deflection'!$K$11,'Fixed-Pinned Deflection'!$F$11) - Ellip_F(CL$3,'Fixed-Pinned Deflection'!$F$11) + Ellip_F('Fixed-Pinned Deflection'!$K$11,'Fixed-Pinned Deflection'!$F$11)) +2*'Fixed-Pinned Deflection'!$F$11*COS('Fixed-Pinned Deflection'!$J$11)*(-COS(CL$3) + COS('Fixed-Pinned Deflection'!$K$11))) -> 0.03735065841 | CM5: =-L/SQRT('Fixed-Pinned Deflection'!$I$11)*(SIN('Fixed-Pinned Deflection'!$J$11)*(2*Ellip_E(CM$3,'Fixed-Pinned Deflection'!$F$11) - 2*Ellip_E('Fixed-Pinned Deflection'!$K$11,'Fixed-Pinned Deflection'!$F$11) - Ellip_F(CM$3,'Fixed-Pinned Deflection'!$F$11) + Ellip_F('Fixed-Pinned Deflection'!$K$11,'Fixed-Pinned Deflection'!$F$11)) +2*'Fixed-Pinned Deflection'!$F$11*COS('Fixed-Pinned Deflection'!$J$11)*(-COS(CM$3) + COS('Fixed-Pinned Deflection'!$K$11))) -> 0.0380332227 | CN5: =-L/SQRT('Fixed-Pinned Deflection'!$I$11)*(SIN('Fixed-Pinned Deflection'!$J$11)*(2*Ellip_E(CN$3,'Fixed-Pinned Deflection'!$F$11) - 2*Ellip_E('Fixed-Pinned Deflection'!$K$11,'Fixed-Pinned Deflection'!$F$11) - Ellip_F(CN$3,'Fixed-Pinned Deflection'!$F$11) + Ellip_F('Fixed-Pinned Deflection'!$K$11,'Fixed-Pinned Deflection'!$F$11)) +2*'Fixed-Pinned Deflection'!$F$11*COS('Fixed-Pinned Deflection'!$J$11)*(-COS(CN$3) + COS('Fixed-Pinned Deflection'!$K$11))) -> 0.03871739843 | CO5: =-L/SQRT('Fixed-Pinned Deflection'!$I$11)*(SIN('Fixed-Pinned Deflection'!$J$11)*(2*Ellip_E(CO$3,'Fixed-Pinned Deflection'!$F$11) - 2*Ellip_E('Fixed-Pinned Deflection'!$K$11,'Fixed-Pinned Deflection'!$F$11) - Ellip_F(CO$3,'Fixed-Pinned Deflection'!$F$11) + Ellip_F('Fixed-Pinned Deflection'!$K$11,'Fixed-Pinned Deflection'!$F$11)) +2*'Fixed-Pinned Deflection'!$F$11*COS('Fixed-Pinned Deflection'!$J$11)*(-COS(CO$3) + COS('Fixed-Pinned Deflection'!$K$11))) -> 0.03940303946 | CP5: =-L/SQRT('Fixed-Pinned Deflection'!$I$11)*(SIN('Fixed-Pinned Deflection'!$J$11)*(2*Ellip_E(CP$3,'Fixed-Pinned Deflection'!$F$11) - 2*Ellip_E('Fixed-Pinned Deflection'!$K$11,'Fixed-Pinned Deflection'!$F$11) - Ellip_F(CP$3,'Fixed-Pinned Deflection'!$F$11) + Ellip_F('Fixed-Pinned Deflection'!$K$11,'Fixed-Pinned Deflection'!$F$11)) +2*'Fixed-Pinned Deflection'!$F$11*COS('Fixed-Pinned Deflection'!$J$11)*(-COS(CP$3) + COS('Fixed-Pinned Deflection'!$K$11))) -> 0.04008999957 | CQ5: =-L/SQRT('Fixed-Pinned Deflection'!$I$11)*(SIN('Fixed-Pinned Deflection'!$J$11)*(2*Ellip_E(CQ$3,'Fixed-Pinned Deflection'!$F$11) - 2*Ellip_E('Fixed-Pinned Deflection'!$K$11,'Fixed-Pinned Deflection'!$F$11) - Ellip_F(CQ$3,'Fixed-Pinned Deflection'!$F$11) + Ellip_F('Fixed-Pinned Deflection'!$K$11,'Fixed-Pinned Deflection'!$F$11)) +2*'Fixed-Pinned Deflection'!$F$11*COS('Fixed-Pinned Deflection'!$J$11)*(-COS(CQ$3) + COS('Fixed-Pinned Deflection'!$K$11))) -> 0.04077813244 | CR5: =-L/SQRT('Fixed-Pinned Deflection'!$I$11)*(SIN('Fixed-Pinned Deflection'!$J$11)*(2*Ellip_E(CR$3,'Fixed-Pinned Deflection'!$F$11) - 2*Ellip_E('Fixed-Pinned Deflection'!$K$11,'Fixed-Pinned Deflection'!$F$11) - Ellip_F(CR$3,'Fixed-Pinned Deflection'!$F$11) + Ellip_F('Fixed-Pinned Deflection'!$K$11,'Fixed-Pinned Deflection'!$F$11)) +2*'Fixed-Pinned Deflection'!$F$11*COS('Fixed-Pinned Deflection'!$J$11)*(-COS(CR$3) + COS('Fixed-Pinned Deflection'!$K$11))) -> 0.04146729165 | CS5: =-L/SQRT('Fixed-Pinned Deflection'!$I$11)*(SIN('Fixed-Pinned Deflection'!$J$11)*(2*Ellip_E(CS$3,'Fixed-Pinned Deflection'!$F$11) - 2*Ellip_E('Fixed-Pinned Deflection'!$K$11,'Fixed-Pinned Deflection'!$F$11) - Ellip_F(CS$3,'Fixed-Pinned Deflection'!$F$11) + Ellip_F('Fixed-Pinned Deflection'!$K$11,'Fixed-Pinned Deflection'!$F$11)) +2*'Fixed-Pinned Deflection'!$F$11*COS('Fixed-Pinned Deflection'!$J$11)*(-COS(CS$3) + COS('Fixed-Pinned Deflection'!$K$11))) -> 0.04215733072 | CT5: =-L/SQRT('Fixed-Pinned Deflection'!$I$11)*(SIN('Fixed-Pinned Deflection'!$J$11)*(2*Ellip_E(CT$3,'Fixed-Pinned Deflection'!$F$11) - 2*Ellip_E('Fixed-Pinned Deflection'!$K$11,'Fixed-Pinned Deflection'!$F$11) - Ellip_F(CT$3,'Fixed-Pinned Deflection'!$F$11) + Ellip_F('Fixed-Pinned Deflection'!$K$11,'Fixed-Pinned Deflection'!$F$11)) +2*'Fixed-Pinned Deflection'!$F$11*COS('Fixed-Pinned Deflection'!$J$11)*(-COS(CT$3) + COS('Fixed-Pinned Deflection'!$K$11))) -> 0.0428481031 | CU5: =-L/SQRT('Fixed-Pinned Deflection'!$I$11)*(SIN('Fixed-Pinned Deflection'!$J$11)*(2*Ellip_E(CU$3,'Fixed-Pinned Deflection'!$F$11) - 2*Ellip_E('Fixed-Pinned Deflection'!$K$11,'Fixed-Pinned Deflection'!$F$11) - Ellip_F(CU$3,'Fixed-Pinned Deflection'!$F$11) + Ellip_F('Fixed-Pinned Deflection'!$K$11,'Fixed-Pinned Deflection'!$F$11)) +2*'Fixed-Pinned Deflection'!$F$11*COS('Fixed-Pinned Deflection'!$J$11)*(-COS(CU$3) + COS('Fixed-Pinned Deflection'!$K$11))) -> 0.0435394622 | CV5: =-L/SQRT('Fixed-Pinned Deflection'!$I$11)*(SIN('Fixed-Pinned Deflection'!$J$11)*(2*Ellip_E(CV$3,'Fixed-Pinned Deflection'!$F$11) - 2*Ellip_E('Fixed-Pinned Deflection'!$K$11,'Fixed-Pinned Deflection'!$F$11) - Ellip_F(CV$3,'Fixed-Pinned Deflection'!$F$11) + Ellip_F('Fixed-Pinned Deflection'!$K$11,'Fixed-Pinned Deflection'!$F$11)) +2*'Fixed-Pinned Deflection'!$F$11*COS('Fixed-Pinned Deflection'!$J$11)*(-COS(CV$3) + COS('Fixed-Pinned Deflection'!$K$11))) -> 0.04423126137 | CW5: =-L/SQRT('Fixed-Pinned Deflection'!$I$11)*(SIN('Fixed-Pinned Deflection'!$J$11)*(2*Ellip_E(CW$3,'Fixed-Pinned Deflection'!$F$11) - 2*Ellip_E('Fixed-Pinned Deflection'!$K$11,'Fixed-Pinned Deflection'!$F$11) - Ellip_F(CW$3,'Fixed-Pinned Deflection'!$F$11) + Ellip_F('Fixed-Pinned Deflection'!$K$11,'Fixed-Pinned Deflection'!$F$11)) +2*'Fixed-Pinned Deflection'!$F$11*COS('Fixed-Pinned Deflection'!$J$11)*(-COS(CW$3) + COS('Fixed-Pinned Deflection'!$K$11))) -> 0.04492335394 | CX5: =-L/SQRT('Fixed-Pinned Deflection'!$I$11)*(SIN('Fixed-Pinned Deflection'!$J$11)*(2*Ellip_E(CX$3,'Fixed-Pinned Deflection'!$F$11) - 2*Ellip_E('Fixed-Pinned Deflection'!$K$11,'Fixed-Pinned Deflection'!$F$11) - Ellip_F(CX$3,'Fixed-Pinned Deflection'!$F$11) + Ellip_F('Fixed-Pinned Deflection'!$K$11,'Fixed-Pinned Deflection'!$F$11)) +2*'Fixed-Pinned Deflection'!$F$11*COS('Fixed-Pinned Deflection'!$J$11)*(-COS(CX$3) + COS('Fixed-Pinned Deflection'!$K$11))) -> 0.04561559321
A6: q | B6: ='Fixed-Pinned Deflection'!$J11-2*ACOS('Fixed-Pinned Deflection'!$F11*SIN(Work!B3)) -> 0 | C6: ='Fixed-Pinned Deflection'!$J11-2*ACOS('Fixed-Pinned Deflection'!$F11*SIN(Work!C3)) -> 0.001331916787 | D6: ='Fixed-Pinned Deflection'!$J11-2*ACOS('Fixed-Pinned Deflection'!$F11*SIN(Work!D3)) -> 0.00265160915 | E6: ='Fixed-Pinned Deflection'!$J11-2*ACOS('Fixed-Pinned Deflection'!$F11*SIN(Work!E3)) -> 0.003959044749 | F6: ='Fixed-Pinned Deflection'!$J11-2*ACOS('Fixed-Pinned Deflection'!$F11*SIN(Work!F3)) -> 0.005254191439 | G6: ='Fixed-Pinned Deflection'!$J11-2*ACOS('Fixed-Pinned Deflection'!$F11*SIN(Work!G3)) -> 0.006537017273 | H6: ='Fixed-Pinned Deflection'!$J11-2*ACOS('Fixed-Pinned Deflection'!$F11*SIN(Work!H3)) -> 0.007807490506 | I6: ='Fixed-Pinned Deflection'!$J11-2*ACOS('Fixed-Pinned Deflection'!$F11*SIN(Work!I3)) -> 0.009065579598 | J6: ='Fixed-Pinned Deflection'!$J11-2*ACOS('Fixed-Pinned Deflection'!$F11*SIN(Work!J3)) -> 0.01031125322 | K6: ='Fixed-Pinned Deflection'!$J11-2*ACOS('Fixed-Pinned Deflection'!$F11*SIN(Work!K3)) -> 0.01154448024 | L6: ='Fixed-Pinned Deflection'!$J11-2*ACOS('Fixed-Pinned Deflection'!$F11*SIN(Work!L3)) -> 0.01276522976 | M6: ='Fixed-Pinned Deflection'!$J11-2*ACOS('Fixed-Pinned Deflection'!$F11*SIN(Work!M3)) -> 0.01397347109 | N6: ='Fixed-Pinned Deflection'!$J11-2*ACOS('Fixed-Pinned Deflection'!$F11*SIN(Work!N3)) -> 0.01516917376 | O6: ='Fixed-Pinned Deflection'!$J11-2*ACOS('Fixed-Pinned Deflection'!$F11*SIN(Work!O3)) -> 0.01635230753 | P6: ='Fixed-Pinned Deflection'!$J11-2*ACOS('Fixed-Pinned Deflection'!$F11*SIN(Work!P3)) -> 0.01752284238 | Q6: ='Fixed-Pinned Deflection'!$J11-2*ACOS('Fixed-Pinned Deflection'!$F11*SIN(Work!Q3)) -> 0.01868074854 | R6: ='Fixed-Pinned Deflection'!$J11-2*ACOS('Fixed-Pinned Deflection'!$F11*SIN(Work!R3)) -> 0.01982599644 | S6: ='Fixed-Pinned Deflection'!$J11-2*ACOS('Fixed-Pinned Deflection'!$F11*SIN(Work!S3)) -> 0.02095855678 | T6: ='Fixed-Pinned Deflection'!$J11-2*ACOS('Fixed-Pinned Deflection'!$F11*SIN(Work!T3)) -> 0.02207840049 | U6: ='Fixed-Pinned Deflection'!$J11-2*ACOS('Fixed-Pinned Deflection'!$F11*SIN(Work!U3)) -> 0.02318549875 | V6: ='Fixed-Pinned Deflection'!$J11-2*ACOS('Fixed-Pinned Deflection'!$F11*SIN(Work!V3)) -> 0.02427982296 | W6: ='Fixed-Pinned Deflection'!$J11-2*ACOS('Fixed-Pinned Deflection'!$F11*SIN(Work!W3)) -> 0.02536134481 | X6: ='Fixed-Pinned Deflection'!$J11-2*ACOS('Fixed-Pinned Deflection'!$F11*SIN(Work!X3)) -> 0.02643003621 | Y6: ='Fixed-Pinned Deflection'!$J11-2*ACOS('Fixed-Pinned Deflection'!$F11*SIN(Work!Y3)) -> 0.02748586935 | Z6: ='Fixed-Pinned Deflection'!$J11-2*ACOS('Fixed-Pinned Deflection'!$F11*SIN(Work!Z3)) -> 0.02852881668 | AA6: ='Fixed-Pinned Deflection'!$J11-2*ACOS('Fixed-Pinned Deflection'!$F11*SIN(Work!AA3)) -> 0.0295588509 | AB6: ='Fixed-Pinned Deflection'!$J11-2*ACOS('Fixed-Pinned Deflection'!$F11*SIN(Work!AB3)) -> 0.03057594497 | AC6: ='Fixed-Pinned Deflection'!$J11-2*ACOS('Fixed-Pinned Deflection'!$F11*SIN(Work!AC3)) -> 0.03158007215 | AD6: ='Fixed-Pinned Deflection'!$J11-2*ACOS('Fixed-Pinned Deflection'!$F11*SIN(Work!AD3)) -> 0.03257120595 | AE6: ='Fixed-Pinned Deflection'!$J11-2*ACOS('Fixed-Pinned Deflection'!$F11*SIN(Work!AE3)) -> 0.03354932016 | AF6: ='Fixed-Pinned Deflection'!$J11-2*ACOS('Fixed-Pinned Deflection'!$F11*SIN(Work!AF3)) -> 0.03451438884 | AG6: ='Fixed-Pinned Deflection'!$J11-2*ACOS('Fixed-Pinned Deflection'!$F11*SIN(Work!AG3)) -> 0.03546638636 | AH6: ='Fixed-Pinned Deflection'!$J11-2*ACOS('Fixed-Pinned Deflection'!$F11*SIN(Work!AH3)) -> 0.03640528735 | AI6: ='Fixed-Pinned Deflection'!$J11-2*ACOS('Fixed-Pinned Deflection'!$F11*SIN(Work!AI3)) -> 0.03733106673 | AJ6: ='Fixed-Pinned Deflection'!$J11-2*ACOS('Fixed-Pinned Deflection'!$F11*SIN(Work!AJ3)) -> 0.03824369972 | AK6: ='Fixed-Pinned Deflection'!$J11-2*ACOS('Fixed-Pinned Deflection'!$F11*SIN(Work!AK3)) -> 0.03914316183 | AL6: ='Fixed-Pinned Deflection'!$J11-2*ACOS('Fixed-Pinned Deflection'!$F11*SIN(Work!AL3)) -> 0.04002942888 | AM6: ='Fixed-Pinned Deflection'!$J11-2*ACOS('Fixed-Pinned Deflection'!$F11*SIN(Work!AM3)) -> 0.04090247696 | AN6: ='Fixed-Pinned Deflection'!$J11-2*ACOS('Fixed-Pinned Deflection'!$F11*SIN(Work!AN3)) -> 0.04176228249 | AO6: ='Fixed-Pinned Deflection'!$J11-2*ACOS('Fixed-Pinned Deflection'!$F11*SIN(Work!AO3)) -> 0.04260882219 | AP6: ='Fixed-Pinned Deflection'!$J11-2*ACOS('Fixed-Pinned Deflection'!$F11*SIN(Work!AP3)) -> 0.04344207309 | AQ6: ='Fixed-Pinned Deflection'!$J11-2*ACOS('Fixed-Pinned Deflection'!$F11*SIN(Work!AQ3)) -> 0.04426201251 | AR6: ='Fixed-Pinned Deflection'!$J11-2*ACOS('Fixed-Pinned Deflection'!$F11*SIN(Work!AR3)) -> 0.04506861812 | AS6: ='Fixed-Pinned Deflection'!$J11-2*ACOS('Fixed-Pinned Deflection'!$F11*SIN(Work!AS3)) -> 0.04586186788 | AT6: ='Fixed-Pinned Deflection'!$J11-2*ACOS('Fixed-Pinned Deflection'!$F11*SIN(Work!AT3)) -> 0.04664174009 | AU6: ='Fixed-Pinned Deflection'!$J11-2*ACOS('Fixed-Pinned Deflection'!$F11*SIN(Work!AU3)) -> 0.04740821335 | AV6: ='Fixed-Pinned Deflection'!$J11-2*ACOS('Fixed-Pinned Deflection'!$F11*SIN(Work!AV3)) -> 0.0481612666 | AW6: ='Fixed-Pinned Deflection'!$J11-2*ACOS('Fixed-Pinned Deflection'!$F11*SIN(Work!AW3)) -> 0.04890087912 | AX6: ='Fixed-Pinned Deflection'!$J11-2*ACOS('Fixed-Pinned Deflection'!$F11*SIN(Work!AX3)) -> 0.04962703048 | AY6: ='Fixed-Pinned Deflection'!$J11-2*ACOS('Fixed-Pinned Deflection'!$F11*SIN(Work!AY3)) -> 0.05033970064 | AZ6: ='Fixed-Pinned Deflection'!$J11-2*ACOS('Fixed-Pinned Deflection'!$F11*SIN(Work!AZ3)) -> 0.05103886984 | BA6: ='Fixed-Pinned Deflection'!$J11-2*ACOS('Fixed-Pinned Deflection'!$F11*SIN(Work!BA3)) -> 0.0517245187 | BB6: ='Fixed-Pinned Deflection'!$J11-2*ACOS('Fixed-Pinned Deflection'!$F11*SIN(Work!BB3)) -> 0.05239662816 | BC6: ='Fixed-Pinned Deflection'!$J11-2*ACOS('Fixed-Pinned Deflection'!$F11*SIN(Work!BC3)) -> 0.05305517951 | BD6: ='Fixed-Pinned Deflection'!$J11-2*ACOS('Fixed-Pinned Deflection'!$F11*SIN(Work!BD3)) -> 0.05370015438 | BE6: ='Fixed-Pinned Deflection'!$J11-2*ACOS('Fixed-Pinned Deflection'!$F11*SIN(Work!BE3)) -> 0.05433153476 | BF6: ='Fixed-Pinned Deflection'!$J11-2*ACOS('Fixed-Pinned Deflection'!$F11*SIN(Work!BF3)) -> 0.05494930298 | BG6: ='Fixed-Pinned Deflection'!$J11-2*ACOS('Fixed-Pinned Deflection'!$F11*SIN(Work!BG3)) -> 0.05555344171 | BH6: ='Fixed-Pinned Deflection'!$J11-2*ACOS('Fixed-Pinned Deflection'!$F11*SIN(Work!BH3)) -> 0.05614393402 | BI6: ='Fixed-Pinned Deflection'!$J11-2*ACOS('Fixed-Pinned Deflection'!$F11*SIN(Work!BI3)) -> 0.05672076329 | BJ6: ='Fixed-Pinned Deflection'!$J11-2*ACOS('Fixed-Pinned Deflection'!$F11*SIN(Work!BJ3)) -> 0.05728391328 | BK6: ='Fixed-Pinned Deflection'!$J11-2*ACOS('Fixed-Pinned Deflection'!$F11*SIN(Work!BK3)) -> 0.05783336811 | BL6: ='Fixed-Pinned Deflection'!$J11-2*ACOS('Fixed-Pinned Deflection'!$F11*SIN(Work!BL3)) -> 0.05836911226 | BM6: ='Fixed-Pinned Deflection'!$J11-2*ACOS('Fixed-Pinned Deflection'!$F11*SIN(Work!BM3)) -> 0.05889113058 | BN6: ='Fixed-Pinned Deflection'!$J11-2*ACOS('Fixed-Pinned Deflection'!$F11*SIN(Work!BN3)) -> 0.0593994083 | BO6: ='Fixed-Pinned Deflection'!$J11-2*ACOS('Fixed-Pinned Deflection'!$F11*SIN(Work!BO3)) -> 0.05989393098 | BP6: ='Fixed-Pinned Deflection'!$J11-2*ACOS('Fixed-Pinned Deflection'!$F11*SIN(Work!BP3)) -> 0.0603746846 | BQ6: ='Fixed-Pinned Deflection'!$J11-2*ACOS('Fixed-Pinned Deflection'!$F11*SIN(Work!BQ3)) -> 0.06084165549 | BR6: ='Fixed-Pinned Deflection'!$J11-2*ACOS('Fixed-Pinned Deflection'!$F11*SIN(Work!BR3)) -> 0.06129483035 | BS6: ='Fixed-Pinned Deflection'!$J11-2*ACOS('Fixed-Pinned Deflection'!$F11*SIN(Work!BS3)) -> 0.06173419626 | BT6: ='Fixed-Pinned Deflection'!$J11-2*ACOS('Fixed-Pinned Deflection'!$F11*SIN(Work!BT3)) -> 0.0621597407 | BU6: ='Fixed-Pinned Deflection'!$J11-2*ACOS('Fixed-Pinned Deflection'!$F11*SIN(Work!BU3)) -> 0.0625714515 | BV6: ='Fixed-Pinned Deflection'!$J11-2*ACOS('Fixed-Pinned Deflection'!$F11*SIN(Work!BV3)) -> 0.06296931689 | BW6: ='Fixed-Pinned Deflection'!$J11-2*ACOS('Fixed-Pinned Deflection'!$F11*SIN(Work!BW3)) -> 0.06335332548 | BX6: ='Fixed-Pinned Deflection'!$J11-2*ACOS('Fixed-Pinned Deflection'!$F11*SIN(Work!BX3)) -> 0.06372346627 | BY6: ='Fixed-Pinned Deflection'!$J11-2*ACOS('Fixed-Pinned Deflection'!$F11*SIN(Work!BY3)) -> 0.06407972863 | BZ6: ='Fixed-Pinned Deflection'!$J11-2*ACOS('Fixed-Pinned Deflection'!$F11*SIN(Work!BZ3)) -> 0.06442210235 | CA6: ='Fixed-Pinned Deflection'!$J11-2*ACOS('Fixed-Pinned Deflection'!$F11*SIN(Work!CA3)) -> 0.06475057758 | CB6: ='Fixed-Pinned Deflection'!$J11-2*ACOS('Fixed-Pinned Deflection'!$F11*SIN(Work!CB3)) -> 0.06506514486 | CC6: ='Fixed-Pinned Deflection'!$J11-2*ACOS('Fixed-Pinned Deflection'!$F11*SIN(Work!CC3)) -> 0.06536579516 | CD6: ='Fixed-Pinned Deflection'!$J11-2*ACOS('Fixed-Pinned Deflection'!$F11*SIN(Work!CD3)) -> 0.0656525198 | CE6: ='Fixed-Pinned Deflection'!$J11-2*ACOS('Fixed-Pinned Deflection'!$F11*SIN(Work!CE3)) -> 0.06592531052 | CF6: ='Fixed-Pinned Deflection'!$J11-2*ACOS('Fixed-Pinned Deflection'!$F11*SIN(Work!CF3)) -> 0.06618415945 | CG6: ='Fixed-Pinned Deflection'!$J11-2*ACOS('Fixed-Pinned Deflection'!$F11*SIN(Work!CG3)) -> 0.0664290591 | CH6: ='Fixed-Pinned Deflection'!$J11-2*ACOS('Fixed-Pinned Deflection'!$F11*SIN(Work!CH3)) -> 0.06666000242 | CI6: ='Fixed-Pinned Deflection'!$J11-2*ACOS('Fixed-Pinned Deflection'!$F11*SIN(Work!CI3)) -> 0.06687698271 | CJ6: ='Fixed-Pinned Deflection'!$J11-2*ACOS('Fixed-Pinned Deflection'!$F11*SIN(Work!CJ3)) -> 0.06707999371 | CK6: ='Fixed-Pinned Deflection'!$J11-2*ACOS('Fixed-Pinned Deflection'!$F11*SIN(Work!CK3)) -> 0.06726902954 | CL6: ='Fixed-Pinned Deflection'!$J11-2*ACOS('Fixed-Pinned Deflection'!$F11*SIN(Work!CL3)) -> 0.06744408471 | CM6: ='Fixed-Pinned Deflection'!$J11-2*ACOS('Fixed-Pinned Deflection'!$F11*SIN(Work!CM3)) -> 0.06760515417 | CN6: ='Fixed-Pinned Deflection'!$J11-2*ACOS('Fixed-Pinned Deflection'!$F11*SIN(Work!CN3)) -> 0.06775223324 | CO6: ='Fixed-Pinned Deflection'!$J11-2*ACOS('Fixed-Pinned Deflection'!$F11*SIN(Work!CO3)) -> 0.06788531766 | CP6: ='Fixed-Pinned Deflection'!$J11-2*ACOS('Fixed-Pinned Deflection'!$F11*SIN(Work!CP3)) -> 0.06800440356 | CQ6: ='Fixed-Pinned Deflection'!$J11-2*ACOS('Fixed-Pinned Deflection'!$F11*SIN(Work!CQ3)) -> 0.0681094875 | CR6: ='Fixed-Pinned Deflection'!$J11-2*ACOS('Fixed-Pinned Deflection'!$F11*SIN(Work!CR3)) -> 0.06820056641 | CS6: ='Fixed-Pinned Deflection'!$J11-2*ACOS('Fixed-Pinned Deflection'!$F11*SIN(Work!CS3)) -> 0.06827763766 | CT6: ='Fixed-Pinned Deflection'!$J11-2*ACOS('Fixed-Pinned Deflection'!$F11*SIN(Work!CT3)) -> 0.06834069901 | CU6: ='Fixed-Pinned Deflection'!$J11-2*ACOS('Fixed-Pinned Deflection'!$F11*SIN(Work!CU3)) -> 0.06838974863 | CV6: ='Fixed-Pinned Deflection'!$J11-2*ACOS('Fixed-Pinned Deflection'!$F11*SIN(Work!CV3)) -> 0.06842478509 | CW6: ='Fixed-Pinned Deflection'!$J11-2*ACOS('Fixed-Pinned Deflection'!$F11*SIN(Work!CW3)) -> 0.06844580737 | CX6: ='Fixed-Pinned Deflection'!$J11-2*ACOS('Fixed-Pinned Deflection'!$F11*SIN(Work!CX3)) -> 0.06845281487
A7: M | B7: =2*'Fixed-Pinned Deflection'!$F11*SQRT(E*I*'Fixed-Pinned Deflection'!$A11)*COS(B3) -> 4.993723024 | C7: =2*'Fixed-Pinned Deflection'!$F11*SQRT(E*I*'Fixed-Pinned Deflection'!$A11)*COS(C3) -> 4.944863509 | D7: =2*'Fixed-Pinned Deflection'!$F11*SQRT(E*I*'Fixed-Pinned Deflection'!$A11)*COS(D3) -> 4.895971637 | E7: =2*'Fixed-Pinned Deflection'!$F11*SQRT(E*I*'Fixed-Pinned Deflection'!$A11)*COS(E3) -> 4.847047728 | F7: =2*'Fixed-Pinned Deflection'!$F11*SQRT(E*I*'Fixed-Pinned Deflection'!$A11)*COS(F3) -> 4.798092103 | G7: =2*'Fixed-Pinned Deflection'!$F11*SQRT(E*I*'Fixed-Pinned Deflection'!$A11)*COS(G3) -> 4.749105081 | H7: =2*'Fixed-Pinned Deflection'!$F11*SQRT(E*I*'Fixed-Pinned Deflection'!$A11)*COS(H3) -> 4.700086983 | I7: =2*'Fixed-Pinned Deflection'!$F11*SQRT(E*I*'Fixed-Pinned Deflection'!$A11)*COS(I3) -> 4.65103813 | J7: =2*'Fixed-Pinned Deflection'!$F11*SQRT(E*I*'Fixed-Pinned Deflection'!$A11)*COS(J3) -> 4.601958843 | K7: =2*'Fixed-Pinned Deflection'!$F11*SQRT(E*I*'Fixed-Pinned Deflection'!$A11)*COS(K3) -> 4.552849442 | L7: =2*'Fixed-Pinned Deflection'!$F11*SQRT(E*I*'Fixed-Pinned Deflection'!$A11)*COS(L3) -> 4.503710251 | M7: =2*'Fixed-Pinned Deflection'!$F11*SQRT(E*I*'Fixed-Pinned Deflection'!$A11)*COS(M3) -> 4.454541589 | N7: =2*'Fixed-Pinned Deflection'!$F11*SQRT(E*I*'Fixed-Pinned Deflection'!$A11)*COS(N3) -> 4.405343778 | O7: =2*'Fixed-Pinned Deflection'!$F11*SQRT(E*I*'Fixed-Pinned Deflection'!$A11)*COS(O3) -> 4.356117141 | P7: =2*'Fixed-Pinned Deflection'!$F11*SQRT(E*I*'Fixed-Pinned Deflection'!$A11)*COS(P3) -> 4.306862 | Q7: =2*'Fixed-Pinned Deflection'!$F11*SQRT(E*I*'Fixed-Pinned Deflection'!$A11)*COS(Q3) -> 4.257578677 | R7: =2*'Fixed-Pinned Deflection'!$F11*SQRT(E*I*'Fixed-Pinned Deflection'!$A11)*COS(R3) -> 4.208267494 | S7: =2*'Fixed-Pinned Deflection'!$F11*SQRT(E*I*'Fixed-Pinned Deflection'!$A11)*COS(S3) -> 4.158928774 | T7: =2*'Fixed-Pinned Deflection'!$F11*SQRT(E*I*'Fixed-Pinned Deflection'!$A11)*COS(T3) -> 4.10956284 | U7: =2*'Fixed-Pinned Deflection'!$F11*SQRT(E*I*'Fixed-Pinned Deflection'!$A11)*COS(U3) -> 4.060170015 | V7: =2*'Fixed-Pinned Deflection'!$F11*SQRT(E*I*'Fixed-Pinned Deflection'!$A11)*COS(V3) -> 4.010750622 | W7: =2*'Fixed-Pinned Deflection'!$F11*SQRT(E*I*'Fixed-Pinned Deflection'!$A11)*COS(W3) -> 3.961304985 | X7: =2*'Fixed-Pinned Deflection'!$F11*SQRT(E*I*'Fixed-Pinned Deflection'!$A11)*COS(X3) -> 3.911833427 | Y7: =2*'Fixed-Pinned Deflection'!$F11*SQRT(E*I*'Fixed-Pinned Deflection'!$A11)*COS(Y3) -> 3.862336272 | Z7: =2*'Fixed-Pinned Deflection'!$F11*SQRT(E*I*'Fixed-Pinned Deflection'!$A11)*COS(Z3) -> 3.812813844 | AA7: =2*'Fixed-Pinned Deflection'!$F11*SQRT(E*I*'Fixed-Pinned Deflection'!$A11)*COS(AA3) -> 3.763266466 | AB7: =2*'Fixed-Pinned Deflection'!$F11*SQRT(E*I*'Fixed-Pinned Deflection'!$A11)*COS(AB3) -> 3.713694463 | AC7: =2*'Fixed-Pinned Deflection'!$F11*SQRT(E*I*'Fixed-Pinned Deflection'!$A11)*COS(AC3) -> 3.66409816 | AD7: =2*'Fixed-Pinned Deflection'!$F11*SQRT(E*I*'Fixed-Pinned Deflection'!$A11)*COS(AD3) -> 3.61447788 | AE7: =2*'Fixed-Pinned Deflection'!$F11*SQRT(E*I*'Fixed-Pinned Deflection'!$A11)*COS(AE3) -> 3.564833949 | AF7: =2*'Fixed-Pinned Deflection'!$F11*SQRT(E*I*'Fixed-Pinned Deflection'!$A11)*COS(AF3) -> 3.515166692 | AG7: =2*'Fixed-Pinned Deflection'!$F11*SQRT(E*I*'Fixed-Pinned Deflection'!$A11)*COS(AG3) -> 3.465476432 | AH7: =2*'Fixed-Pinned Deflection'!$F11*SQRT(E*I*'Fixed-Pinned Deflection'!$A11)*COS(AH3) -> 3.415763497 | AI7: =2*'Fixed-Pinned Deflection'!$F11*SQRT(E*I*'Fixed-Pinned Deflection'!$A11)*COS(AI3) -> 3.36602821 | AJ7: =2*'Fixed-Pinned Deflection'!$F11*SQRT(E*I*'Fixed-Pinned Deflection'!$A11)*COS(AJ3) -> 3.316270898 | AK7: =2*'Fixed-Pinned Deflection'!$F11*SQRT(E*I*'Fixed-Pinned Deflection'!$A11)*COS(AK3) -> 3.266491885 | AL7: =2*'Fixed-Pinned Deflection'!$F11*SQRT(E*I*'Fixed-Pinned Deflection'!$A11)*COS(AL3) -> 3.216691499 | AM7: =2*'Fixed-Pinned Deflection'!$F11*SQRT(E*I*'Fixed-Pinned Deflection'!$A11)*COS(AM3) -> 3.166870063 | AN7: =2*'Fixed-Pinned Deflection'!$F11*SQRT(E*I*'Fixed-Pinned Deflection'!$A11)*COS(AN3) -> 3.117027905 | AO7: =2*'Fixed-Pinned Deflection'!$F11*SQRT(E*I*'Fixed-Pinned Deflection'!$A11)*COS(AO3) -> 3.067165351 | AP7: =2*'Fixed-Pinned Deflection'!$F11*SQRT(E*I*'Fixed-Pinned Deflection'!$A11)*COS(AP3) -> 3.017282727 | AQ7: =2*'Fixed-Pinned Deflection'!$F11*SQRT(E*I*'Fixed-Pinned Deflection'!$A11)*COS(AQ3) -> 2.967380359 | AR7: =2*'Fixed-Pinned Deflection'!$F11*SQRT(E*I*'Fixed-Pinned Deflection'!$A11)*COS(AR3) -> 2.917458574 | AS7: =2*'Fixed-Pinned Deflection'!$F11*SQRT(E*I*'Fixed-Pinned Deflection'!$A11)*COS(AS3) -> 2.867517699 | AT7: =2*'Fixed-Pinned Deflection'!$F11*SQRT(E*I*'Fixed-Pinned Deflection'!$A11)*COS(AT3) -> 2.81755806 | AU7: =2*'Fixed-Pinned Deflection'!$F11*SQRT(E*I*'Fixed-Pinned Deflection'!$A11)*COS(AU3) -> 2.767579984 | AV7: =2*'Fixed-Pinned Deflection'!$F11*SQRT(E*I*'Fixed-Pinned Deflection'!$A11)*COS(AV3) -> 2.717583798 | AW7: =2*'Fixed-Pinned Deflection'!$F11*SQRT(E*I*'Fixed-Pinned Deflection'!$A11)*COS(AW3) -> 2.66756983 | AX7: =2*'Fixed-Pinned Deflection'!$F11*SQRT(E*I*'Fixed-Pinned Deflection'!$A11)*COS(AX3) -> 2.617538406 | AY7: =2*'Fixed-Pinned Deflection'!$F11*SQRT(E*I*'Fixed-Pinned Deflection'!$A11)*COS(AY3) -> 2.567489855 | AZ7: =2*'Fixed-Pinned Deflection'!$F11*SQRT(E*I*'Fixed-Pinned Deflection'!$A11)*COS(AZ3) -> 2.517424503 | BA7: =2*'Fixed-Pinned Deflection'!$F11*SQRT(E*I*'Fixed-Pinned Deflection'!$A11)*COS(BA3) -> 2.467342678 | BB7: =2*'Fixed-Pinned Deflection'!$F11*SQRT(E*I*'Fixed-Pinned Deflection'!$A11)*COS(BB3) -> 2.417244709 | BC7: =2*'Fixed-Pinned Deflection'!$F11*SQRT(E*I*'Fixed-Pinned Deflection'!$A11)*COS(BC3) -> 2.367130921 | BD7: =2*'Fixed-Pinned Deflection'!$F11*SQRT(E*I*'Fixed-Pinned Deflection'!$A11)*COS(BD3) -> 2.317001645 | BE7: =2*'Fixed-Pinned Deflection'!$F11*SQRT(E*I*'Fixed-Pinned Deflection'!$A11)*COS(BE3) -> 2.266857207 | BF7: =2*'Fixed-Pinned Deflection'!$F11*SQRT(E*I*'Fixed-Pinned Deflection'!$A11)*COS(BF3) -> 2.216697936 | BG7: =2*'Fixed-Pinned Deflection'!$F11*SQRT(E*I*'Fixed-Pinned Deflection'!$A11)*COS(BG3) -> 2.16652416 | BH7: =2*'Fixed-Pinned Deflection'!$F11*SQRT(E*I*'Fixed-Pinned Deflection'!$A11)*COS(BH3) -> 2.116336207 | BI7: =2*'Fixed-Pinned Deflection'!$F11*SQRT(E*I*'Fixed-Pinned Deflection'!$A11)*COS(BI3) -> 2.066134406 | BJ7: =2*'Fixed-Pinned Deflection'!$F11*SQRT(E*I*'Fixed-Pinned Deflection'!$A11)*COS(BJ3) -> 2.015919085 | BK7: =2*'Fixed-Pinned Deflection'!$F11*SQRT(E*I*'Fixed-Pinned Deflection'!$A11)*COS(BK3) -> 1.965690573 | BL7: =2*'Fixed-Pinned Deflection'!$F11*SQRT(E*I*'Fixed-Pinned Deflection'!$A11)*COS(BL3) -> 1.915449198 | BM7: =2*'Fixed-Pinned Deflection'!$F11*SQRT(E*I*'Fixed-Pinned Deflection'!$A11)*COS(BM3) -> 1.86519529 | BN7: =2*'Fixed-Pinned Deflection'!$F11*SQRT(E*I*'Fixed-Pinned Deflection'!$A11)*COS(BN3) -> 1.814929176 | BO7: =2*'Fixed-Pinned Deflection'!$F11*SQRT(E*I*'Fixed-Pinned Deflection'!$A11)*COS(BO3) -> 1.764651187 | BP7: =2*'Fixed-Pinned Deflection'!$F11*SQRT(E*I*'Fixed-Pinned Deflection'!$A11)*COS(BP3) -> 1.714361651 | BQ7: =2*'Fixed-Pinned Deflection'!$F11*SQRT(E*I*'Fixed-Pinned Deflection'!$A11)*COS(BQ3) -> 1.664060896 | BR7: =2*'Fixed-Pinned Deflection'!$F11*SQRT(E*I*'Fixed-Pinned Deflection'!$A11)*COS(BR3) -> 1.613749253 | BS7: =2*'Fixed-Pinned Deflection'!$F11*SQRT(E*I*'Fixed-Pinned Deflection'!$A11)*COS(BS3) -> 1.56342705 | BT7: =2*'Fixed-Pinned Deflection'!$F11*SQRT(E*I*'Fixed-Pinned Deflection'!$A11)*COS(BT3) -> 1.513094617 | BU7: =2*'Fixed-Pinned Deflection'!$F11*SQRT(E*I*'Fixed-Pinned Deflection'!$A11)*COS(BU3) -> 1.462752283 | BV7: =2*'Fixed-Pinned Deflection'!$F11*SQRT(E*I*'Fixed-Pinned Deflection'!$A11)*COS(BV3) -> 1.412400377 | BW7: =2*'Fixed-Pinned Deflection'!$F11*SQRT(E*I*'Fixed-Pinned Deflection'!$A11)*COS(BW3) -> 1.362039229 | BX7: =2*'Fixed-Pinned Deflection'!$F11*SQRT(E*I*'Fixed-Pinned Deflection'!$A11)*COS(BX3) -> 1.311669169 | BY7: =2*'Fixed-Pinned Deflection'!$F11*SQRT(E*I*'Fixed-Pinned Deflection'!$A11)*COS(BY3) -> 1.261290526 | BZ7: =2*'Fixed-Pinned Deflection'!$F11*SQRT(E*I*'Fixed-Pinned Deflection'!$A11)*COS(BZ3) -> 1.210903629 | CA7: =2*'Fixed-Pinned Deflection'!$F11*SQRT(E*I*'Fixed-Pinned Deflection'!$A11)*COS(CA3) -> 1.160508809 | CB7: =2*'Fixed-Pinned Deflection'!$F11*SQRT(E*I*'Fixed-Pinned Deflection'!$A11)*COS(CB3) -> 1.110106395 | CC7: =2*'Fixed-Pinned Deflection'!$F11*SQRT(E*I*'Fixed-Pinned Deflection'!$A11)*COS(CC3) -> 1.059696717 | CD7: =2*'Fixed-Pinned Deflection'!$F11*SQRT(E*I*'Fixed-Pinned Deflection'!$A11)*COS(CD3) -> 1.009280105 | CE7: =2*'Fixed-Pinned Deflection'!$F11*SQRT(E*I*'Fixed-Pinned Deflection'!$A11)*COS(CE3) -> 0.9588568886 | CF7: =2*'Fixed-Pinned Deflection'!$F11*SQRT(E*I*'Fixed-Pinned Deflection'!$A11)*COS(CF3) -> 0.9084273979 | CG7: =2*'Fixed-Pinned Deflection'!$F11*SQRT(E*I*'Fixed-Pinned Deflection'!$A11)*COS(CG3) -> 0.8579919629 | CH7: =2*'Fixed-Pinned Deflection'!$F11*SQRT(E*I*'Fixed-Pinned Deflection'!$A11)*COS(CH3) -> 0.8075509137 | CI7: =2*'Fixed-Pinned Deflection'!$F11*SQRT(E*I*'Fixed-Pinned Deflection'!$A11)*COS(CI3) -> 0.7571045802 | CJ7: =2*'Fixed-Pinned Deflection'!$F11*SQRT(E*I*'Fixed-Pinned Deflection'!$A11)*COS(CJ3) -> 0.7066532926 | CK7: =2*'Fixed-Pinned Deflection'!$F11*SQRT(E*I*'Fixed-Pinned Deflection'!$A11)*COS(CK3) -> 0.6561973809 | CL7: =2*'Fixed-Pinned Deflection'!$F11*SQRT(E*I*'Fixed-Pinned Deflection'!$A11)*COS(CL3) -> 0.6057371755 | CM7: =2*'Fixed-Pinned Deflection'!$F11*SQRT(E*I*'Fixed-Pinned Deflection'!$A11)*COS(CM3) -> 0.5552730064 | CN7: =2*'Fixed-Pinned Deflection'!$F11*SQRT(E*I*'Fixed-Pinned Deflection'!$A11)*COS(CN3) -> 0.5048052038 | CO7: =2*'Fixed-Pinned Deflection'!$F11*SQRT(E*I*'Fixed-Pinned Deflection'!$A11)*COS(CO3) -> 0.454334098 | CP7: =2*'Fixed-Pinned Deflection'!$F11*SQRT(E*I*'Fixed-Pinned Deflection'!$A11)*COS(CP3) -> 0.4038600193 | CQ7: =2*'Fixed-Pinned Deflection'!$F11*SQRT(E*I*'Fixed-Pinned Deflection'!$A11)*COS(CQ3) -> 0.3533832979 | CR7: =2*'Fixed-Pinned Deflection'!$F11*SQRT(E*I*'Fixed-Pinned Deflection'!$A11)*COS(CR3) -> 0.3029042642 | CS7: =2*'Fixed-Pinned Deflection'!$F11*SQRT(E*I*'Fixed-Pinned Deflection'!$A11)*COS(CS3) -> 0.2524232483 | CT7: =2*'Fixed-Pinned Deflection'!$F11*SQRT(E*I*'Fixed-Pinned Deflection'!$A11)*COS(CT3) -> 0.2019405808 | CU7: =2*'Fixed-Pinned Deflection'!$F11*SQRT(E*I*'Fixed-Pinned Deflection'!$A11)*COS(CU3) -> 0.1514565918 | CV7: =2*'Fixed-Pinned Deflection'!$F11*SQRT(E*I*'Fixed-Pinned Deflection'!$A11)*COS(CV3) -> 0.1009716118 | CW7: =2*'Fixed-Pinned Deflection'!$F11*SQRT(E*I*'Fixed-Pinned Deflection'!$A11)*COS(CW3) -> 0.05048597108 | CX7: =2*'Fixed-Pinned Deflection'!$F11*SQRT(E*I*'Fixed-Pinned Deflection'!$A11)*COS(CX3) -> 1.435599446e-14
A8: s | B8: =SQRT(E*I/'Fixed-Pinned Deflection'!$A11)*(Ellip_F(B3,'Fixed-Pinned Deflection'!$F11) - Ellip_F('Fixed-Pinned Deflection'!$K11,'Fixed-Pinned Deflection'!$F11)) -> 0 | C8: =SQRT(E*I/'Fixed-Pinned Deflection'!$A11)*(Ellip_F(C3,'Fixed-Pinned Deflection'!$F11) - Ellip_F('Fixed-Pinned Deflection'!$K11,'Fixed-Pinned Deflection'!$F11)) -> 0.009771905909 | D8: =SQRT(E*I/'Fixed-Pinned Deflection'!$A11)*(Ellip_F(D3,'Fixed-Pinned Deflection'!$F11) - Ellip_F('Fixed-Pinned Deflection'!$K11,'Fixed-Pinned Deflection'!$F11)) -> 0.01955030042 | E8: =SQRT(E*I/'Fixed-Pinned Deflection'!$A11)*(Ellip_F(E3,'Fixed-Pinned Deflection'!$F11) - Ellip_F('Fixed-Pinned Deflection'!$K11,'Fixed-Pinned Deflection'!$F11)) -> 0.02933513636 | F8: =SQRT(E*I/'Fixed-Pinned Deflection'!$A11)*(Ellip_F(F3,'Fixed-Pinned Deflection'!$F11) - Ellip_F('Fixed-Pinned Deflection'!$K11,'Fixed-Pinned Deflection'!$F11)) -> 0.0391263661 | G8: =SQRT(E*I/'Fixed-Pinned Deflection'!$A11)*(Ellip_F(G3,'Fixed-Pinned Deflection'!$F11) - Ellip_F('Fixed-Pinned Deflection'!$K11,'Fixed-Pinned Deflection'!$F11)) -> 0.04892394151 | H8: =SQRT(E*I/'Fixed-Pinned Deflection'!$A11)*(Ellip_F(H3,'Fixed-Pinned Deflection'!$F11) - Ellip_F('Fixed-Pinned Deflection'!$K11,'Fixed-Pinned Deflection'!$F11)) -> 0.05872781398 | I8: =SQRT(E*I/'Fixed-Pinned Deflection'!$A11)*(Ellip_F(I3,'Fixed-Pinned Deflection'!$F11) - Ellip_F('Fixed-Pinned Deflection'!$K11,'Fixed-Pinned Deflection'!$F11)) -> 0.06853793444 | J8: =SQRT(E*I/'Fixed-Pinned Deflection'!$A11)*(Ellip_F(J3,'Fixed-Pinned Deflection'!$F11) - Ellip_F('Fixed-Pinned Deflection'!$K11,'Fixed-Pinned Deflection'!$F11)) -> 0.07835425332 | K8: =SQRT(E*I/'Fixed-Pinned Deflection'!$A11)*(Ellip_F(K3,'Fixed-Pinned Deflection'!$F11) - Ellip_F('Fixed-Pinned Deflection'!$K11,'Fixed-Pinned Deflection'!$F11)) -> 0.0881767206 | L8: =SQRT(E*I/'Fixed-Pinned Deflection'!$A11)*(Ellip_F(L3,'Fixed-Pinned Deflection'!$F11) - Ellip_F('Fixed-Pinned Deflection'!$K11,'Fixed-Pinned Deflection'!$F11)) -> 0.09800528575 | M8: =SQRT(E*I/'Fixed-Pinned Deflection'!$A11)*(Ellip_F(M3,'Fixed-Pinned Deflection'!$F11) - Ellip_F('Fixed-Pinned Deflection'!$K11,'Fixed-Pinned Deflection'!$F11)) -> 0.1078398978 | N8: =SQRT(E*I/'Fixed-Pinned Deflection'!$A11)*(Ellip_F(N3,'Fixed-Pinned Deflection'!$F11) - Ellip_F('Fixed-Pinned Deflection'!$K11,'Fixed-Pinned Deflection'!$F11)) -> 0.1176805053 | O8: =SQRT(E*I/'Fixed-Pinned Deflection'!$A11)*(Ellip_F(O3,'Fixed-Pinned Deflection'!$F11) - Ellip_F('Fixed-Pinned Deflection'!$K11,'Fixed-Pinned Deflection'!$F11)) -> 0.1275270564 | P8: =SQRT(E*I/'Fixed-Pinned Deflection'!$A11)*(Ellip_F(P3,'Fixed-Pinned Deflection'!$F11) - Ellip_F('Fixed-Pinned Deflection'!$K11,'Fixed-Pinned Deflection'!$F11)) -> 0.1373794986 | Q8: =SQRT(E*I/'Fixed-Pinned Deflection'!$A11)*(Ellip_F(Q3,'Fixed-Pinned Deflection'!$F11) - Ellip_F('Fixed-Pinned Deflection'!$K11,'Fixed-Pinned Deflection'!$F11)) -> 0.1472377791 | R8: =SQRT(E*I/'Fixed-Pinned Deflection'!$A11)*(Ellip_F(R3,'Fixed-Pinned Deflection'!$F11) - Ellip_F('Fixed-Pinned Deflection'!$K11,'Fixed-Pinned Deflection'!$F11)) -> 0.1571018447 | S8: =SQRT(E*I/'Fixed-Pinned Deflection'!$A11)*(Ellip_F(S3,'Fixed-Pinned Deflection'!$F11) - Ellip_F('Fixed-Pinned Deflection'!$K11,'Fixed-Pinned Deflection'!$F11)) -> 0.1669716414 | T8: =SQRT(E*I/'Fixed-Pinned Deflection'!$A11)*(Ellip_F(T3,'Fixed-Pinned Deflection'!$F11) - Ellip_F('Fixed-Pinned Deflection'!$K11,'Fixed-Pinned Deflection'!$F11)) -> 0.1768471153 | U8: =SQRT(E*I/'Fixed-Pinned Deflection'!$A11)*(Ellip_F(U3,'Fixed-Pinned Deflection'!$F11) - Ellip_F('Fixed-Pinned Deflection'!$K11,'Fixed-Pinned Deflection'!$F11)) -> 0.1867282115 | V8: =SQRT(E*I/'Fixed-Pinned Deflection'!$A11)*(Ellip_F(V3,'Fixed-Pinned Deflection'!$F11) - Ellip_F('Fixed-Pinned Deflection'!$K11,'Fixed-Pinned Deflection'!$F11)) -> 0.1966148749 | W8: =SQRT(E*I/'Fixed-Pinned Deflection'!$A11)*(Ellip_F(W3,'Fixed-Pinned Deflection'!$F11) - Ellip_F('Fixed-Pinned Deflection'!$K11,'Fixed-Pinned Deflection'!$F11)) -> 0.20650705 | X8: =SQRT(E*I/'Fixed-Pinned Deflection'!$A11)*(Ellip_F(X3,'Fixed-Pinned Deflection'!$F11) - Ellip_F('Fixed-Pinned Deflection'!$K11,'Fixed-Pinned Deflection'!$F11)) -> 0.2164046808 | Y8: =SQRT(E*I/'Fixed-Pinned Deflection'!$A11)*(Ellip_F(Y3,'Fixed-Pinned Deflection'!$F11) - Ellip_F('Fixed-Pinned Deflection'!$K11,'Fixed-Pinned Deflection'!$F11)) -> 0.2263077108 | Z8: =SQRT(E*I/'Fixed-Pinned Deflection'!$A11)*(Ellip_F(Z3,'Fixed-Pinned Deflection'!$F11) - Ellip_F('Fixed-Pinned Deflection'!$K11,'Fixed-Pinned Deflection'!$F11)) -> 0.2362160832 | AA8: =SQRT(E*I/'Fixed-Pinned Deflection'!$A11)*(Ellip_F(AA3,'Fixed-Pinned Deflection'!$F11) - Ellip_F('Fixed-Pinned Deflection'!$K11,'Fixed-Pinned Deflection'!$F11)) -> 0.2461297405 | AB8: =SQRT(E*I/'Fixed-Pinned Deflection'!$A11)*(Ellip_F(AB3,'Fixed-Pinned Deflection'!$F11) - Ellip_F('Fixed-Pinned Deflection'!$K11,'Fixed-Pinned Deflection'!$F11)) -> 0.256048625 | AC8: =SQRT(E*I/'Fixed-Pinned Deflection'!$A11)*(Ellip_F(AC3,'Fixed-Pinned Deflection'!$F11) - Ellip_F('Fixed-Pinned Deflection'!$K11,'Fixed-Pinned Deflection'!$F11)) -> 0.2659726786 | AD8: =SQRT(E*I/'Fixed-Pinned Deflection'!$A11)*(Ellip_F(AD3,'Fixed-Pinned Deflection'!$F11) - Ellip_F('Fixed-Pinned Deflection'!$K11,'Fixed-Pinned Deflection'!$F11)) -> 0.2759018427 | AE8: =SQRT(E*I/'Fixed-Pinned Deflection'!$A11)*(Ellip_F(AE3,'Fixed-Pinned Deflection'!$F11) - Ellip_F('Fixed-Pinned Deflection'!$K11,'Fixed-Pinned Deflection'!$F11)) -> 0.2858360581 | AF8: =SQRT(E*I/'Fixed-Pinned Deflection'!$A11)*(Ellip_F(AF3,'Fixed-Pinned Deflection'!$F11) - Ellip_F('Fixed-Pinned Deflection'!$K11,'Fixed-Pinned Deflection'!$F11)) -> 0.2957752654 | AG8: =SQRT(E*I/'Fixed-Pinned Deflection'!$A11)*(Ellip_F(AG3,'Fixed-Pinned Deflection'!$F11) - Ellip_F('Fixed-Pinned Deflection'!$K11,'Fixed-Pinned Deflection'!$F11)) -> 0.3057194048 | AH8: =SQRT(E*I/'Fixed-Pinned Deflection'!$A11)*(Ellip_F(AH3,'Fixed-Pinned Deflection'!$F11) - Ellip_F('Fixed-Pinned Deflection'!$K11,'Fixed-Pinned Deflection'!$F11)) -> 0.315668416 | AI8: =SQRT(E*I/'Fixed-Pinned Deflection'!$A11)*(Ellip_F(AI3,'Fixed-Pinned Deflection'!$F11) - Ellip_F('Fixed-Pinned Deflection'!$K11,'Fixed-Pinned Deflection'!$F11)) -> 0.3256222383 | AJ8: =SQRT(E*I/'Fixed-Pinned Deflection'!$A11)*(Ellip_F(AJ3,'Fixed-Pinned Deflection'!$F11) - Ellip_F('Fixed-Pinned Deflection'!$K11,'Fixed-Pinned Deflection'!$F11)) -> 0.3355808105 | AK8: =SQRT(E*I/'Fixed-Pinned Deflection'!$A11)*(Ellip_F(AK3,'Fixed-Pinned Deflection'!$F11) - Ellip_F('Fixed-Pinned Deflection'!$K11,'Fixed-Pinned Deflection'!$F11)) -> 0.3455440713 | AL8: =SQRT(E*I/'Fixed-Pinned Deflection'!$A11)*(Ellip_F(AL3,'Fixed-Pinned Deflection'!$F11) - Ellip_F('Fixed-Pinned Deflection'!$K11,'Fixed-Pinned Deflection'!$F11)) -> 0.3555119586 | AM8: =SQRT(E*I/'Fixed-Pinned Deflection'!$A11)*(Ellip_F(AM3,'Fixed-Pinned Deflection'!$F11) - Ellip_F('Fixed-Pinned Deflection'!$K11,'Fixed-Pinned Deflection'!$F11)) -> 0.3654844102 | AN8: =SQRT(E*I/'Fixed-Pinned Deflection'!$A11)*(Ellip_F(AN3,'Fixed-Pinned Deflection'!$F11) - Ellip_F('Fixed-Pinned Deflection'!$K11,'Fixed-Pinned Deflection'!$F11)) -> 0.3754613635 | AO8: =SQRT(E*I/'Fixed-Pinned Deflection'!$A11)*(Ellip_F(AO3,'Fixed-Pinned Deflection'!$F11) - Ellip_F('Fixed-Pinned Deflection'!$K11,'Fixed-Pinned Deflection'!$F11)) -> 0.3854427553 | AP8: =SQRT(E*I/'Fixed-Pinned Deflection'!$A11)*(Ellip_F(AP3,'Fixed-Pinned Deflection'!$F11) - Ellip_F('Fixed-Pinned Deflection'!$K11,'Fixed-Pinned Deflection'!$F11)) -> 0.3954285223 | AQ8: =SQRT(E*I/'Fixed-Pinned Deflection'!$A11)*(Ellip_F(AQ3,'Fixed-Pinned Deflection'!$F11) - Ellip_F('Fixed-Pinned Deflection'!$K11,'Fixed-Pinned Deflection'!$F11)) -> 0.4054186006 | AR8: =SQRT(E*I/'Fixed-Pinned Deflection'!$A11)*(Ellip_F(AR3,'Fixed-Pinned Deflection'!$F11) - Ellip_F('Fixed-Pinned Deflection'!$K11,'Fixed-Pinned Deflection'!$F11)) -> 0.415412926 | AS8: =SQRT(E*I/'Fixed-Pinned Deflection'!$A11)*(Ellip_F(AS3,'Fixed-Pinned Deflection'!$F11) - Ellip_F('Fixed-Pinned Deflection'!$K11,'Fixed-Pinned Deflection'!$F11)) -> 0.425411434 | AT8: =SQRT(E*I/'Fixed-Pinned Deflection'!$A11)*(Ellip_F(AT3,'Fixed-Pinned Deflection'!$F11) - Ellip_F('Fixed-Pinned Deflection'!$K11,'Fixed-Pinned Deflection'!$F11)) -> 0.4354140597 | AU8: =SQRT(E*I/'Fixed-Pinned Deflection'!$A11)*(Ellip_F(AU3,'Fixed-Pinned Deflection'!$F11) - Ellip_F('Fixed-Pinned Deflection'!$K11,'Fixed-Pinned Deflection'!$F11)) -> 0.4454207377 | AV8: =SQRT(E*I/'Fixed-Pinned Deflection'!$A11)*(Ellip_F(AV3,'Fixed-Pinned Deflection'!$F11) - Ellip_F('Fixed-Pinned Deflection'!$K11,'Fixed-Pinned Deflection'!$F11)) -> 0.4554314025 | AW8: =SQRT(E*I/'Fixed-Pinned Deflection'!$A11)*(Ellip_F(AW3,'Fixed-Pinned Deflection'!$F11) - Ellip_F('Fixed-Pinned Deflection'!$K11,'Fixed-Pinned Deflection'!$F11)) -> 0.4654459881 | AX8: =SQRT(E*I/'Fixed-Pinned Deflection'!$A11)*(Ellip_F(AX3,'Fixed-Pinned Deflection'!$F11) - Ellip_F('Fixed-Pinned Deflection'!$K11,'Fixed-Pinned Deflection'!$F11)) -> 0.4754644282 | AY8: =SQRT(E*I/'Fixed-Pinned Deflection'!$A11)*(Ellip_F(AY3,'Fixed-Pinned Deflection'!$F11) - Ellip_F('Fixed-Pinned Deflection'!$K11,'Fixed-Pinned Deflection'!$F11)) -> 0.4854866562 | AZ8: =SQRT(E*I/'Fixed-Pinned Deflection'!$A11)*(Ellip_F(AZ3,'Fixed-Pinned Deflection'!$F11) - Ellip_F('Fixed-Pinned Deflection'!$K11,'Fixed-Pinned Deflection'!$F11)) -> 0.4955126049 | BA8: =SQRT(E*I/'Fixed-Pinned Deflection'!$A11)*(Ellip_F(BA3,'Fixed-Pinned Deflection'!$F11) - Ellip_F('Fixed-Pinned Deflection'!$K11,'Fixed-Pinned Deflection'!$F11)) -> 0.5055422072 | BB8: =SQRT(E*I/'Fixed-Pinned Deflection'!$A11)*(Ellip_F(BB3,'Fixed-Pinned Deflection'!$F11) - Ellip_F('Fixed-Pinned Deflection'!$K11,'Fixed-Pinned Deflection'!$F11)) -> 0.5155753954 | BC8: =SQRT(E*I/'Fixed-Pinned Deflection'!$A11)*(Ellip_F(BC3,'Fixed-Pinned Deflection'!$F11) - Ellip_F('Fixed-Pinned Deflection'!$K11,'Fixed-Pinned Deflection'!$F11)) -> 0.5256121015 | BD8: =SQRT(E*I/'Fixed-Pinned Deflection'!$A11)*(Ellip_F(BD3,'Fixed-Pinned Deflection'!$F11) - Ellip_F('Fixed-Pinned Deflection'!$K11,'Fixed-Pinned Deflection'!$F11)) -> 0.5356522573 | BE8: =SQRT(E*I/'Fixed-Pinned Deflection'!$A11)*(Ellip_F(BE3,'Fixed-Pinned Deflection'!$F11) - Ellip_F('Fixed-Pinned Deflection'!$K11,'Fixed-Pinned Deflection'!$F11)) -> 0.5456957941 | BF8: =SQRT(E*I/'Fixed-Pinned Deflection'!$A11)*(Ellip_F(BF3,'Fixed-Pinned Deflection'!$F11) - Ellip_F('Fixed-Pinned Deflection'!$K11,'Fixed-Pinned Deflection'!$F11)) -> 0.5557426432 | BG8: =SQRT(E*I/'Fixed-Pinned Deflection'!$A11)*(Ellip_F(BG3,'Fixed-Pinned Deflection'!$F11) - Ellip_F('Fixed-Pinned Deflection'!$K11,'Fixed-Pinned Deflection'!$F11)) -> 0.5657927354 | BH8: =SQRT(E*I/'Fixed-Pinned Deflection'!$A11)*(Ellip_F(BH3,'Fixed-Pinned Deflection'!$F11) - Ellip_F('Fixed-Pinned Deflection'!$K11,'Fixed-Pinned Deflection'!$F11)) -> 0.5758460011 | BI8: =SQRT(E*I/'Fixed-Pinned Deflection'!$A11)*(Ellip_F(BI3,'Fixed-Pinned Deflection'!$F11) - Ellip_F('Fixed-Pinned Deflection'!$K11,'Fixed-Pinned Deflection'!$F11)) -> 0.5859023707 | BJ8: =SQRT(E*I/'Fixed-Pinned Deflection'!$A11)*(Ellip_F(BJ3,'Fixed-Pinned Deflection'!$F11) - Ellip_F('Fixed-Pinned Deflection'!$K11,'Fixed-Pinned Deflection'!$F11)) -> 0.595961774 | BK8: =SQRT(E*I/'Fixed-Pinned Deflection'!$A11)*(Ellip_F(BK3,'Fixed-Pinned Deflection'!$F11) - Ellip_F('Fixed-Pinned Deflection'!$K11,'Fixed-Pinned Deflection'!$F11)) -> 0.606024141 | BL8: =SQRT(E*I/'Fixed-Pinned Deflection'!$A11)*(Ellip_F(BL3,'Fixed-Pinned Deflection'!$F11) - Ellip_F('Fixed-Pinned Deflection'!$K11,'Fixed-Pinned Deflection'!$F11)) -> 0.6160894008 | BM8: =SQRT(E*I/'Fixed-Pinned Deflection'!$A11)*(Ellip_F(BM3,'Fixed-Pinned Deflection'!$F11) - Ellip_F('Fixed-Pinned Deflection'!$K11,'Fixed-Pinned Deflection'!$F11)) -> 0.6261574828 | BN8: =SQRT(E*I/'Fixed-Pinned Deflection'!$A11)*(Ellip_F(BN3,'Fixed-Pinned Deflection'!$F11) - Ellip_F('Fixed-Pinned Deflection'!$K11,'Fixed-Pinned Deflection'!$F11)) -> 0.6362283159 | BO8: =SQRT(E*I/'Fixed-Pinned Deflection'!$A11)*(Ellip_F(BO3,'Fixed-Pinned Deflection'!$F11) - Ellip_F('Fixed-Pinned Deflection'!$K11,'Fixed-Pinned Deflection'!$F11)) -> 0.6463018286 | BP8: =SQRT(E*I/'Fixed-Pinned Deflection'!$A11)*(Ellip_F(BP3,'Fixed-Pinned Deflection'!$F11) - Ellip_F('Fixed-Pinned Deflection'!$K11,'Fixed-Pinned Deflection'!$F11)) -> 0.6563779496 | BQ8: =SQRT(E*I/'Fixed-Pinned Deflection'!$A11)*(Ellip_F(BQ3,'Fixed-Pinned Deflection'!$F11) - Ellip_F('Fixed-Pinned Deflection'!$K11,'Fixed-Pinned Deflection'!$F11)) -> 0.6664566068 | BR8: =SQRT(E*I/'Fixed-Pinned Deflection'!$A11)*(Ellip_F(BR3,'Fixed-Pinned Deflection'!$F11) - Ellip_F('Fixed-Pinned Deflection'!$K11,'Fixed-Pinned Deflection'!$F11)) -> 0.6765377283 | BS8: =SQRT(E*I/'Fixed-Pinned Deflection'!$A11)*(Ellip_F(BS3,'Fixed-Pinned Deflection'!$F11) - Ellip_F('Fixed-Pinned Deflection'!$K11,'Fixed-Pinned Deflection'!$F11)) -> 0.6866212419 | BT8: =SQRT(E*I/'Fixed-Pinned Deflection'!$A11)*(Ellip_F(BT3,'Fixed-Pinned Deflection'!$F11) - Ellip_F('Fixed-Pinned Deflection'!$K11,'Fixed-Pinned Deflection'!$F11)) -> 0.6967070749 | BU8: =SQRT(E*I/'Fixed-Pinned Deflection'!$A11)*(Ellip_F(BU3,'Fixed-Pinned Deflection'!$F11) - Ellip_F('Fixed-Pinned Deflection'!$K11,'Fixed-Pinned Deflection'!$F11)) -> 0.7067951548 | BV8: =SQRT(E*I/'Fixed-Pinned Deflection'!$A11)*(Ellip_F(BV3,'Fixed-Pinned Deflection'!$F11) - Ellip_F('Fixed-Pinned Deflection'!$K11,'Fixed-Pinned Deflection'!$F11)) -> 0.7168854087 | BW8: =SQRT(E*I/'Fixed-Pinned Deflection'!$A11)*(Ellip_F(BW3,'Fixed-Pinned Deflection'!$F11) - Ellip_F('Fixed-Pinned Deflection'!$K11,'Fixed-Pinned Deflection'!$F11)) -> 0.7269777633 | BX8: =SQRT(E*I/'Fixed-Pinned Deflection'!$A11)*(Ellip_F(BX3,'Fixed-Pinned Deflection'!$F11) - Ellip_F('Fixed-Pinned Deflection'!$K11,'Fixed-Pinned Deflection'!$F11)) -> 0.7370721455 | BY8: =SQRT(E*I/'Fixed-Pinned Deflection'!$A11)*(Ellip_F(BY3,'Fixed-Pinned Deflection'!$F11) - Ellip_F('Fixed-Pinned Deflection'!$K11,'Fixed-Pinned Deflection'!$F11)) -> 0.7471684817 | BZ8: =SQRT(E*I/'Fixed-Pinned Deflection'!$A11)*(Ellip_F(BZ3,'Fixed-Pinned Deflection'!$F11) - Ellip_F('Fixed-Pinned Deflection'!$K11,'Fixed-Pinned Deflection'!$F11)) -> 0.7572666983 | CA8: =SQRT(E*I/'Fixed-Pinned Deflection'!$A11)*(Ellip_F(CA3,'Fixed-Pinned Deflection'!$F11) - Ellip_F('Fixed-Pinned Deflection'!$K11,'Fixed-Pinned Deflection'!$F11)) -> 0.7673667214 | CB8: =SQRT(E*I/'Fixed-Pinned Deflection'!$A11)*(Ellip_F(CB3,'Fixed-Pinned Deflection'!$F11) - Ellip_F('Fixed-Pinned Deflection'!$K11,'Fixed-Pinned Deflection'!$F11)) -> 0.777468477 | CC8: =SQRT(E*I/'Fixed-Pinned Deflection'!$A11)*(Ellip_F(CC3,'Fixed-Pinned Deflection'!$F11) - Ellip_F('Fixed-Pinned Deflection'!$K11,'Fixed-Pinned Deflection'!$F11)) -> 0.787571891 | CD8: =SQRT(E*I/'Fixed-Pinned Deflection'!$A11)*(Ellip_F(CD3,'Fixed-Pinned Deflection'!$F11) - Ellip_F('Fixed-Pinned Deflection'!$K11,'Fixed-Pinned Deflection'!$F11)) -> 0.797676889 | CE8: =SQRT(E*I/'Fixed-Pinned Deflection'!$A11)*(Ellip_F(CE3,'Fixed-Pinned Deflection'!$F11) - Ellip_F('Fixed-Pinned Deflection'!$K11,'Fixed-Pinned Deflection'!$F11)) -> 0.8077833966 | CF8: =SQRT(E*I/'Fixed-Pinned Deflection'!$A11)*(Ellip_F(CF3,'Fixed-Pinned Deflection'!$F11) - Ellip_F('Fixed-Pinned Deflection'!$K11,'Fixed-Pinned Deflection'!$F11)) -> 0.8178913391 | CG8: =SQRT(E*I/'Fixed-Pinned Deflection'!$A11)*(Ellip_F(CG3,'Fixed-Pinned Deflection'!$F11) - Ellip_F('Fixed-Pinned Deflection'!$K11,'Fixed-Pinned Deflection'!$F11)) -> 0.8280006419 | CH8: =SQRT(E*I/'Fixed-Pinned Deflection'!$A11)*(Ellip_F(CH3,'Fixed-Pinned Deflection'!$F11) - Ellip_F('Fixed-Pinned Deflection'!$K11,'Fixed-Pinned Deflection'!$F11)) -> 0.83811123 | CI8: =SQRT(E*I/'Fixed-Pinned Deflection'!$A11)*(Ellip_F(CI3,'Fixed-Pinned Deflection'!$F11) - Ellip_F('Fixed-Pinned Deflection'!$K11,'Fixed-Pinned Deflection'!$F11)) -> 0.8482230285 | CJ8: =SQRT(E*I/'Fixed-Pinned Deflection'!$A11)*(Ellip_F(CJ3,'Fixed-Pinned Deflection'!$F11) - Ellip_F('Fixed-Pinned Deflection'!$K11,'Fixed-Pinned Deflection'!$F11)) -> 0.8583359623 | CK8: =SQRT(E*I/'Fixed-Pinned Deflection'!$A11)*(Ellip_F(CK3,'Fixed-Pinned Deflection'!$F11) - Ellip_F('Fixed-Pinned Deflection'!$K11,'Fixed-Pinned Deflection'!$F11)) -> 0.8684499561 | CL8: =SQRT(E*I/'Fixed-Pinned Deflection'!$A11)*(Ellip_F(CL3,'Fixed-Pinned Deflection'!$F11) - Ellip_F('Fixed-Pinned Deflection'!$K11,'Fixed-Pinned Deflection'!$F11)) -> 0.8785649347 | CM8: =SQRT(E*I/'Fixed-Pinned Deflection'!$A11)*(Ellip_F(CM3,'Fixed-Pinned Deflection'!$F11) - Ellip_F('Fixed-Pinned Deflection'!$K11,'Fixed-Pinned Deflection'!$F11)) -> 0.8886808226 | CN8: =SQRT(E*I/'Fixed-Pinned Deflection'!$A11)*(Ellip_F(CN3,'Fixed-Pinned Deflection'!$F11) - Ellip_F('Fixed-Pinned Deflection'!$K11,'Fixed-Pinned Deflection'!$F11)) -> 0.8987975444 | CO8: =SQRT(E*I/'Fixed-Pinned Deflection'!$A11)*(Ellip_F(CO3,'Fixed-Pinned Deflection'!$F11) - Ellip_F('Fixed-Pinned Deflection'!$K11,'Fixed-Pinned Deflection'!$F11)) -> 0.9089150246 | CP8: =SQRT(E*I/'Fixed-Pinned Deflection'!$A11)*(Ellip_F(CP3,'Fixed-Pinned Deflection'!$F11) - Ellip_F('Fixed-Pinned Deflection'!$K11,'Fixed-Pinned Deflection'!$F11)) -> 0.9190331874 | CQ8: =SQRT(E*I/'Fixed-Pinned Deflection'!$A11)*(Ellip_F(CQ3,'Fixed-Pinned Deflection'!$F11) - Ellip_F('Fixed-Pinned Deflection'!$K11,'Fixed-Pinned Deflection'!$F11)) -> 0.9291519572 | CR8: =SQRT(E*I/'Fixed-Pinned Deflection'!$A11)*(Ellip_F(CR3,'Fixed-Pinned Deflection'!$F11) - Ellip_F('Fixed-Pinned Deflection'!$K11,'Fixed-Pinned Deflection'!$F11)) -> 0.9392712583 | CS8: =SQRT(E*I/'Fixed-Pinned Deflection'!$A11)*(Ellip_F(CS3,'Fixed-Pinned Deflection'!$F11) - Ellip_F('Fixed-Pinned Deflection'!$K11,'Fixed-Pinned Deflection'!$F11)) -> 0.9493910149 | CT8: =SQRT(E*I/'Fixed-Pinned Deflection'!$A11)*(Ellip_F(CT3,'Fixed-Pinned Deflection'!$F11) - Ellip_F('Fixed-Pinned Deflection'!$K11,'Fixed-Pinned Deflection'!$F11)) -> 0.959511151 | CU8: =SQRT(E*I/'Fixed-Pinned Deflection'!$A11)*(Ellip_F(CU3,'Fixed-Pinned Deflection'!$F11) - Ellip_F('Fixed-Pinned Deflection'!$K11,'Fixed-Pinned Deflection'!$F11)) -> 0.9696315909 | CV8: =SQRT(E*I/'Fixed-Pinned Deflection'!$A11)*(Ellip_F(CV3,'Fixed-Pinned Deflection'!$F11) - Ellip_F('Fixed-Pinned Deflection'!$K11,'Fixed-Pinned Deflection'!$F11)) -> 0.9797522585 | CW8: =SQRT(E*I/'Fixed-Pinned Deflection'!$A11)*(Ellip_F(CW3,'Fixed-Pinned Deflection'!$F11) - Ellip_F('Fixed-Pinned Deflection'!$K11,'Fixed-Pinned Deflection'!$F11)) -> 0.9898730781 | CX8: =SQRT(E*I/'Fixed-Pinned Deflection'!$A11)*(Ellip_F(CX3,'Fixed-Pinned Deflection'!$F11) - Ellip_F('Fixed-Pinned Deflection'!$K11,'Fixed-Pinned Deflection'!$F11)) -> 0.9999939737
A9: sbend | B9: =B7*t/(2*I) -> 239698.7052 | C9: 237353.4484 | D9: 235006.6386 | E9: 232658.291 | F9: 230308.4209 | G9: 227957.0439 | H9: 225604.1752 | I9: 223249.8302 | J9: 220894.0245 | K9: 218536.7732 | L9: 216178.092 | M9: 213817.9962 | N9: 211456.5013 | O9: 209093.6228 | P9: 206729.376 | Q9: 204363.7765 | R9: 201996.8397 | S9: 199628.5811 | T9: 197259.0163 | U9: 194888.1607 | V9: 192516.0299 | W9: 190142.6393 | X9: 187768.0045 | Y9: 185392.1411 | Z9: 183015.0645 | AA9: 180636.7904 | AB9: 178257.3342 | AC9: 175876.7117 | AD9: 173494.9382 | AE9: 171112.0296 | AF9: 168728.0012 | AG9: 166342.8688 | AH9: =AH7*t/(2*I) -> 163956.6479 | AI9: 161569.3541 | AJ9: 159181.0031 | AK9: 156791.6105 | AL9: 154401.1919 | AM9: 152009.763 | AN9: 149617.3395 | AO9: 147223.9369 | AP9: 144829.5709 | AQ9: 142434.2572 | AR9: 140038.0116 | AS9: 137640.8495 | AT9: 135242.7869 | AU9: 132843.8392 | AV9: 130444.0223 | AW9: 128043.3518 | AX9: 125641.8435 | AY9: 123239.513 | AZ9: 120836.3761 | BA9: 118432.4486 | BB9: 116027.746 | BC9: 113622.2842 | BD9: 111216.079 | BE9: 108809.1459 | BF9: 106401.5009 | BG9: 103993.1597 | BH9: 101584.1379 | BI9: 99174.45149 | BJ9: 96764.11608 | BK9: 94353.1475 | BL9: 91941.56152 | BM9: 89529.37391 | BN9: =BN7*t/(2*I) -> 87116.60047 | BO9: 84703.25698 | BP9: 82289.35923 | BQ9: 79874.92301 | BR9: 77459.96414 | BS9: 75044.4984 | BT9: 72628.54161 | BU9: 70212.10957 | BV9: 67795.21809 | BW9: 65377.883 | BX9: 62960.1201 | BY9: 60541.94523 | BZ9: 58123.37419 | CA9: 55704.42283 | CB9: 53285.10696 | CC9: 50865.44242 | CD9: 48445.44504 | CE9: 46025.13065 | CF9: 43604.5151 | CG9: 41183.61422 | CH9: 38762.44386 | CI9: 36341.01985 | CJ9: 33919.35804 | CK9: 31497.47429 | CL9: 29075.38442 | CM9: 26653.10431 | CN9: 24230.64978 | CO9: 21808.03671 | CP9: 19385.28093 | CQ9: 16962.3983 | CR9: 14539.40468 | CS9: 12116.31592 | CT9: 9693.147878 | CU9: 7269.916408 | CV9: 4846.637367 | CW9: 2423.326612 | CX9: 6.890877339e-10
A10: saxial | B10: ='Fixed-Pinned Deflection'!$A11*COS('Fixed-Pinned Deflection'!$J11-Work!B6)/(t*w) -> 1.225148455e-13 | C10: ='Fixed-Pinned Deflection'!$A11*COS('Fixed-Pinned Deflection'!$J11-Work!C6)/(t*w) -> 2.663832787 | D10: ='Fixed-Pinned Deflection'!$A11*COS('Fixed-Pinned Deflection'!$J11-Work!D6)/(t*w) -> 5.303212086 | E10: ='Fixed-Pinned Deflection'!$A11*COS('Fixed-Pinned Deflection'!$J11-Work!E6)/(t*w) -> 7.918068813 | F10: ='Fixed-Pinned Deflection'!$A11*COS('Fixed-Pinned Deflection'!$J11-Work!F6)/(t*w) -> 10.50833453 | G10: ='Fixed-Pinned Deflection'!$A11*COS('Fixed-Pinned Deflection'!$J11-Work!G6)/(t*w) -> 13.07394143 | H10: ='Fixed-Pinned Deflection'!$A11*COS('Fixed-Pinned Deflection'!$J11-Work!H6)/(t*w) -> 15.61482237 | I10: ='Fixed-Pinned Deflection'!$A11*COS('Fixed-Pinned Deflection'!$J11-Work!I6)/(t*w) -> 18.13091085 | J10: ='Fixed-Pinned Deflection'!$A11*COS('Fixed-Pinned Deflection'!$J11-Work!J6)/(t*w) -> 20.622141 | K10: ='Fixed-Pinned Deflection'!$A11*COS('Fixed-Pinned Deflection'!$J11-Work!K6)/(t*w) -> 23.08844761 | L10: ='Fixed-Pinned Deflection'!$A11*COS('Fixed-Pinned Deflection'!$J11-Work!L6)/(t*w) -> 25.52976615 | M10: ='Fixed-Pinned Deflection'!$A11*COS('Fixed-Pinned Deflection'!$J11-Work!M6)/(t*w) -> 27.9460327 | N10: ='Fixed-Pinned Deflection'!$A11*COS('Fixed-Pinned Deflection'!$J11-Work!N6)/(t*w) -> 30.33718403 | O10: ='Fixed-Pinned Deflection'!$A11*COS('Fixed-Pinned Deflection'!$J11-Work!O6)/(t*w) -> 32.70315755 | P10: ='Fixed-Pinned Deflection'!$A11*COS('Fixed-Pinned Deflection'!$J11-Work!P6)/(t*w) -> 35.04389133 | Q10: ='Fixed-Pinned Deflection'!$A11*COS('Fixed-Pinned Deflection'!$J11-Work!Q6)/(t*w) -> 37.3593241 | R10: ='Fixed-Pinned Deflection'!$A11*COS('Fixed-Pinned Deflection'!$J11-Work!R6)/(t*w) -> 39.64939526 | S10: ='Fixed-Pinned Deflection'!$A11*COS('Fixed-Pinned Deflection'!$J11-Work!S6)/(t*w) -> 41.91404487 | T10: ='Fixed-Pinned Deflection'!$A11*COS('Fixed-Pinned Deflection'!$J11-Work!T6)/(t*w) -> 44.15321366 | U10: ='Fixed-Pinned Deflection'!$A11*COS('Fixed-Pinned Deflection'!$J11-Work!U6)/(t*w) -> 46.36684301 | V10: ='Fixed-Pinned Deflection'!$A11*COS('Fixed-Pinned Deflection'!$J11-Work!V6)/(t*w) -> 48.55487499 | W10: ='Fixed-Pinned Deflection'!$A11*COS('Fixed-Pinned Deflection'!$J11-Work!W6)/(t*w) -> 50.71725233 | X10: ='Fixed-Pinned Deflection'!$A11*COS('Fixed-Pinned Deflection'!$J11-Work!X6)/(t*w) -> 52.85391843 | Y10: ='Fixed-Pinned Deflection'!$A11*COS('Fixed-Pinned Deflection'!$J11-Work!Y6)/(t*w) -> 54.96481736 | Z10: ='Fixed-Pinned Deflection'!$A11*COS('Fixed-Pinned Deflection'!$J11-Work!Z6)/(t*w) -> 57.04989387 | AA10: ='Fixed-Pinned Deflection'!$A11*COS('Fixed-Pinned Deflection'!$J11-Work!AA6)/(t*w) -> 59.10909339 | AB10: ='Fixed-Pinned Deflection'!$A11*COS('Fixed-Pinned Deflection'!$J11-Work!AB6)/(t*w) -> 61.14236203 | AC10: ='Fixed-Pinned Deflection'!$A11*COS('Fixed-Pinned Deflection'!$J11-Work!AC6)/(t*w) -> 63.14964655 | AD10: ='Fixed-Pinned Deflection'!$A11*COS('Fixed-Pinned Deflection'!$J11-Work!AD6)/(t*w) -> 65.13089443 | AE10: ='Fixed-Pinned Deflection'!$A11*COS('Fixed-Pinned Deflection'!$J11-Work!AE6)/(t*w) -> 67.0860538 | AF10: ='Fixed-Pinned Deflection'!$A11*COS('Fixed-Pinned Deflection'!$J11-Work!AF6)/(t*w) -> 69.0150735 | AG10: ='Fixed-Pinned Deflection'!$A11*COS('Fixed-Pinned Deflection'!$J11-Work!AG6)/(t*w) -> 70.91790302 | AH10: ='Fixed-Pinned Deflection'!$A11*COS('Fixed-Pinned Deflection'!$J11-Work!AH6)/(t*w) -> 72.79449257 | AI10: ='Fixed-Pinned Deflection'!$A11*COS('Fixed-Pinned Deflection'!$J11-Work!AI6)/(t*w) -> 74.64479303 | AJ10: ='Fixed-Pinned Deflection'!$A11*COS('Fixed-Pinned Deflection'!$J11-Work!AJ6)/(t*w) -> 76.46875597 | AK10: ='Fixed-Pinned Deflection'!$A11*COS('Fixed-Pinned Deflection'!$J11-Work!AK6)/(t*w) -> 78.26633365 | AL10: ='Fixed-Pinned Deflection'!$A11*COS('Fixed-Pinned Deflection'!$J11-Work!AL6)/(t*w) -> 80.03747901 | AM10: ='Fixed-Pinned Deflection'!$A11*COS('Fixed-Pinned Deflection'!$J11-Work!AM6)/(t*w) -> 81.78214571 | AN10: ='Fixed-Pinned Deflection'!$A11*COS('Fixed-Pinned Deflection'!$J11-Work!AN6)/(t*w) -> 83.50028807 | AO10: ='Fixed-Pinned Deflection'!$A11*COS('Fixed-Pinned Deflection'!$J11-Work!AO6)/(t*w) -> 85.19186112 | AP10: ='Fixed-Pinned Deflection'!$A11*COS('Fixed-Pinned Deflection'!$J11-Work!AP6)/(t*w) -> 86.85682059 | AQ10: ='Fixed-Pinned Deflection'!$A11*COS('Fixed-Pinned Deflection'!$J11-Work!AQ6)/(t*w) -> 88.4951229 | AR10: ='Fixed-Pinned Deflection'!$A11*COS('Fixed-Pinned Deflection'!$J11-Work!AR6)/(t*w) -> 90.10672518 | AS10: ='Fixed-Pinned Deflection'!$A11*COS('Fixed-Pinned Deflection'!$J11-Work!AS6)/(t*w) -> 91.69158522 | AT10: ='Fixed-Pinned Deflection'!$A11*COS('Fixed-Pinned Deflection'!$J11-Work!AT6)/(t*w) -> 93.24966157 | AU10: ='Fixed-Pinned Deflection'!$A11*COS('Fixed-Pinned Deflection'!$J11-Work!AU6)/(t*w) -> 94.78091342 | AV10: ='Fixed-Pinned Deflection'!$A11*COS('Fixed-Pinned Deflection'!$J11-Work!AV6)/(t*w) -> 96.28530072 | AW10: ='Fixed-Pinned Deflection'!$A11*COS('Fixed-Pinned Deflection'!$J11-Work!AW6)/(t*w) -> 97.76278407 | AX10: ='Fixed-Pinned Deflection'!$A11*COS('Fixed-Pinned Deflection'!$J11-Work!AX6)/(t*w) -> 99.2133248 | AY10: ='Fixed-Pinned Deflection'!$A11*COS('Fixed-Pinned Deflection'!$J11-Work!AY6)/(t*w) -> 100.636885 | AZ10: ='Fixed-Pinned Deflection'!$A11*COS('Fixed-Pinned Deflection'!$J11-Work!AZ6)/(t*w) -> 102.0334273 | BA10: ='Fixed-Pinned Deflection'!$A11*COS('Fixed-Pinned Deflection'!$J11-Work!BA6)/(t*w) -> 103.4029152 | BB10: ='Fixed-Pinned Deflection'!$A11*COS('Fixed-Pinned Deflection'!$J11-Work!BB6)/(t*w) -> 104.7453129 | BC10: ='Fixed-Pinned Deflection'!$A11*COS('Fixed-Pinned Deflection'!$J11-Work!BC6)/(t*w) -> 106.0605852 | BD10: ='Fixed-Pinned Deflection'!$A11*COS('Fixed-Pinned Deflection'!$J11-Work!BD6)/(t*w) -> 107.3486977 | BE10: ='Fixed-Pinned Deflection'!$A11*COS('Fixed-Pinned Deflection'!$J11-Work!BE6)/(t*w) -> 108.6096167 | BF10: ='Fixed-Pinned Deflection'!$A11*COS('Fixed-Pinned Deflection'!$J11-Work!BF6)/(t*w) -> 109.8433092 | BG10: ='Fixed-Pinned Deflection'!$A11*COS('Fixed-Pinned Deflection'!$J11-Work!BG6)/(t*w) -> 111.0497429 | BH10: ='Fixed-Pinned Deflection'!$A11*COS('Fixed-Pinned Deflection'!$J11-Work!BH6)/(t*w) -> 112.2288861 | BI10: ='Fixed-Pinned Deflection'!$A11*COS('Fixed-Pinned Deflection'!$J11-Work!BI6)/(t*w) -> 113.3807082 | BJ10: ='Fixed-Pinned Deflection'!$A11*COS('Fixed-Pinned Deflection'!$J11-Work!BJ6)/(t*w) -> 114.5051788 | BK10: ='Fixed-Pinned Deflection'!$A11*COS('Fixed-Pinned Deflection'!$J11-Work!BK6)/(t*w) -> 115.6022686 | BL10: ='Fixed-Pinned Deflection'!$A11*COS('Fixed-Pinned Deflection'!$J11-Work!BL6)/(t*w) -> 116.6719489 | BM10: ='Fixed-Pinned Deflection'!$A11*COS('Fixed-Pinned Deflection'!$J11-Work!BM6)/(t*w) -> 117.7141916 | BN10: ='Fixed-Pinned Deflection'!$A11*COS('Fixed-Pinned Deflection'!$J11-Work!BN6)/(t*w) -> 118.7289695 | BO10: ='Fixed-Pinned Deflection'!$A11*COS('Fixed-Pinned Deflection'!$J11-Work!BO6)/(t*w) -> 119.716256 | BP10: ='Fixed-Pinned Deflection'!$A11*COS('Fixed-Pinned Deflection'!$J11-Work!BP6)/(t*w) -> 120.6760253 | BQ10: ='Fixed-Pinned Deflection'!$A11*COS('Fixed-Pinned Deflection'!$J11-Work!BQ6)/(t*w) -> 121.6082522 | BR10: ='Fixed-Pinned Deflection'!$A11*COS('Fixed-Pinned Deflection'!$J11-Work!BR6)/(t*w) -> 122.5129124 | BS10: ='Fixed-Pinned Deflection'!$A11*COS('Fixed-Pinned Deflection'!$J11-Work!BS6)/(t*w) -> 123.3899822 | BT10: ='Fixed-Pinned Deflection'!$A11*COS('Fixed-Pinned Deflection'!$J11-Work!BT6)/(t*w) -> 124.2394386 | BU10: ='Fixed-Pinned Deflection'!$A11*COS('Fixed-Pinned Deflection'!$J11-Work!BU6)/(t*w) -> 125.0612593 | BV10: ='Fixed-Pinned Deflection'!$A11*COS('Fixed-Pinned Deflection'!$J11-Work!BV6)/(t*w) -> 125.855423 | BW10: ='Fixed-Pinned Deflection'!$A11*COS('Fixed-Pinned Deflection'!$J11-Work!BW6)/(t*w) -> 126.6219087 | BX10: ='Fixed-Pinned Deflection'!$A11*COS('Fixed-Pinned Deflection'!$J11-Work!BX6)/(t*w) -> 127.3606965 | BY10: ='Fixed-Pinned Deflection'!$A11*COS('Fixed-Pinned Deflection'!$J11-Work!BY6)/(t*w) -> 128.071767 | BZ10: ='Fixed-Pinned Deflection'!$A11*COS('Fixed-Pinned Deflection'!$J11-Work!BZ6)/(t*w) -> 128.7551015 | CA10: ='Fixed-Pinned Deflection'!$A11*COS('Fixed-Pinned Deflection'!$J11-Work!CA6)/(t*w) -> 129.4106822 | CB10: ='Fixed-Pinned Deflection'!$A11*COS('Fixed-Pinned Deflection'!$J11-Work!CB6)/(t*w) -> 130.038492 | CC10: ='Fixed-Pinned Deflection'!$A11*COS('Fixed-Pinned Deflection'!$J11-Work!CC6)/(t*w) -> 130.6385143 | CD10: ='Fixed-Pinned Deflection'!$A11*COS('Fixed-Pinned Deflection'!$J11-Work!CD6)/(t*w) -> 131.2107336 | CE10: ='Fixed-Pinned Deflection'!$A11*COS('Fixed-Pinned Deflection'!$J11-Work!CE6)/(t*w) -> 131.7551348 | CF10: ='Fixed-Pinned Deflection'!$A11*COS('Fixed-Pinned Deflection'!$J11-Work!CF6)/(t*w) -> 132.2717036 | CG10: ='Fixed-Pinned Deflection'!$A11*COS('Fixed-Pinned Deflection'!$J11-Work!CG6)/(t*w) -> 132.7604266 | CH10: ='Fixed-Pinned Deflection'!$A11*COS('Fixed-Pinned Deflection'!$J11-Work!CH6)/(t*w) -> 133.221291 | CI10: ='Fixed-Pinned Deflection'!$A11*COS('Fixed-Pinned Deflection'!$J11-Work!CI6)/(t*w) -> 133.6542846 | CJ10: ='Fixed-Pinned Deflection'!$A11*COS('Fixed-Pinned Deflection'!$J11-Work!CJ6)/(t*w) -> 134.0593962 | CK10: ='Fixed-Pinned Deflection'!$A11*COS('Fixed-Pinned Deflection'!$J11-Work!CK6)/(t*w) -> 134.4366152 | CL10: ='Fixed-Pinned Deflection'!$A11*COS('Fixed-Pinned Deflection'!$J11-Work!CL6)/(t*w) -> 134.7859316 | CM10: ='Fixed-Pinned Deflection'!$A11*COS('Fixed-Pinned Deflection'!$J11-Work!CM6)/(t*w) -> 135.1073364 | CN10: ='Fixed-Pinned Deflection'!$A11*COS('Fixed-Pinned Deflection'!$J11-Work!CN6)/(t*w) -> 135.4008211 | CO10: ='Fixed-Pinned Deflection'!$A11*COS('Fixed-Pinned Deflection'!$J11-Work!CO6)/(t*w) -> 135.6663781 | CP10: ='Fixed-Pinned Deflection'!$A11*COS('Fixed-Pinned Deflection'!$J11-Work!CP6)/(t*w) -> 135.9040003 | CQ10: ='Fixed-Pinned Deflection'!$A11*COS('Fixed-Pinned Deflection'!$J11-Work!CQ6)/(t*w) -> 136.1136817 | CR10: ='Fixed-Pinned Deflection'!$A11*COS('Fixed-Pinned Deflection'!$J11-Work!CR6)/(t*w) -> 136.2954166 | CS10: ='Fixed-Pinned Deflection'!$A11*COS('Fixed-Pinned Deflection'!$J11-Work!CS6)/(t*w) -> 136.4492003 | CT10: ='Fixed-Pinned Deflection'!$A11*COS('Fixed-Pinned Deflection'!$J11-Work!CT6)/(t*w) -> 136.5750289 | CU10: ='Fixed-Pinned Deflection'!$A11*COS('Fixed-Pinned Deflection'!$J11-Work!CU6)/(t*w) -> 136.672899 | CV10: ='Fixed-Pinned Deflection'!$A11*COS('Fixed-Pinned Deflection'!$J11-Work!CV6)/(t*w) -> 136.742808 | CW10: ='Fixed-Pinned Deflection'!$A11*COS('Fixed-Pinned Deflection'!$J11-Work!CW6)/(t*w) -> 136.7847542 | CX10: ='Fixed-Pinned Deflection'!$A11*COS('Fixed-Pinned Deflection'!$J11-Work!CX6)/(t*w) -> 136.7987363
A11: smax | B11: =B10+B9 -> 239698.7052 | C11: 237356.1123 | D11: 235011.9418 | E11: 232666.209 | F11: 230318.9293 | G11: 227970.1178 | H11: 225619.79 | I11: 223267.9611 | J11: 220914.6466 | K11: 218559.8617 | L11: 216203.6218 | M11: 213845.9423 | N11: 211486.8385 | O11: 209126.3259 | P11: 206764.4199 | Q11: 204401.1358 | R11: 202036.4891 | S11: 199670.4952 | T11: 197303.1695 | U11: 194934.5276 | V11: 192564.5848 | W11: 190193.3565 | X11: 187820.8584 | Y11: 185447.1059 | Z11: 183072.1144 | AA11: 180695.8995 | AB11: 178318.4766 | AC11: 175939.8613 | AD11: 173560.0691 | AE11: 171179.1156 | AF11: 168797.0163 | AG11: 166413.7867 | AH11: =AH10+AH9 -> 164029.4423 | AI11: 161643.9989 | AJ11: 159257.4719 | AK11: 156869.8768 | AL11: 154481.2294 | AM11: 152091.5452 | AN11: 149700.8398 | AO11: 147309.1287 | AP11: 144916.4277 | AQ11: 142522.7524 | AR11: 140128.1183 | AS11: 137732.5411 | AT11: 135336.0365 | AU11: 132938.6201 | AV11: 130540.3076 | AW11: 128141.1146 | AX11: 125741.0568 | AY11: 123340.1499 | AZ11: 120938.4096 | BA11: 118535.8515 | BB11: 116132.4913 | BC11: 113728.3448 | BD11: 111323.4277 | BE11: 108917.7556 | BF11: 106511.3442 | BG11: 104104.2094 | BH11: 101696.3668 | BI11: 99287.83219 | BJ11: 96878.62126 | BK11: 94468.74977 | BL11: 92058.23347 | BM11: 89647.0881 | BN11: =BN10+BN9 -> 87235.32944 | BO11: 84822.97323 | BP11: 82410.03525 | BQ11: 79996.53127 | BR11: 77582.47705 | BS11: 75167.88838 | BT11: 72752.78105 | BU11: 70337.17083 | BV11: 67921.07352 | BW11: 65504.50491 | BX11: 63087.4808 | BY11: 60670.01699 | BZ11: 58252.1293 | CA11: 55833.83351 | CB11: 53415.14545 | CC11: 50996.08093 | CD11: 48576.65577 | CE11: 46156.88579 | CF11: 43736.7868 | CG11: 41316.37465 | CH11: 38895.66515 | CI11: 36474.67413 | CJ11: 34053.41744 | CK11: 31631.9109 | CL11: 29210.17035 | CM11: 26788.21164 | CN11: 24366.0506 | CO11: 21943.70308 | CP11: 19521.18493 | CQ11: 17098.51198 | CR11: 14675.7001 | CS11: 12252.76512 | CT11: =CT10+CT9 -> 9829.722907 | CU11: =CU10+CU9 -> 7406.589307 | CV11: =CV10+CV9 -> 4983.380175 | CW11: =CW10+CW9 -> 2560.111366 | CX11: =CX10+CX9 -> 136.7987363
A12: smin | B12: =B10-B9 -> -239698.7052 | C12: =C10-C9 -> -237350.7846 | D12: =D10-D9 -> -235001.3354 | E12: =E10-E9 -> -232650.3729 | F12: -230297.9126 | G12: -227943.9699 | H12: -225588.5604 | I12: -223231.6993 | J12: -220873.4023 | K12: -218513.6848 | L12: -216152.5623 | M12: -213790.0502 | N12: -211426.1642 | O12: -209060.9196 | P12: -206694.3321 | Q12: -204326.4171 | R12: -201957.1903 | S12: -199586.6671 | T12: -197214.8631 | U12: -194841.7939 | V12: -192467.475 | W12: -190091.922 | X12: -187715.1506 | Y12: -185337.1762 | Z12: -182958.0146 | AA12: -180577.6813 | AB12: -178196.1919 | AC12: -175813.562 | AD12: -173429.8073 | AE12: -171044.9435 | AF12: -168658.9861 | AG12: -166271.9509 | AH12: -163883.8534 | AI12: -161494.7093 | AJ12: -159104.5343 | AK12: -156713.3442 | AL12: -154321.1545 | AM12: -151927.9809 | AN12: -149533.8392 | AO12: -147138.745 | AP12: -144742.7141 | AQ12: -142345.7621 | AR12: -139947.9048 | AS12: -137549.158 | AT12: -135149.5372 | AU12: -132749.0583 | AV12: -130347.737 | AW12: -127945.589 | AX12: -125542.6302 | AY12: -123138.8761 | AZ12: -120734.3427 | BA12: -118329.0456 | BB12: -115923.0007 | BC12: -113516.2236 | BD12: -111108.7303 | BE12: -108700.5363 | BF12: -106291.6576 | BG12: -103882.1099 | BH12: -101471.9091 | BI12: -99061.07078 | BJ12: -96649.6109 | BK12: -94237.54523 | BL12: -91824.88957 | BM12: -89411.65972 | BN12: -86997.8715 | BO12: -84583.54072 | BP12: -82168.6832 | BQ12: =BQ10-BQ9 -> -79753.31476 | BR12: -77337.45123 | BS12: -74921.10842 | BT12: -72504.30217 | BU12: -70087.04831 | BV12: -67669.36267 | BW12: -65251.26109 | BX12: -62832.75941 | BY12: -60413.87346 | BZ12: -57994.61909 | CA12: -55575.01215 | CB12: -53155.06847 | CC12: -50734.8039 | CD12: -48314.2343 | CE12: -45893.37552 | CF12: -43472.2434 | CG12: -41050.85379 | CH12: -38629.22257 | CI12: -36207.36556 | CJ12: -33785.29865 | CK12: -31363.03767 | CL12: -28940.59849 | CM12: -26517.99697 | CN12: -24095.24896 | CO12: -21672.37033 | CP12: -19249.37693 | CQ12: -16826.28462 | CR12: -14403.10926 | CS12: -11979.86672 | CT12: -9556.572849 | CU12: -7133.243509 | CV12: -4709.894559 | CW12: -2286.541858 | CX12: 136.7987363

Sheet Elliptic Integrals
A1: TITLE: | B1: VB Functions for Elliptic Integrals | G1: REVISED: | H1: 2012-03-05 | I1: © 2002
A2: SUBJECT: | B2: Mathematics, Compliance, Bending Beams, Elliptic Integrals | G2: REVISION: | H2: 1.1 | I2: Jon Wittwer
A4: TO Create an ADD-IN, just save this file as a ".xla" type, and place it in your "Addins" directory
A6: REFERENCES
A8: 1) Howell, Larry L., 2001, Compliant Mechanisms, John Wiley & Sons, New York. (see pg. 46)
A10: 2) Handbook of Mathematical Function with Formulas, Graphs, and Mathematical Tables
A11: Edited by M. Abramowitz and I.A. Stegun
A12: AMS 55
A13: U.S. Department of Commerce
A14: National Bureau of Standards, Applied Mathematics Series - 55
A16: 3) Handbook of Elliptic Integrals for Engineers and Physicists, by P.F. Byrd and M.D.Friedman
A18: 4) L.V. King, "On the Direct Numerical Calculations of Elliptic Functions and Integrals"
A20: HELP and an EXAMPLE
A22: COMPARISON to the tables in Handbook of ...
A23: j | B23: 70 | C23: deg
A24: a | B24: 50 | C24: deg
A26: f | B26: =B23*PI()/180 -> 1.221730476 | D26: Ellip_F(): | E26: =Ellip_F(B26,B27) -> 1.406768546
A27: k | B27: =SIN(B24*PI()/180) -> 0.7660444431 | D27: Ellip_E(): | E27: =Ellip_E(B26,B27) -> 1.07499796
A30: "k" is called the modulus and is always between 0 and 1 (0 < k < 1)
A31: "f" is called the amplitude, and must be in radians
A32: When f is p/2, Ellip_E() and Ellip_F() give the 'complete' elliptic integrals
I34: Revision History
